Workbook

Sheet Admin
B4: Process Year
B5: 2023 | C5: I1
B7: First True Up Month
B8: =B5*100+1 -> 202301 | C8: I2 | D8: I3
B10: Second True Up Month
B11: =B8+1 -> 202302 | C11: I4 | D11: I5
B13: Third True Up Month
B14: =B11+1 -> 202303 | C14: I6 | D14: I7
B16: Fourth True Up Month
B17: =B14+1 -> 202304 | C17: I8 | D17: I9
B19: Fifth True Up Month
B20: =B17+1 -> 202305 | C20: I10 | D20: I11
B22: Sixth True Up Month
B23: =B20+1 -> 202306 | C23: I12 | D23: I13
B25: Seventh True Up Month
B26: =B23+1 -> 202307 | C26: I14 | D26: I15
B28: Eighth True Up Month
B29: =B26+1 -> 202308 | C29: I16 | D29: I17
B31: Ninth True Up Month
B32: =B29+1 -> 202309 | C32: I18 | D32: I19
B34: Tenth True Up Month
B35: =B32+1 -> 202310 | C35: I20 | D35: I21
B37: Eleventh True Up Month
B38: =B35+1 -> 202311 | C38: I22 | D38: I23
B40: Twelveth True Up Month
B41: =B38+1 -> 202312 | C41: I24 | D41: I25

Sheet I1 Reconciliation
C2: =Admin!$B$8 -> 202301 | D2: =Admin!$B$8 -> 202301 | E2: =C2+1 -> 202302 | F2: =D2+1 -> 202302 | G2: =E2+1 -> 202303 | H2: 202303 | I2: 202304 | J2: 202304 | K2: 202305 | L2: 202305 | M2: 202306 | N2: 202306 | O2: 202307 | P2: 202307 | Q2: 202308 | R2: 202308 | S2: 202309 | T2: 202309 | U2: 202310 | V2: 202310 | W2: 202311 | X2: 202311 | Y2: 202312 | Z2: 202312 | AA2: =Admin!B5 -> 2023
C3: =A4 & "Input "& C2 & " Trueup Sett" -> Input 202301 Trueup Sett | D3: =D4 & " Input Rev " & D2 & " Init" -> I3 Input Rev 202301 Init | E3: =C4 & "Input "& E2 & " Trueup Sett" -> I2Input 202302 Trueup Sett | F3: =F4 & " Input Rev " & F2 & " Init" -> I5 Input Rev 202302 Init | G3: =E4 & "Input "& G2 & " Trueup Sett" -> I4Input 202303 Trueup Sett | H3: =H4 & " Input Rev " & H2 & " Init" -> I7 Input Rev 202303 Init | I3: =G4 & "Input "& I2 & " Trueup Sett" -> I6Input 202304 Trueup Sett | J3: =J4 & " Input Rev " & J2 & " Init" -> I9 Input Rev 202304 Init | K3: =I4 & "Input "& K2 & " Trueup Sett" -> I8Input 202305 Trueup Sett | L3: =L4 & " Input Rev " & L2 & " Init" -> I11 Input Rev 202305 Init | M3: =K4 & "Input "& M2 & " Trueup Sett" -> I10Input 202306 Trueup Sett | N3: =N4 & " Input Rev " & N2 & " Init" -> I13 Input Rev 202306 Init | O3: =M4 & "Input "& O2 & " Trueup Sett" -> I12Input 202307 Trueup Sett | P3: =P4 & " Input Rev " & P2 & " Init" -> I15 Input Rev 202307 Init | Q3: =O4 & "Input "& Q2 & " Trueup Sett" -> I14Input 202308 Trueup Sett | R3: =R4 & " Input Rev " & R2 & " Init" -> I17 Input Rev 202308 Init | S3: =Q4 & "Input "& S2 & " Trueup Sett" -> I16Input 202309 Trueup Sett | T3: =T4 & " Input Rev " & T2 & " Init" -> I19 Input Rev 202309 Init | U3: =S4 & "Input "& U2 & " Trueup Sett" -> I18Input 202310 Trueup Sett | V3: =V4 & " Input Rev " & V2 & " Init" -> I21 Input Rev 202310 Init | W3: =U4 & "Input "& W2 & " Trueup Sett" -> I20Input 202311 Trueup Sett | X3: =X4 & " Input Rev " & X2 & " Init" -> I23 Input Rev 202311 Init | Y3: =W4 & "Input "& Y2 & " Trueup Sett" -> I22Input 202312 Trueup Sett | Z3: =Z4 & " Input Rev " & Z2 & " Init" -> I25 Input Rev 202312 Init | AA3: Total IESO Settlement
C4: I2 | D4: I3 | E4: I4 | F4: I5 | G4: I6 | H4: I7 | I4: I8 | J4: I9 | K4: I10 | L4: I11 | M4: I12 | N4: I13 | O4: I14 | P4: I15 | Q4: I16 | R4: I17 | S4: I18 | T4: I19 | U4: I20 | V4: I21 | W4: I22 | X4: I23 | Y4: I24 | Z4: I25
B5: RPP Revenue Prices
B6: RPPT1 | C6: ='I2 Input 01 Trueup Sett '!Z6 -> -1665.350585 | D6: ='I3 Input Rev 01 Init'!C7 -> 4732.82 | E6: ='I4 Input 02 Trueup Sett'!Z6 -> -17884.81241 | F6: ='I5 Input Rev 02 Init'!C7 -> 1820.69 | G6: ='I6 Input 03 Trueup Sett'!Z6 -> -17202.41486 | H6: ='I7 Input Rev 03 Init'!C7 -> 16126.42 | I6: ='I8 Input 04 Trueup Sett'!Z6 -> -26697.90756 | J6: ='I9 Input Rev 04 Init'!C7 -> 17360.1 | K6: ='I10 Input 05 Trueup Sett'!Z6 -> -22335.11384 | L6: ='I11 Input Rev 05 Init'!C7 -> 27148.92 | M6: ='I12 Input 06 Trueup Sett'!Z6 -> -19026.71385 | N6: ='I13 Input Rev 06 Init'!C7 -> 21245.58 | O6: ='I14 Input 07 Trueup Sett'!Z6 -> -2651.21375 | P6: ='I15 Input Rev 07 Init'!C7 -> 18535.64 | Q6: ='I16 Input 08 Trueup Sett'!Z6 -> -15583.99936 | R6: ='I17 Input Rev 08 Init'!C7 -> 4182.5 | S6: ='I18 Input 09 Trueup Sett'!Z6 -> -3529.095146 | T6: ='I19 Input Rev 09 Init'!C7 -> 13933.55 | U6: ='I20 Input 10 Trueup Sett'!Z6 -> -21578.80384 | V6: ='I21 Input Rev 10 Init'!C7 -> 4781.1 | W6: ='I22 Input 11 Trueup Sett'!Z6 -> 1339.350742 | X6: ='I23 Input Rev 11 Init'!C7 -> 19696.92 | Y6: ='I24 Input 12 Trueup Sett'!Z6 -> 5595.601013 | Z6: ='I25 Input Rev 12 Init'!C7 -> 934.46 | AA6: =SUM(C6:Z6) -> 9278.226558
B7: RPPT2 | C7: ='I2 Input 01 Trueup Sett '!Z7 -> 4773.25176 | D7: ='I3 Input Rev 01 Init'!C8 -> -3327.93 | E7: ='I4 Input 02 Trueup Sett'!Z7 -> -1240.955596 | F7: ='I5 Input Rev 02 Init'!C8 -> -4517.1 | G7: ='I6 Input 03 Trueup Sett'!Z7 -> -671.4869962 | H7: ='I7 Input Rev 03 Init'!C8 -> 280.83 | I7: ='I8 Input 04 Trueup Sett'!Z7 -> -2293.026948 | J7: ='I9 Input Rev 04 Init'!C8 -> 776.62 | K7: ='I10 Input 05 Trueup Sett'!Z7 -> -2614.988076 | L7: ='I11 Input Rev 05 Init'!C8 -> 2366.14 | M7: ='I12 Input 06 Trueup Sett'!Z7 -> -2176.464749 | N7: ='I13 Input Rev 06 Init'!C8 -> 2525.31 | O7: ='I14 Input 07 Trueup Sett'!Z7 -> 3879.616371 | P7: ='I15 Input Rev 07 Init'!C8 -> 2078.4 | Q7: ='I16 Input 08 Trueup Sett'!Z7 -> -1050.17491 | R7: ='I17 Input Rev 08 Init'!C8 -> -3031.94 | S7: ='I18 Input 09 Trueup Sett'!Z7 -> 2033.164982 | T7: ='I19 Input Rev 09 Init'!C8 -> 613.67 | U7: ='I20 Input 10 Trueup Sett'!Z7 -> -3184.851071 | V7: ='I21 Input Rev 10 Init'!C8 -> -1693.9 | W7: ='I22 Input 11 Trueup Sett'!Z7 -> 5471.058561 | X7: ='I23 Input Rev 11 Init'!C8 -> 2631.83 | Y7: ='I24 Input 12 Trueup Sett'!Z7 -> 7819.594248 | Z7: ='I25 Input Rev 12 Init'!C8 -> -4856.82 | AA7: =SUM(C7:Z7) -> 4589.847577
B8: RPPTOUMID | C8: ='I2 Input 01 Trueup Sett '!Z8 -> 23005.75315 | D8: ='I3 Input Rev 01 Init'!C9 -> -13838.93 | E8: ='I4 Input 02 Trueup Sett'!Z8 -> -8459.148727 | F8: ='I5 Input Rev 02 Init'!C9 -> -21652.63 | G8: ='I6 Input 03 Trueup Sett'!Z8 -> -6162.347401 | H8: ='I7 Input Rev 03 Init'!C9 -> -323.58 | I8: ='I8 Input 04 Trueup Sett'!Z8 -> -24188.95102 | J8: ='I9 Input Rev 04 Init'!C9 -> 7039.7 | K8: ='I10 Input 05 Trueup Sett'!Z8 -> -22181.78592 | L8: ='I11 Input Rev 05 Init'!C9 -> 21803 | M8: ='I12 Input 06 Trueup Sett'!Z8 -> -18892.87501 | N8: ='I13 Input Rev 06 Init'!C9 -> 21651.37 | O8: ='I14 Input 07 Trueup Sett'!Z8 -> 20375.507 | P8: ='I15 Input Rev 07 Init'!C9 -> 18231.56 | Q8: ='I16 Input 08 Trueup Sett'!Z8 -> -10187.72132 | R8: ='I17 Input Rev 08 Init'!C9 -> -13751.63 | S8: ='I18 Input 09 Trueup Sett'!Z8 -> 13852.56869 | T8: ='I19 Input Rev 09 Init'!C9 -> 4992.81 | U8: ='I20 Input 10 Trueup Sett'!Z8 -> -21193.3513 | V8: ='I21 Input Rev 10 Init'!C9 -> -9772.52 | W8: ='I22 Input 11 Trueup Sett'!Z8 -> 34552.47191 | X8: ='I23 Input Rev 11 Init'!C9 -> 14773.93 | Y8: ='I24 Input 12 Trueup Sett'!Z8 -> 39967.38795 | Z8: ='I25 Input Rev 12 Init'!C9 -> -24692.4 | AA8: 24948.18801
B9: RPPTOUOFF | C9: ='I2 Input 01 Trueup Sett '!Z9 -> -101397.376 | D9: ='I3 Input Rev 01 Init'!C10 -> 117105.43 | E9: ='I4 Input 02 Trueup Sett'!Z9 -> -196250.5079 | F9: ='I5 Input Rev 02 Init'!C10 -> 104754.1 | G9: ='I6 Input 03 Trueup Sett'!Z9 -> -182716.9786 | H9: ='I7 Input Rev 03 Init'!C10 -> 176053.2 | I9: ='I8 Input 04 Trueup Sett'!Z9 -> -235435.651 | J9: ='I9 Input Rev 04 Init'!C10 -> 182693.05 | K9: ='I10 Input 05 Trueup Sett'!Z9 -> -194916.7208 | L9: ='I11 Input Rev 05 Init'!C10 -> 228867.38 | M9: ='I12 Input 06 Trueup Sett'!Z9 -> -191068.7155 | N9: ='I13 Input Rev 06 Init'!C10 -> 188721.04 | O9: ='I14 Input 07 Trueup Sett'!Z9 -> -101396.7313 | P9: ='I15 Input Rev 07 Init'!C10 -> 181948.37 | Q9: ='I16 Input 08 Trueup Sett'!Z9 -> -179926.2382 | R9: ='I17 Input Rev 08 Init'!C10 -> 117275.24 | S9: ='I18 Input 09 Trueup Sett'!Z9 -> -91393.59006 | T9: ='I19 Input Rev 09 Init'!C10 -> 160398.43 | U9: ='I20 Input 10 Trueup Sett'!Z9 -> -202974.4444 | V9: ='I21 Input Rev 10 Init'!C10 -> 105432.22 | W9: ='I22 Input 11 Trueup Sett'!Z9 -> -75080.54731 | X9: ='I23 Input Rev 11 Init'!C10 -> 180756.95 | Y9: ='I24 Input 12 Trueup Sett'!Z9 -> -66411.38854 | Z9: ='I25 Input Rev 12 Init'!C10 -> 95806.27 | AA9: 20842.79047
B10: RPPTOUON | C10: ='I2 Input 01 Trueup Sett '!Z10 -> 116202.3961 | D10: ='I3 Input Rev 01 Init'!C11 -> -99540.33 | E10: ='I4 Input 02 Trueup Sett'!Z10 -> 76576.58232 | F10: ='I5 Input Rev 02 Init'!C11 -> -111653.44 | G10: ='I6 Input 03 Trueup Sett'!Z10 -> 86727.96599 | H10: ='I7 Input Rev 03 Init'!C11 -> -92333.77 | I10: ='I8 Input 04 Trueup Sett'!Z10 -> 42483.71484 | J10: ='I9 Input Rev 04 Init'!C11 -> -84553.35 | K10: ='I10 Input 05 Trueup Sett'!Z10 -> 46907.30527 | L10: ='I11 Input Rev 05 Init'!C11 -> -45985.07 | M10: ='I12 Input 06 Trueup Sett'!Z10 -> 62225.9279 | N10: ='I13 Input Rev 06 Init'!C11 -> -46792.91 | O10: ='I14 Input 07 Trueup Sett'!Z10 -> 121434.2893 | P10: ='I15 Input Rev 07 Init'!C11 -> -58280.17 | Q10: ='I16 Input 08 Trueup Sett'!Z10 -> 81146.50861 | R10: ='I17 Input Rev 08 Init'!C11 -> -108343.29 | S10: ='I18 Input 09 Trueup Sett'!Z10 -> 90158.86986 | T10: ='I19 Input Rev 09 Init'!C11 -> -85690.49 | U10: ='I20 Input 10 Trueup Sett'!Z10 -> 49112.77264 | V10: ='I21 Input Rev 10 Init'!C11 -> -87735.01 | W10: ='I22 Input 11 Trueup Sett'!Z10 -> 140966.5496 | X10: ='I23 Input Rev 11 Init'!C11 -> -54953.65 | Y10: ='I24 Input 12 Trueup Sett'!Z10 -> 139310.3719 | Z10: ='I25 Input Rev 12 Init'!C11 -> -122133.21 | AA10: 55258.56436
B11: RPPULOMID | W11: ='I22 Input 11 Trueup Sett'!Z11 -> 10.5071529 | Y11: ='I24 Input 12 Trueup Sett'!Z11 -> 42.33338787 | AA11: 52.84054077
B12: RPPULOOFF | W12: ='I22 Input 11 Trueup Sett'!Z12 -> -4.825355175 | Y12: ='I24 Input 12 Trueup Sett'!Z12 -> -37.95457057 | AA12: -42.77992574
B13: RPPULOON | W13: ='I22 Input 11 Trueup Sett'!Z13 -> 52.38593357 | Y13: ='I24 Input 12 Trueup Sett'!Z13 -> 260.6715905 | AA13: 313.057524
B14: RPPULOOVN | W14: =-'I22 Input 11 Trueup Sett'!Z14 -> 45.4630104 | Y14: =-'I24 Input 12 Trueup Sett'!Z14 -> 56.27683478 | AA14: 101.7398452
B15: Total RPP For Settlement | C15: =SUM(C6:C14) -> 40918.67447 | D15: =SUM(D6:D14) -> 5131.06 | E15: -147258.8424 | F15: -31248.38 | G15: -120025.2618 | H15: 99803.1 | I15: -246131.8217 | J15: 123316.12 | K15: -195141.3033 | L15: 234200.37 | M15: -168938.8412 | N15: 187350.39 | O15: 41641.46764 | P15: 162513.8 | Q15: -125601.6252 | R15: -3669.12 | S15: 11121.91833 | T15: 94247.97 | U15: -199818.678 | V15: 11011.89 | W15: 107352.4142 | X15: 162905.98 | Y15: 126602.8938 | Z15: -54941.7 | AA15: 115342.475
D16: =C15+D15 -> 46049.73447 | F16: =E15+F15 -> -178507.2224 | H16: =G15+H15 -> -20222.16183 | J16: =I15+J15 -> -122815.7017 | L16: =K15+L15 -> 39059.06666 | N16: =M15+N15 -> 18411.54883 | P16: =O15+P15 -> 204155.2676 | R16: =Q15+R15 -> -129270.7452 | T16: =S15+T15 -> 105369.8883 | V16: =U15+V15 -> -188806.788 | X16: =W15+X15 -> 270258.3942 | Z16: =Y15+Z15 -> 71661.19385
B18: Total RPP kWh For Settlement Reported
B19: Tier 1 | C19: ='I2 Input 01 Trueup Sett '!V6 -> 1016157.901 | D19: =-'I3 Input Rev 01 Init'!B7 -> -977017.48 | E19: ='I4 Input 02 Trueup Sett'!V6 -> 904357.1942 | F19: =-'I5 Input Rev 02 Init'!B7 -> -1006526.98 | G19: ='I6 Input 03 Trueup Sett'!V6 -> 940603.6824 | H19: =-'I7 Input Rev 03 Init'!B7 -> -956949.9 | I19: ='I8 Input 04 Trueup Sett'!V6 -> 812590.503 | J19: =-'I9 Input Rev 04 Init'!B7 -> -936580.82 | K19: ='I10 Input 05 Trueup Sett'!V6 -> 740095.9612 | L19: =-'I11 Input Rev 05 Init'!B7 -> -847946.98 | M19: ='I12 Input 06 Trueup Sett'!V6 -> 711900.7857 | N19: =-'I13 Input Rev 06 Init'!B7 -> -705141.28 | O19: ='I14 Input 07 Trueup Sett'!V6 -> 802108.7616 | P19: =-'I15 Input Rev 07 Init'!B7 -> -689479.08 | Q19: ='I16 Input 08 Trueup Sett'!V6 -> 749775.3547 | R19: =-'I17 Input Rev 08 Init'!B7 -> -784759.13 | S19: ='I18 Input 09 Trueup Sett'!V6 -> 703289.7193 | T19: =-'I19 Input Rev 09 Init'!B7 -> -740938.81 | U19: ='I20 Input 10 Trueup Sett'!V6 -> 730442.3144 | V19: =-'I21 Input Rev 10 Init'!B7 -> -703730.44 | W19: ='I22 Input 11 Trueup Sett'!V6 -> 906298.7394 | X19: =-'I23 Input Rev 11 Init'!B7 -> -722860.55 | Y19: ='I24 Input 12 Trueup Sett'!V6 -> 977717.2632 | Z19: =-'I25 Input Rev 12 Init'!B7 -> -885891.74 | AA19: =SUM(C19:Z19) -> 37514.99033
B20: Tier 2 | C20: ='I2 Input 01 Trueup Sett '!V7 -> 332378.4391 | D20: =-'I3 Input Rev 01 Init'!B8 -> -298377.86 | E20: ='I4 Input 02 Trueup Sett'!V7 -> 328672.7689 | F20: =-'I5 Input Rev 02 Init'!B8 -> -318299.44 | G20: ='I6 Input 03 Trueup Sett'!V7 -> 293381.764 | H20: =-'I7 Input Rev 03 Init'!B8 -> -329868.37 | I20: ='I8 Input 04 Trueup Sett'!V7 -> 136055.6249 | J20: =-'I9 Input Rev 04 Init'!B8 -> -306275.99 | K20: ='I10 Input 05 Trueup Sett'!V7 -> 184419.878 | L20: =-'I11 Input Rev 05 Init'!B8 -> -147768.75 | M20: ='I12 Input 06 Trueup Sett'!V7 -> 202920.0412 | N20: =-'I13 Input Rev 06 Init'!B8 -> -178715.42 | O20: ='I14 Input 07 Trueup Sett'!V7 -> 305610.8249 | P20: =-'I15 Input Rev 07 Init'!B8 -> -190983.03 | Q20: ='I16 Input 08 Trueup Sett'!V7 -> 219440.4182 | R20: =-'I17 Input Rev 08 Init'!B8 -> -284152.27 | S20: ='I18 Input 09 Trueup Sett'!V7 -> 185110.8783 | T20: =-'I19 Input Rev 09 Init'!B8 -> -218681.73 | U20: ='I20 Input 10 Trueup Sett'!V7 -> 252214.389 | V20: =-'I21 Input Rev 10 Init'!B8 -> -183973.45 | W20: ='I22 Input 11 Trueup Sett'!V7 -> 232997.2196 | X20: =-'I23 Input Rev 11 Init'!B8 -> -233965.32 | Y20: ='I24 Input 12 Trueup Sett'!V7 -> 282063.6496 | Z20: =-'I25 Input Rev 12 Init'!B8 -> -238515.77 | AA20: =SUM(C20:Z20) -> 25688.49574
B21: TOU Off-peak | C21: ='I2 Input 01 Trueup Sett '!V8 -> 1829102.328 | D21: =-'I3 Input Rev 01 Init'!B9 -> -1653542.88 | E21: ='I4 Input 02 Trueup Sett'!V8 -> 1669989.008 | F21: =-'I5 Input Rev 02 Init'!B9 -> -1769390.18 | G21: ='I6 Input 03 Trueup Sett'!V8 -> 1845815.975 | H21: =-'I7 Input Rev 03 Init'!B9 -> -1817996.2 | I21: ='I8 Input 04 Trueup Sett'!V8 -> 1345687.35 | J21: =-'I9 Input Rev 04 Init'!B9 -> -1819262.11 | K21: ='I10 Input 05 Trueup Sett'!V8 -> 1420092.896 | L21: =-'I11 Input Rev 05 Init'!B9 -> -1354869.67 | M21: ='I12 Input 06 Trueup Sett'!V8 -> 1572756.621 | N21: =-'I13 Input Rev 06 Init'!B9 -> -1396921.81 | O21: ='I14 Input 07 Trueup Sett'!V8 -> 1790547.697 | P21: =-'I15 Input Rev 07 Init'!B9 -> -1484907.75 | Q21: ='I16 Input 08 Trueup Sett'!V8 -> 1718904.97 | R21: =-'I17 Input Rev 08 Init'!B9 -> -1704511.01 | S21: ='I18 Input 09 Trueup Sett'!V8 -> 1454616.254 | T21: =-'I19 Input Rev 09 Init'!B9 -> -1688552.63 | U21: ='I20 Input 10 Trueup Sett'!V8 -> 1438787.072 | V21: =-'I21 Input Rev 10 Init'!B9 -> -1476119.17 | W21: ='I22 Input 11 Trueup Sett'!V8 -> 1693134.384 | X21: =-'I23 Input Rev 11 Init'!B9 -> -1413513.21 | Y21: ='I24 Input 12 Trueup Sett'!V8 -> 1622984.428 | Z21: =-'I25 Input Rev 12 Init'!B9 -> -1639045.04 | AA21: 183787.323
B22: TOU Mid-peak | C22: ='I2 Input 01 Trueup Sett '!V9 -> 6576585.052 | D22: =-'I3 Input Rev 01 Init'!B10 -> -5964539.41 | E22: ='I4 Input 02 Trueup Sett'!V9 -> 5935948.384 | F22: =-'I5 Input Rev 02 Init'!B10 -> -6646244.17 | G22: ='I6 Input 03 Trueup Sett'!V9 -> 5830516.677 | H22: =-'I7 Input Rev 03 Init'!B10 -> -6327729.68 | I22: ='I8 Input 04 Trueup Sett'!V9 -> 5121509.606 | J22: =-'I9 Input Rev 04 Init'!B10 -> -5732473.51 | K22: ='I10 Input 05 Trueup Sett'!V9 -> 4469722.718 | L22: =-'I11 Input Rev 05 Init'!B10 -> -5190583.26 | M22: ='I12 Input 06 Trueup Sett'!V9 -> 4775331.587 | N22: =-'I13 Input Rev 06 Init'!B10 -> -4338453.27 | O22: ='I14 Input 07 Trueup Sett'!V9 -> 6101674.896 | P22: =-'I15 Input Rev 07 Init'!B10 -> -4517335.78 | Q22: ='I16 Input 08 Trueup Sett'!V9 -> 5303422.989 | R22: =-'I17 Input Rev 08 Init'!B10 -> -5883687.93 | S22: ='I18 Input 09 Trueup Sett'!V9 -> 4945976.093 | T22: =-'I19 Input Rev 09 Init'!B10 -> -5181065.23 | U22: ='I20 Input 10 Trueup Sett'!V9 -> 4749065.783 | V22: =-'I21 Input Rev 10 Init'!B10 -> -4931190.21 | W22: ='I22 Input 11 Trueup Sett'!V9 -> 5146306.376 | X22: =-'I23 Input Rev 11 Init'!B10 -> -4700841.07 | Y22: ='I24 Input 12 Trueup Sett'!V9 -> 6402008.347 | Z22: =-'I25 Input Rev 12 Init'!B10 -> -4992811.11 | AA22: 951113.8784
B23: TOU On-peak | C23: ='I2 Input 01 Trueup Sett '!V10 -> 1887319.231 | D23: =-'I3 Input Rev 01 Init'!B11 -> -1735082.54 | E23: ='I4 Input 02 Trueup Sett'!V10 -> 1743893.446 | F23: =-'I5 Input Rev 02 Init'!B11 -> -1823318.22 | G23: ='I6 Input 03 Trueup Sett'!V10 -> 1901438.395 | H23: =-'I7 Input Rev 03 Init'!B11 -> -1877575.38 | I23: ='I8 Input 04 Trueup Sett'!V10 -> 1373166.655 | J23: =-'I9 Input Rev 04 Init'!B11 -> -1873530.66 | K23: ='I10 Input 05 Trueup Sett'!V10 -> 1411007.796 | L23: =-'I11 Input Rev 05 Init'!B11 -> -1397416.4 | M23: ='I12 Input 06 Trueup Sett'!V10 -> 1684660.733 | N23: =-'I13 Input Rev 06 Init'!B11 -> -1396815.42 | O23: ='I14 Input 07 Trueup Sett'!V10 -> 2012361.987 | P23: =-'I15 Input Rev 07 Init'!B11 -> -1587040.34 | Q23: ='I16 Input 08 Trueup Sett'!V10 -> 1885060.602 | R23: =-'I17 Input Rev 08 Init'!B11 -> -1898516.04 | S23: ='I18 Input 09 Trueup Sett'!V10 -> 1541732.751 | T23: =-'I19 Input Rev 09 Init'!B11 -> -1861109.95 | U23: ='I20 Input 10 Trueup Sett'!V10 -> 1435273.958 | V23: =-'I21 Input Rev 10 Init'!B11 -> -1577384.03 | W23: ='I22 Input 11 Trueup Sett'!V10 -> 1753365.777 | X23: =-'I23 Input Rev 11 Init'!B11 -> -1425579.8 | Y23: ='I24 Input 12 Trueup Sett'!V10 -> 1646209.036 | Z23: =-'I25 Input Rev 12 Init'!B11 -> -1656873.6 | AA23: 165247.9866
W24: ='I22 Input 11 Trueup Sett'!V11 -> 514.2577712 | Y24: ='I24 Input 12 Trueup Sett'!V11 -> 1717.96935 | AA24: 2232.227121
W25: ='I22 Input 11 Trueup Sett'!V12 -> 331.3806242 | Y25: ='I24 Input 12 Trueup Sett'!V12 -> 3662.169397 | AA25: 3993.550021
W26: ='I22 Input 11 Trueup Sett'!V13 -> 284.023168 | Y26: ='I24 Input 12 Trueup Sett'!V13 -> 1381.926988 | AA26: 1665.950156
W27: ='I22 Input 11 Trueup Sett'!V14 -> 617.9964877 | Y27: ='I24 Input 12 Trueup Sett'!V14 -> 811.3411344 | AA27: 1429.337622
B28: Total RPP For Settlement | C28: =SUM(C19:C27) -> 11641542.95 | D28: -10628560.17 | E28: 10582860.8 | F28: -11563778.99 | G28: 10811756.49 | H28: -11310119.53 | I28: 8789009.738 | J28: -10668123.09 | K28: 8225339.248 | L28: -8938585.06 | M28: 8947569.769 | N28: -8016047.2 | O28: 11012304.17 | P28: -8469745.98 | Q28: 9876604.333 | R28: -10555626.38 | S28: 8830725.696 | T28: -9690348.35 | U28: 8605783.517 | V28: -8872397.3 | W28: =SUM(W19:W27) -> 9733850.154 | X28: =SUM(X19:X27) -> -8496759.95 | Y28: =SUM(Y19:Y27) -> 10938556.13 | Z28: =SUM(Z19:Z27) -> -9413137.26 | AA28: =SUM(AA19:AA27) -> 1372673.739
D29: =C28+D28 -> 1012982.782 | F29: =E28+F28 -> -980918.1892 | H29: =G28+H28 -> -498363.0365 | J29: =I28+J28 -> -1879113.352 | L29: =K28+L28 -> -713245.8116 | N29: =M28+N28 -> 931522.5686 | P29: =O28+P28 -> 2542558.187 | R29: =Q28+R28 -> -679022.0466 | T29: =S28+T28 -> -859622.6539 | V29: =U28+V28 -> -266613.7833 | X29: =W28+X28 -> 1237090.204 | Z29: =Y28+Z28 -> 1525418.871

Sheet I1a ER Summary
B4: kWh Volumes | C4: $ RPP Revenue | D4: $ RPP Energy | E4: $ GA | F4: $ RPP Settlement | G4: Rev RPP Settlement | H4: Net RPP Sett | J4: IESO Energy kWh | K4: IESO Energy Cost | L4: FIT/mFIT kWh | M4: FIT/mFIT kWh | N4: Total Energy kWh | O4: Total Energy Cost | Q4: CT 148 | S4: Wholesale kWh | T4: Retail kWh | U4: Diff kWh | V4: Diff % | X4: RPP kWh | Y4: COP kWh | Z4: Diff kWh | AA4: Diff % | AC4: RPP/WHSL | AE4: Energy Purchases | AF4: Energy Revenue | AG4: RPP Revenue | AH4: Non RPP Revenue | AJ4: RPP kWh | AK4: Non RPP kWh | AL4: Total kWh | AN4: Class A kWh | AP4: Non RPP Class B
A5: =Admin!B8 -> 202301 | B5: ='I2 Input 01 Trueup Sett '!V15 -> 11641542.95 | C5: ='I2 Input 01 Trueup Sett '!W15 -> 1080805.525 | D5: ='I2 Input 01 Trueup Sett '!X15 -> 413571.8262 | E5: ='I2 Input 01 Trueup Sett '!Y15 -> 626315.0241 | F5: ='I2 Input 01 Trueup Sett '!Z15 -> 40918.67447 | G5: ='I3 Input Rev 01 Init'!C12 -> 5131.06 | H5: =F5+G5 -> 46049.73447 | J5: ='I2 Input 01 Trueup Sett '!C10 -> 23466312.81 | K5: ='I2 Input 01 Trueup Sett '!D10 -> 801678.9 | L5: =N5-J5 -> 109117.8 | M5: =O5-K5 -> 4162.03 | N5: ='I2 Input 01 Trueup Sett '!C11 -> 23575430.61 | O5: ='I2 Input 01 Trueup Sett '!D11 -> 805840.93 | Q5: ='I2 Input 01 Trueup Sett '!B65 -> 985623.84 | S5: ='I2 Input 01 Trueup Sett '!$C$11 -> 23575430.61 | T5: ='I2 Input 01 Trueup Sett '!$C$30 -> 23120131.35 | U5: =S5-T5 -> 455299.2605 | V5: =T5/S5-1 -> -0.01931244727 | X5: =SUM('I2 Input 01 Trueup Sett '!C20:C25) -> 11352389.22 | Y5: ='I2 Input 01 Trueup Sett '!C41 -> 11360242.44 | Z5: =X5-Y5 -> -7853.224341 | AA5: =Y5/X5-1 -> 0.0006917684188 | AC5: =X5/S5 -> 0.4815347557 | AE5: ='I2 Input 01 Trueup Sett '!D11 -> 805840.93 | AF5: ='I2 Input 01 Trueup Sett '!D30 -> 1455133.35 | AG5: =C5 -> 1080805.525 | AH5: =AF5-AG5 -> 374327.8248 | AJ5: =X5 -> 11352389.22 | AK5: =T5-X5 -> 11767742.13 | AL5: =SUM(AJ5:AK5) -> 23120131.35 | AN5: ='I2 Input 01 Trueup Sett '!B57 -> 5244745.87 | AP5: =AK5-AN5 -> 6522996.259
A6: =A5+1 -> 202302 | B6: ='I4 Input 02 Trueup Sett'!V15 -> 10582860.8 | C6: ='I4 Input 02 Trueup Sett'!W15 -> 985386.3651 | D6: ='I4 Input 02 Trueup Sett'!X15 -> 259559.1914 | E6: ='I4 Input 02 Trueup Sett'!Y15 -> 873086.0161 | F6: ='I4 Input 02 Trueup Sett'!Z15 -> -147258.8424 | G6: ='I5 Input Rev 02 Init'!C12 -> -31248.38 | H6: =F6+G6 -> -178507.2224 | J6: ='I4 Input 02 Trueup Sett'!C10 -> 21427804.6 | K6: ='I4 Input 02 Trueup Sett'!D10 -> 504134.75 | L6: =N6-J6 -> 261979.01 | M6: =O6-K6 -> 5033.81 | N6: ='I4 Input 02 Trueup Sett'!C11 -> 21689783.61 | O6: ='I4 Input 02 Trueup Sett'!D11 -> 509168.56 | Q6: ='I4 Input 02 Trueup Sett'!B77 -> 1387229.02 | S6: ='I4 Input 02 Trueup Sett'!C11 -> 21689783.61 | T6: ='I4 Input 02 Trueup Sett'!C30 -> 21580528.81 | U6: =S6-T6 -> 109254.8043 | V6: =T6/S6-1 -> -0.00503715511 | X6: =SUM('I4 Input 02 Trueup Sett'!C20:C25) -> 10514108.48 | Y6: ='I4 Input 02 Trueup Sett'!C44 -> 10497944.86 | Z6: =X6-Y6 -> 16163.62811 | AA6: =Y6/X6-1 -> -0.0015373275 | AC6: =X6/S6 -> 0.484749349 | AE6: ='I4 Input 02 Trueup Sett'!D11 -> 509168.56 | AF6: ='I4 Input 02 Trueup Sett'!D30 -> 1234310.438 | AG6: 985386.3651 | AH6: =AF6-AG6 -> 248924.0727 | AJ6: =X6 -> 10514108.48 | AK6: =T6-X6 -> 11066420.32 | AL6: =SUM(AJ6:AK6) -> 21580528.81 | AN6: ='I4 Input 02 Trueup Sett'!B64 -> 4872482.76 | AP6: =AK6-AN6 -> 6193937.561
A7: =A6+1 -> 202303 | B7: ='I6 Input 03 Trueup Sett'!V15 -> 10811756.49 | C7: ='I6 Input 03 Trueup Sett'!W15 -> 1018732.861 | D7: ='I6 Input 03 Trueup Sett'!X15 -> 270574.1051 | E7: ='I6 Input 03 Trueup Sett'!Y15 -> 868184.0176 | F7: ='I6 Input 03 Trueup Sett'!Z15 -> -120025.2618 | G7: ='I7 Input Rev 03 Init'!C12 -> 99803.1 | H7: =F7+G7 -> -20222.16183 | J7: ='I6 Input 03 Trueup Sett'!C10 -> 22623431.12 | K7: ='I6 Input 03 Trueup Sett'!D10 -> 569802.92 | L7: 448568.38 | M7: 9659.7 | N7: ='I6 Input 03 Trueup Sett'!C11 -> 23071999.5 | O7: ='I6 Input 03 Trueup Sett'!D11 -> 579462.62 | Q7: ='I6 Input 03 Trueup Sett'!B76 -> 1418540.9 | S7: ='I6 Input 03 Trueup Sett'!C11 -> 23071999.5 | T7: ='I6 Input 03 Trueup Sett'!C30 -> 22944336.3 | U7: 127663.2013 | V7: -0.005533252604 | X7: =SUM('I6 Input 03 Trueup Sett'!C20:C25) -> 10733622.95 | Y7: ='I6 Input 03 Trueup Sett'!C44 -> 10822267.45 | Z7: -88644.50126 | AA7: 0.008258581624 | AC7: 0.4652229188 | AE7: ='I6 Input 03 Trueup Sett'!D11 -> 579462.62 | AF7: ='I6 Input 03 Trueup Sett'!D30 -> 1316673.946 | AG7: 1018732.861 | AH7: 297941.0854 | AJ7: 10733622.95 | AK7: 12210713.35 | AL7: 22944336.3 | AN7: ='I6 Input 03 Trueup Sett'!B64 -> 5406559.1 | AP7: 6804154.248
A8: 202304 | B8: ='I8 Input 04 Trueup Sett'!V15 -> 8789009.738 | C8: ='I8 Input 04 Trueup Sett'!W15 -> 808106.2253 | D8: ='I8 Input 04 Trueup Sett'!X15 -> 188520.5542 | E8: ='I8 Input 04 Trueup Sett'!Y15 -> 865717.4928 | F8: ='I8 Input 04 Trueup Sett'!Z15 -> -246131.8217 | G8: ='I9 Input Rev 04 Init'!C12 -> 123316.12 | H8: -122815.7017 | J8: ='I8 Input 04 Trueup Sett'!C10 -> 18860183.95 | K8: ='I8 Input 04 Trueup Sett'!D10 -> 396944.77 | L8: 752413.02 | M8: 15965.66 | N8: ='I8 Input 04 Trueup Sett'!C11 -> 19612596.97 | O8: ='I8 Input 04 Trueup Sett'!D11 -> 412910.43 | Q8: ='I8 Input 04 Trueup Sett'!B76 -> 1447252.99 | S8: ='I8 Input 04 Trueup Sett'!C11 -> 19612596.97 | T8: ='I8 Input 04 Trueup Sett'!C30 -> 19509770.53 | U8: 102826.4404 | V8: -0.005242877351 | X8: =SUM('I8 Input 04 Trueup Sett'!C20:C25) -> 8727502.899 | Y8: ='I8 Input 04 Trueup Sett'!C44 -> 8797530.86 | Z8: -70027.96111 | AA8: 0.008023825591 | AC8: 0.4449947609 | AE8: ='I8 Input 04 Trueup Sett'!D11 -> 412910.43 | AF8: ='I8 Input 04 Trueup Sett'!D30 -> 1026650.975 | AG8: 808106.2253 | AH8: 218544.7502 | AJ8: 8727502.899 | AK8: 10782267.63 | AL8: 19509770.53 | AN8: ='I8 Input 04 Trueup Sett'!B64 -> 4919229.58 | AP8: 5863038.051
A9: 202305 | B9: ='I10 Input 05 Trueup Sett'!V15 -> 8225339.248 | C9: ='I10 Input 05 Trueup Sett'!W15 -> 771734.0744 | D9: ='I10 Input 05 Trueup Sett'!X15 -> 147631.5854 | E9: ='I10 Input 05 Trueup Sett'!Y15 -> 819243.7923 | F9: ='I10 Input 05 Trueup Sett'!Z15 -> -195141.3033 | G9: ='I11 Input Rev 05 Init'!C12 -> 234200.37 | H9: 39059.06666 | J9: ='I10 Input 05 Trueup Sett'!C10 -> 18443214.08 | K9: ='I10 Input 05 Trueup Sett'!D10 -> 322522.32 | L9: 986794.69 | M9: 18286.43 | N9: ='I10 Input 05 Trueup Sett'!C11 -> 19430008.77 | O9: ='I10 Input 05 Trueup Sett'!D11 -> 340808.75 | Q9: ='I10 Input 05 Trueup Sett'!B76 -> 1424300.1 | S9: ='I10 Input 05 Trueup Sett'!C11 -> 19430008.77 | T9: ='I10 Input 05 Trueup Sett'!C30 -> 19400359.12 | U9: 29649.64566 | V9: -0.00152597181 | X9: =SUM('I10 Input 05 Trueup Sett'!C20:C25) -> 8208225.459 | Y9: ='I10 Input 05 Trueup Sett'!C44 -> 8175995.618 | Z9: 32229.8414 | AA9: -0.003926529742 | AC9: 0.4224509395 | AE9: ='I10 Input 05 Trueup Sett'!D11 -> 340808.75 | AF9: ='I10 Input 05 Trueup Sett'!D30 -> 966224.1099 | AG9: 771734.0744 | AH9: 194490.0355 | AJ9: 8208225.459 | AK9: 11192133.67 | AL9: 19400359.12 | AN9: ='I10 Input 05 Trueup Sett'!B64 -> 5179605.98 | AP9: 6012527.685
A10: 202306 | B10: ='I12 Input 06 Trueup Sett'!V15 -> 8947569.769 | C10: ='I12 Input 06 Trueup Sett'!W15 -> 850880.0626 | D10: ='I12 Input 06 Trueup Sett'!X15 -> 278065.3733 | E10: ='I12 Input 06 Trueup Sett'!Y15 -> 741753.5304 | F10: ='I12 Input 06 Trueup Sett'!Z15 -> -168938.8412 | G10: ='I13 Input Rev 06 Init'!C12 -> 187350.39 | H10: 18411.54883 | J10: ='I12 Input 06 Trueup Sett'!C10 -> 19093937.1 | K10: ='I12 Input 06 Trueup Sett'!D10 -> 580068.36 | L10: 784522.09 | M10: 26149.32 | N10: ='I12 Input 06 Trueup Sett'!C11 -> 19878459.19 | O10: ='I12 Input 06 Trueup Sett'!D11 -> 606217.68 | Q10: ='I12 Input 06 Trueup Sett'!B76 -> 1252078.52 | S10: ='I12 Input 06 Trueup Sett'!C11 -> 19878459.19 | T10: ='I12 Input 06 Trueup Sett'!C30 -> 19723055.69 | U10: 155403.4958 | V10: -0.007817683166 | X10: =SUM('I12 Input 06 Trueup Sett'!C20:C25) -> 8855819.796 | Y10: ='I12 Input 06 Trueup Sett'!C44 -> 8856425.793 | Z10: -605.9961828 | AA10: 6.842914566e-05 | AC10: 0.445498301 | AE10: ='I12 Input 06 Trueup Sett'!D11 -> 606217.68 | AF10: ='I12 Input 06 Trueup Sett'!D30 -> 1168245.204 | AG10: 850880.0626 | AH10: 317365.1413 | AJ10: 8855819.796 | AK10: 10867235.9 | AL10: 19723055.69 | AN10: ='I12 Input 06 Trueup Sett'!B64 -> 4723319.77 | AP10: 6143916.128
A11: 202307 | B11: ='I14 Input 07 Trueup Sett'!V15 -> 11012304.17 | C11: ='I14 Input 07 Trueup Sett'!W15 -> 1039187.073 | D11: ='I14 Input 07 Trueup Sett'!X15 -> 452436.5705 | E11: ='I14 Input 07 Trueup Sett'!Y15 -> 545109.0352 | F11: ='I14 Input 07 Trueup Sett'!Z15 -> 41641.46764 | G11: ='I15 Input Rev 07 Init'!C12 -> 162513.8 | H11: 204155.2676 | J11: ='I14 Input 07 Trueup Sett'!C10 -> 20874316.19 | K11: ='I14 Input 07 Trueup Sett'!D10 -> 850093.66 | L11: 863913.49 | M11: 37464.83 | N11: ='I14 Input 07 Trueup Sett'!C11 -> 21738229.68 | O11: ='I14 Input 07 Trueup Sett'!D11 -> 887558.49 | Q11: ='I14 Input 07 Trueup Sett'!B76 -> 889244.76 | S11: ='I14 Input 07 Trueup Sett'!C11 -> 21738229.68 | T11: ='I14 Input 07 Trueup Sett'!C30 -> 21440210.96 | U11: 298018.7249 | V11: -0.01370942939 | X11: =SUM('I14 Input 07 Trueup Sett'!C20:C25) -> 10827432.12 | Y11: ='I14 Input 07 Trueup Sett'!C44 -> 10828810.21 | Z11: -1378.092009 | AA11: 0.0001272778249 | AC11: 0.4980825155 | AE11: ='I14 Input 07 Trueup Sett'!D11 -> 887558.49 | AF11: ='I14 Input 07 Trueup Sett'!D30 -> 1447845.124 | AG11: 1039187.073 | AH11: 408658.051 | AJ11: 10827432.12 | AK11: 10612778.83 | AL11: 21440210.96 | AN11: ='I14 Input 07 Trueup Sett'!B64 -> 3986098.22 | AP11: 6626680.613
A12: 202308 | B12: ='I16 Input 08 Trueup Sett'!V15 -> 9876604.333 | C12: ='I16 Input 08 Trueup Sett'!W15 -> 940197.731 | D12: ='I16 Input 08 Trueup Sett'!X15 -> 314189.7532 | E12: ='I16 Input 08 Trueup Sett'!Y15 -> 751609.603 | F12: ='I16 Input 08 Trueup Sett'!Z15 -> -125601.6252 | G12: ='I17 Input Rev 08 Init'!C12 -> -3669.12 | H12: -129270.7452 | J12: ='I16 Input 08 Trueup Sett'!C10 -> 19944761.83 | K12: ='I16 Input 08 Trueup Sett'!D10 -> 625707.61 | L12: 770241.5 | M12: 26177.97 | N12: ='I16 Input 08 Trueup Sett'!C11 -> 20715003.33 | O12: ='I16 Input 08 Trueup Sett'!D11 -> 651885.58 | Q12: ='I16 Input 08 Trueup Sett'!B76 -> 1212483.09 | S12: ='I16 Input 08 Trueup Sett'!C11 -> 20715003.33 | T12: ='I16 Input 08 Trueup Sett'!C30 -> 20481405.14 | U12: 233598.1852 | V12: -0.0112767631 | X12: =SUM('I16 Input 08 Trueup Sett'!C20:C25) -> 9736318.599 | Y12: ='I16 Input 08 Trueup Sett'!C44 -> 12905684.85 | Z12: -3169366.251 | AA12: 0.3255199816 | AC12: 0.4700128908 | AE12: ='I16 Input 08 Trueup Sett'!D11 -> 651885.58 | AF12: ='I16 Input 08 Trueup Sett'!D30 -> 1260760.111 | AG12: 940197.731 | AH12: 320562.3803 | AJ12: 9736318.599 | AK12: 10745086.55 | AL12: 20481405.14 | AN12: ='I16 Input 08 Trueup Sett'!B64 -> 4268877.49 | AP12: 6476209.056
A13: 202309 | B13: ='I18 Input 09 Trueup Sett'!V15 -> 8830725.696 | C13: ='I18 Input 09 Trueup Sett'!W15 -> 827366.793 | D13: ='I18 Input 09 Trueup Sett'!X15 -> 366760.9232 | E13: ='I18 Input 09 Trueup Sett'!Y15 -> 449483.9514 | F13: ='I18 Input 09 Trueup Sett'!Z15 -> 11121.91833 | G13: ='I19 Input Rev 09 Init'!C12 -> 94247.97 | H13: 105369.8883 | J13: ='I18 Input 09 Trueup Sett'!C10 -> 18297579.24 | K13: ='I18 Input 09 Trueup Sett'!D10 -> 733006.83 | L13: 741934.17 | M13: 31189.95 | N13: ='I18 Input 09 Trueup Sett'!C11 -> 19039513.41 | O13: ='I18 Input 09 Trueup Sett'!D11 -> 764196.78 | Q13: ='I18 Input 09 Trueup Sett'!B76 -> 846173.17 | S13: ='I18 Input 09 Trueup Sett'!C11 -> 19039513.41 | T13: ='I18 Input 09 Trueup Sett'!C30 -> 18845241.58 | U13: 194271.8323 | V13: -0.0102036133 | X13: =SUM('I18 Input 09 Trueup Sett'!C20:C25) -> 8717222.629 | Y13: ='I18 Input 09 Trueup Sett'!C44 -> 8714436.59 | Z13: 2786.039164 | AA13: -0.0003196016991 | AC13: 0.4578490239 | AE13: ='I18 Input 09 Trueup Sett'!D11 -> 764196.78 | AF13: ='I18 Input 09 Trueup Sett'!D30 -> 1206944.155 | AG13: 827366.793 | AH13: 379577.3618 | AJ13: 8717222.629 | AK13: 10128018.95 | AL13: 18845241.58 | AN13: ='I18 Input 09 Trueup Sett'!B64 -> 3924844.59 | AP13: 6203174.358
A14: 202310 | B14: ='I20 Input 10 Trueup Sett'!V15 -> 8605783.517 | C14: ='I20 Input 10 Trueup Sett'!W15 -> 804711.1978 | D14: ='I20 Input 10 Trueup Sett'!X15 -> 273210.38 | E14: ='I20 Input 10 Trueup Sett'!Y15 -> 731319.4957 | F14: ='I20 Input 10 Trueup Sett'!Z15 -> -199818.678 | G14: ='I21 Input Rev 10 Init'!C12 -> 11011.89 | H14: -188806.788 | J14: ='I20 Input 10 Trueup Sett'!C10 -> 18253066.7 | K14: ='I20 Input 10 Trueup Sett'!D10 -> 576644.25 | L14: 455092.03 | M14: 15146.22 | N14: ='I20 Input 10 Trueup Sett'!C11 -> 18708158.73 | O14: ='I20 Input 10 Trueup Sett'!D11 -> 591790.47 | Q14: ='I20 Input 10 Trueup Sett'!B76 -> 1210447.91 | S14: ='I20 Input 10 Trueup Sett'!C11 -> 18708158.73 | T14: ='I20 Input 10 Trueup Sett'!C30 -> 18538793.62 | U14: 169365.1053 | V14: -0.009053007715 | X14: =SUM('I20 Input 10 Trueup Sett'!C20:C25) -> 8507471.688 | Y14: ='I20 Input 10 Trueup Sett'!C44 -> 8497050.503 | Z14: 10421.18517 | AA14: -0.00122494503 | AC14: 0.4547466061 | AE14: ='I20 Input 10 Trueup Sett'!D11 -> 591790.47 | AF14: ='I20 Input 10 Trueup Sett'!D30 -> 1112296.276 | AG14: 804711.1978 | AH14: 307585.0782 | AJ14: 8507471.688 | AK14: 10031321.94 | AL14: 18538793.62 | AN14: ='I20 Input 10 Trueup Sett'!B64 -> 3882685 | AP14: 6148636.937
A15: 202311 | B15: ='I22 Input 11 Trueup Sett'!V15 -> 9733850.154 | C15: ='I22 Input 11 Trueup Sett'!W15 -> 1095956.238 | D15: ='I22 Input 11 Trueup Sett'!X15 -> 298564.759 | E15: ='I22 Input 11 Trueup Sett'!Y15 -> 690129.9907 | F15: ='I22 Input 11 Trueup Sett'!Z15 -> 107261.4882 | G15: ='I23 Input Rev 11 Init'!C12 -> 162905.98 | H15: 270167.4682 | J15: ='I22 Input 11 Trueup Sett'!C10 -> 19495196.68 | K15: ='I22 Input 11 Trueup Sett'!D10 -> 593503.34 | L15: 294078.53 | M15: 9126.15 | N15: ='I22 Input 11 Trueup Sett'!C11 -> 19789275.21 | O15: ='I22 Input 11 Trueup Sett'!D11 -> 602629.49 | Q15: ='I22 Input 11 Trueup Sett'!B76 -> 1135689.11 | S15: ='I22 Input 11 Trueup Sett'!C11 -> 19789275.21 | T15: ='I22 Input 11 Trueup Sett'!C36 -> 19586993.9 | U15: 202281.3109 | V15: -0.0102217645 | X15: =SUM('I22 Input 11 Trueup Sett'!C20:C31) -> 9611049.948 | Y15: ='I22 Input 11 Trueup Sett'!C46 -> 9619678.027 | Z15: -8628.078351 | AA15: 0.0008977248477 | AC15: 0.4856696289 | AE15: ='I22 Input 11 Trueup Sett'!D11 -> 602629.49 | AF15: ='I22 Input 11 Trueup Sett'!D36 -> 1383061.484 | AG15: 1095956.238 | AH15: 287105.2464 | AJ15: 9611049.948 | AK15: 9975943.951 | AL15: 19586993.9 | AN15: ='I22 Input 11 Trueup Sett'!B64 -> 3755295.76 | AP15: 6220648.191
A16: 202312 | B16: ='I24 Input 12 Trueup Sett'!V15 -> 10938556.13 | C16: ='I24 Input 12 Trueup Sett'!W15 -> 1191485.421 | D16: ='I24 Input 12 Trueup Sett'!X15 -> 340643.8702 | E16: ='I24 Input 12 Trueup Sett'!Y15 -> 724351.2108 | F16: ='I24 Input 12 Trueup Sett'!Z15 -> 126490.3402 | G16: ='I25 Input Rev 12 Init'!C12 -> -54941.7 | H16: 71548.64018 | J16: ='I24 Input 12 Trueup Sett'!C10 -> 19766502.12 | K16: ='I24 Input 12 Trueup Sett'!D10 -> 617049.42 | L16: 145030.07 | M16: 4616.89 | N16: ='I24 Input 12 Trueup Sett'!C11 -> 19911532.19 | O16: ='I24 Input 12 Trueup Sett'!D11 -> 621666.31 | Q16: ='I24 Input 12 Trueup Sett'!B76 -> 1130245.18 | S16: ='I24 Input 12 Trueup Sett'!C11 -> 19911532.19 | T16: ='I24 Input 12 Trueup Sett'!C36 -> 19659590.96 | U16: 251941.2269 | V16: -0.01265303064 | X16: =SUM('I24 Input 12 Trueup Sett'!C20:C31) -> 10777025.99 | Y16: ='I24 Input 12 Trueup Sett'!C46 -> 10798327.26 | Z16: -21301.26218 | AA16: 0.001976543639 | AC16: 0.5412454397 | AE16: ='I24 Input 12 Trueup Sett'!D11 -> 621666.31 | AF16: ='I24 Input 12 Trueup Sett'!D36 -> 1452055.137 | AG16: 1191485.421 | AH16: 260569.7161 | AJ16: 10777025.99 | AK16: 8882564.968 | AL16: 19659590.96 | AN16: ='I24 Input 12 Trueup Sett'!B64 -> 2850485.17 | AP16: 6032079.798
B17: =SUM(B5:B16) -> 117995903 | C17: 11414549.57 | D17: 3603728.892 | E17: 8686303.16 | F17: =SUM(F5:F16) -> -875482.4847 | G17: =SUM(G5:G16) -> 990621.48 | H17: =SUM(H5:H16) -> 115138.9953 | J17: 240546306.4 | K17: 7171157.13 | L17: 6613684.78 | M17: 202978.96 | N17: 247159991.2 | O17: 7374136.09 | Q17: 14339308.59 | S17: =SUM(S5:S16) -> 247159991.2 | T17: 244830418 | U17: 2329573.234 | V17: =T17/S17-1 -> -0.009425365417 | X17: =SUM(X5:X16) -> 116568189.8 | Y17: 119874394.5 | Z17: -3306204.673 | AA17: =Y17/X17-1 -> 0.02836283791 | AC17: 0.4716304982 | AE17: =SUM(AE5:AE16) -> 7374136.09 | AF17: 15030200.31 | AG17: 11414549.57 | AH17: 3615650.744 | AJ17: =SUM(AJ5:AJ16) -> 116568189.8 | AK17: 128262228.2 | AL17: 244830418 | AN17: 53014229.29 | AP17: =SUM(AP5:AP16) -> 75247998.89
A20: 4705 GA | B20: ='Rec1 1588 Commodity'!F24 -> -577735.1599
A22: 4707 GA | B22: ='Rec2 1589 Class B'!J24 -> 577735.1599
A24: Should Be $0 | B24: =SUM(B20:B22) -> 1.513399184e-09
A26: (Owed To)/Owed From IESO | B26: =-H17 -> -115138.9953
A28: (Owed To)/Owed From Power Consumer | B28: ='Rec1 1588 Commodity'!L20 -> 154756.4544
A30: (Owed To)/Owed From Class B | B30: ='Rec2 1589 Class B'!K20 -> 230701.8102
A32: (Owed To)/Owed From | B32: =SUM(B26:B30) -> 270319.2693
A35: Unresolved Difference as % of Expected GA Payments to IESO | B35: ='Rev3 GA Analysis '!D67 -> -0.002028157817
A37: Account 1588 as % of Account 4705 | B37: ='Rev3 GA Analysis '!G99 -> 0.010191432

Sheet I1b RPP Rates
B4: =Admin!B8 -> 202301 | C4: =B4+1 -> 202302 | D4: =C4+1 -> 202303 | E4: 202304 | F4: 202305 | G4: 202306 | H4: 202307 | I4: 202308 | J4: 202309 | K4: 202310 | L4: 202311 | M4: 202312
A5: RPPT1 | B5: ='I2 Input 01 Trueup Sett '!Q6 -> 0.08700034793 | C5: ='I4 Input 02 Trueup Sett'!Q6 -> 0.0869999922 | D5: ='I6 Input 03 Trueup Sett'!Q6 -> 0.08700020612 | E5: ='I8 Input 04 Trueup Sett'!Q6 -> 0.08700014176 | F5: ='I10 Input 05 Trueup Sett'!Q6 -> 0.08700035284 | G5: ='I12 Input 06 Trueup Sett'!Q6 -> 0.08700007152 | H5: ='I14 Input 07 Trueup Sett'!Q6 -> 0.087000317 | I5: ='I16 Input 08 Trueup Sett'!Q6 -> 0.08700054023 | J5: ='I18 Input 09 Trueup Sett'!Q6 -> 0.08699989983 | K5: ='I20 Input 10 Trueup Sett'!Q6 -> 0.08702943147 | L5: ='I22 Input 11 Trueup Sett'!Q6 -> 0.1029971029 | M5: ='I24 Input 12 Trueup Sett'!Q6 -> 0.1030001606
A6: RPPT2 | B6: ='I2 Input 01 Trueup Sett '!Q7 -> 0.1030001125 | C6: ='I4 Input 02 Trueup Sett'!Q7 -> 0.1030006057 | D6: ='I6 Input 03 Trueup Sett'!Q7 -> 0.1030001198 | E6: ='I8 Input 04 Trueup Sett'!Q7 -> 0.1030018462 | F6: ='I10 Input 05 Trueup Sett'!Q7 -> 0.1029994908 | G6: ='I12 Input 06 Trueup Sett'!Q7 -> 0.1030009826 | H6: ='I14 Input 07 Trueup Sett'!Q7 -> 0.1030002516 | I6: ='I16 Input 08 Trueup Sett'!Q7 -> 0.1029997367 | J6: ='I18 Input 09 Trueup Sett'!Q7 -> 0.1030013799 | K6: ='I20 Input 10 Trueup Sett'!Q7 -> 0.1039439819 | L6: ='I22 Input 11 Trueup Sett'!Q7 -> 0.1250004963 | M6: ='I24 Input 12 Trueup Sett'!Q7 -> 0.124999833
A7: RPPTOUMID | B7: ='I2 Input 01 Trueup Sett '!Q8 -> 0.1019930526 | C7: ='I4 Input 02 Trueup Sett'!Q8 -> 0.101993965 | D7: ='I6 Input 03 Trueup Sett'!Q8 -> 0.1019921321 | E7: ='I8 Input 04 Trueup Sett'!Q8 -> 0.1019858083 | F7: ='I10 Input 05 Trueup Sett'!Q8 -> 0.101975208 | G7: ='I12 Input 06 Trueup Sett'!Q8 -> 0.1019931354 | H7: ='I14 Input 07 Trueup Sett'!Q8 -> 0.1019953278 | I7: ='I16 Input 08 Trueup Sett'!Q8 -> 0.1019983693 | J7: ='I18 Input 09 Trueup Sett'!Q8 -> 0.1020019068 | K7: ='I20 Input 10 Trueup Sett'!Q8 -> 0.1020173665 | L7: ='I22 Input 11 Trueup Sett'!Q8 -> 0.1219873361 | M7: ='I24 Input 12 Trueup Sett'!Q8 -> 0.121998452
A8: RPPTOUOFF | B8: ='I2 Input 01 Trueup Sett '!Q9 -> 0.07399749578 | C8: ='I4 Input 02 Trueup Sett'!Q9 -> 0.07399799999 | D8: ='I6 Input 03 Trueup Sett'!Q9 -> 0.07399263894 | E8: ='I8 Input 04 Trueup Sett'!Q9 -> 0.07399100086 | F8: ='I10 Input 05 Trueup Sett'!Q9 -> 0.07398692666 | G8: ='I12 Input 06 Trueup Sett'!Q9 -> 0.07399410976 | H8: ='I14 Input 07 Trueup Sett'!Q9 -> 0.07399799274 | I8: ='I16 Input 08 Trueup Sett'!Q9 -> 0.07399880081 | J8: ='I18 Input 09 Trueup Sett'!Q9 -> 0.07400035659 | K8: ='I20 Input 10 Trueup Sett'!Q9 -> 0.07400751085 | L8: ='I22 Input 11 Trueup Sett'!Q9 -> 0.08699072482 | M8: ='I24 Input 12 Trueup Sett'!Q9 -> 0.08699906739
A9: RPPTOUON | B9: ='I2 Input 01 Trueup Sett '!Q10 -> 0.1509855131 | C9: ='I4 Input 02 Trueup Sett'!Q10 -> 0.1509706305 | D9: ='I6 Input 03 Trueup Sett'!Q10 -> 0.1509424488 | E9: ='I8 Input 04 Trueup Sett'!Q10 -> 0.1508994712 | F9: ='I10 Input 05 Trueup Sett'!Q10 -> 0.1508389935 | G9: ='I12 Input 06 Trueup Sett'!Q10 -> 0.150942493 | H9: ='I14 Input 07 Trueup Sett'!Q10 -> 0.1509600027 | I9: ='I16 Input 08 Trueup Sett'!Q10 -> 0.1509723981 | J9: ='I18 Input 09 Trueup Sett'!Q10 -> 0.1509576518 | K9: ='I20 Input 10 Trueup Sett'!Q10 -> 0.1509657748 | L9: ='I22 Input 11 Trueup Sett'!Q10 -> 0.1819776205 | M9: ='I24 Input 12 Trueup Sett'!Q10 -> 0.1819975505
A10: RPPULOMID | B10: ='I2 Input 01 Trueup Sett '!Q11 -> 0 | C10: ='I4 Input 02 Trueup Sett'!Q11 -> 0 | D10: ='I6 Input 03 Trueup Sett'!Q11 -> 0 | E10: ='I8 Input 04 Trueup Sett'!Q11 -> 0 | F10: ='I10 Input 05 Trueup Sett'!Q11 -> 0 | G10: ='I12 Input 06 Trueup Sett'!Q11 -> 0 | H10: ='I14 Input 07 Trueup Sett'!Q11 -> 0 | I10: ='I16 Input 08 Trueup Sett'!Q11 -> 0 | J10: ='I18 Input 09 Trueup Sett'!Q11 -> 0 | K10: ='I20 Input 10 Trueup Sett'!Q11 -> 0 | L10: ='I22 Input 11 Trueup Sett'!Q11 -> 0.1220040582 | M10: ='I24 Input 12 Trueup Sett'!Q11 -> 0.1220016532
A11: RPPULOOFF | B11: ='I2 Input 01 Trueup Sett '!Q12 -> 0 | C11: ='I4 Input 02 Trueup Sett'!Q12 -> 0 | D11: ='I6 Input 03 Trueup Sett'!Q12 -> 0 | E11: ='I8 Input 04 Trueup Sett'!Q12 -> 0 | F11: ='I10 Input 05 Trueup Sett'!Q12 -> 0 | G11: ='I12 Input 06 Trueup Sett'!Q12 -> 0 | H11: ='I14 Input 07 Trueup Sett'!Q12 -> 0 | I11: ='I16 Input 08 Trueup Sett'!Q12 -> 0 | J11: ='I18 Input 09 Trueup Sett'!Q12 -> 0 | K11: ='I20 Input 10 Trueup Sett'!Q12 -> 0 | L11: ='I22 Input 11 Trueup Sett'!Q12 -> 0.08701100515 | M11: ='I24 Input 12 Trueup Sett'!Q12 -> 0.08699616815
A12: RPPULOON | B12: ='I2 Input 01 Trueup Sett '!Q13 -> 0 | C12: ='I4 Input 02 Trueup Sett'!Q13 -> 0 | D12: ='I6 Input 03 Trueup Sett'!Q13 -> 0 | E12: ='I8 Input 04 Trueup Sett'!Q13 -> 0 | F12: ='I10 Input 05 Trueup Sett'!Q13 -> 0 | G12: ='I12 Input 06 Trueup Sett'!Q13 -> 0 | H12: ='I14 Input 07 Trueup Sett'!Q13 -> 0 | I12: ='I16 Input 08 Trueup Sett'!Q13 -> 0 | J12: ='I18 Input 09 Trueup Sett'!Q13 -> 0 | K12: ='I20 Input 10 Trueup Sett'!Q13 -> 0 | L12: ='I22 Input 11 Trueup Sett'!Q13 -> 0.2860148392 | M12: ='I24 Input 12 Trueup Sett'!Q13 -> 0.2859891877
A13: RPPULOOVN | B13: ='I2 Input 01 Trueup Sett '!Q14 -> 0 | C13: ='I4 Input 02 Trueup Sett'!Q14 -> 0 | D13: ='I6 Input 03 Trueup Sett'!Q14 -> 0 | E13: ='I8 Input 04 Trueup Sett'!Q14 -> 0 | F13: ='I10 Input 05 Trueup Sett'!Q14 -> 0 | G13: ='I12 Input 06 Trueup Sett'!Q14 -> 0 | H13: ='I14 Input 07 Trueup Sett'!Q14 -> 0 | I13: ='I16 Input 08 Trueup Sett'!Q14 -> 0 | J13: ='I18 Input 09 Trueup Sett'!Q14 -> 0 | K13: ='I20 Input 10 Trueup Sett'!Q14 -> 0 | L13: ='I22 Input 11 Trueup Sett'!Q14 -> 0.02800721317 | M13: ='I24 Input 12 Trueup Sett'!Q14 -> 0.02799739792

Sheet I2 Input 01 Trueup Sett
A1: Date: | B1: =Admin!B8 -> 202301 | C1: Trueup | K1: ="Data for 1st True up of RPP Settlement based on Actual IESO Invoice" -> Data for 1st True up of RPP Settlement based on Actual IESO Invoice | P1: For Reconciliation
A3: Wholesale Electricty | B3: Year | C3: 2023 | E3: Rate | P3: Actual RPP Revenue and GA
B4: dateref | C4: 202301 | K4: Wholesale Volume data per IESO Power Bill: | L4: GA RPP/non-RPP Ratios | M4: GA Volumes | N4: Energy Volumes | P4: =B1 -> 202301
K5: AQEW | M5: =C10 -> 23466312.81 | N5: =+M5 -> 23466312.81 | P5: RPP Revenue Prices | Q5: RPP Rate | R5: Estimated RPP Energy Price | S5: GA actual IESO billed | T5: Total Commodity | U5: Difference | V5: kWh Volumes | W5: $ Estimated RPP Revenue | X5: $ Estimated RPP Energy | Y5: $ Estimated GA | Z5: $ Estimated RPP Settlement
B6: Wholesale | K6: Embedded Generation | M6: =SUM(C8:C9) -> 109117.8 | N6: =+M6 -> 109117.8 | P6: RPPT1 | Q6: =E20 -> 0.08700034793 | R6: =E39 -> 0.03483921668 | S6: =L32 -> 0.05380000114 | T6: =R6+S6 -> 0.08863921782 | U6: =+Q6-T6 -> -0.001638869887 | V6: =M18 -> 1016157.901 | W6: =Q6*V6 -> 88406.09095 | X6: =R6*V6 -> 35402.1453 | Y6: =+V6*S6 -> 54669.29624 | Z6: =W6-X6-Y6 -> -1665.350585
B7: Source | C7: kWh | D7: Total Cost | K7: Class A customer Volumes for GA (TLF included) | M7: =-B57 -> -5244745.87 | P7: RPPT2 | Q7: =E21 -> 0.1030001125 | R7: =R6 -> 0.03483921668 | S7: =S6 -> 0.05380000114 | T7: =R7+S7 -> 0.08863921782 | U7: =+Q7-T7 -> 0.01436089469 | V7: =M19 -> 332378.4391 | W7: =Q7*V7 -> 34235.01662 | X7: =R7*V7 -> 11579.80446 | Y7: =+V7*S7 -> 17881.9604 | Z7: =W7-X7-Y7 -> 4773.25176
B8: FIT | C8: 102547.99 | D8: 3915.91 | E8: =D8/C8 -> 0.03818612144 | M8: =+M5+M6+M7 -> 18330684.74 | N8: =+N5+N6+N7 -> 23575430.61 | P8: RPPTOUMID | Q8: =E23 -> 0.1019930526 | R8: =E40 -> 0.03561543194 | S8: =S7 -> 0.05380000114 | T8: 0.08941543308 | U8: 0.01257761952 | V8: 1829102.328 | W8: 186555.73 | X8: 65144.26947 | Y8: 98405.70734 | Z8: 23005.75315
B9: microFIT | C9: 6569.81 | D9: 246.12 | E9: =D9/C9 -> 0.0374622706 | P9: RPPTOUOFF | Q9: =E24 -> 0.07399749578 | R9: =R8 -> 0.03561543194 | S9: 0.05380000114 | T9: 0.08941543308 | U9: -0.0154179373 | V9: 6576585.052 | W9: 486650.8247 | X9: 234227.9173 | Y9: 353820.2833 | Z9: -101397.376
B10: WHOLESALE | C10: 23466312.81 | D10: 801678.9 | E10: =D10/C10 -> 0.03416296827 | K10: Estimated Retail Volume Revenue Data (TLF Included) | L10: RPP/non-RPP Ratios | M10: GA Volumes | N10: Energy Volumes | P10: RPPTOUON | Q10: 0.1509855131 | R10: =R9 -> 0.03561543194 | S10: 0.05380000114 | T10: 0.08941543308 | U10: 0.06157008005 | V10: 1887319.231 | W10: 284957.8626 | X10: 67217.68963 | Y10: 101537.7768 | Z10: 116202.3961
B11: Grand Total | C11: 23575430.61 | D11: 805840.93 | K11: Estimated Retail Revenue Data (Net of Retail Billed/Unbilled) | M11: =+M15 -> 18330684.74 | N11: =+N15 -> 23575430.61 | P11: RPPULOMID | Q11: 0 | R11: 0 | S11: 0 | T11: 0 | U11: 0 | V11: 0 | W11: 0 | X11: 0 | Y11: 0 | Z11: 0
P12: RPPULOOFF | Q12: 0 | R12: 0 | S12: 0 | T12: 0 | U12: 0 | V12: 0 | W12: 0 | X12: 0 | Y12: 0 | Z12: 0
K13: Estimated RPP Sales Quantities | L13: =SUM(C20:C25)/(C30-B57) -> 0.6350850018 | M13: =M8*L13 -> 11641542.95 | N13: =M13 -> 11641542.95 | P13: RPPULOON | Q13: 0 | R13: 0 | S13: 0 | T13: 0 | U13: 0 | V13: 0 | W13: 0 | X13: 0 | Y13: 0 | Z13: 0
A14: RPP Revenue Volume and Price Data | K14: Estimated non-RPP Sales Quantities | L14: =1-L13 -> 0.3649149982 | M14: =M8*L14 -> 6689141.788 | N14: =N8-N13 -> 11933887.66 | P14: RPPULOOVN | Q14: 0 | R14: 0 | S14: 0 | T14: 0 | U14: 0 | V14: 0 | W14: 0 | X14: 0 | Y14: 0 | Z14: 0
B15: bill_year | C15: 2023 | K15: Estimated Retail Revenue kWh Volumes | L15: =+L13+L14 -> 1 | M15: =+M13+M14 -> 18330684.74 | N15: =+N13+N14 -> 23575430.61 | V15: =SUM(V6:V14) -> 11641542.95 | W15: =SUM(W6:W14) -> 1080805.525 | X15: =SUM(X6:X14) -> 413571.8262 | Y15: =SUM(Y6:Y14) -> 626315.0241 | Z15: =SUM(Z6:Z14) -> 40918.67447
B16: bill_month | C16: 1 | Z16: =W15-X15-Y15-Z15 -> -2.619344741e-10
K17: Estimated RPP Revenue Volume and Price Data | L17: Actual % | M17: kWh Volumes
B18: Row Labels | C18: usagebilled | D18: amountbilled | E18: Rate | K18: RPPT1 | L18: =C20/SUM($C$20:$C$25) -> 0.08728721831 | M18: =$M$13*L18 -> 1016157.901
B19: RPPTIER | K19: RPPT2 | L19: =C21/SUM($C$20:$C$25) -> 0.02855106411 | M19: =$M$13*L19 -> 332378.4391
B20: RPPT1 | C20: 990918.4762 | D20: 86210.2522 | E20: =D20/C20 -> 0.08700034793 | K20: RPPTOUMID | L20: =C23/SUM($C$20:$C$25) -> 0.1571185483 | M20: 1829102.328
B21: RPPT2 | C21: 324122.7924 | D21: 33384.68408 | E21: =D21/C21 -> 0.1030001125 | K21: RPPTOUOFF | L21: =C24/SUM($C$20:$C$25) -> 0.5649238318 | M21: 6576585.052
B22: RPPTOU | K22: RPPTOUON | L22: 0.1621193375 | M22: 1887319.231
B23: RPPTOUMID | C23: 1783670.913 | D23: 181922.0413 | E23: 0.1019930526 | K23: RPPULOMID | L23: 0 | M23: 0
B24: RPPTOUOFF | C24: 6413235.218 | D24: 474563.346 | E24: 0.07399749578 | K24: RPPULOOFF | L24: 0 | M24: 0
B25: RPPTOUON | C25: 1840441.82 | D25: 277880.0525 | E25: 0.1509855131 | K25: RPPULOON | L25: 0 | M25: 0
B26: RETAIL | K26: RPPULOOVN | L26: 0 | M26: 0
B27: NSLS | C27: 3692424.376 | D27: 127540.0355 | E27: 0.0345410014 | L27: =SUM(L18:L26) -> 1 | M27: =SUM(M18:M26) -> 11641542.95
B28: INTERVAL
B29: HOEP | C29: 8075317.754 | D29: 273632.9379 | E29: 0.03388509855
B30: Grand Total | C30: 23120131.35 | D30: 1455133.35
K31: Global Adjustment | L31: per kWh
C32: =C30/C11-1 -> -0.01931244727 | K32: Class B - GA actual8 | L32: =B49/100 -> 0.05380000114 | N32: GA Posted Price
K33: Class B - GA actual IESO billed | L33: =+M33/M8 -> 0.05376906831 | M33: =B65 -> 985623.84 | N33: GA Billed by IESO CT 148
A34: RPP COP Volume and Price Data
B35: bill_year | C35: 2023
B36: bill_month | C36: 1
B38: Row Labels | C38: usagebilled | D38: amountbilled | E38: Rate
B39: RPPTIERED | C39: 1316491.121 | D39: 45865.51941 | E39: =D39/C39 -> 0.03483921668
B40: RPPTOU | C40: 10043751.32 | D40: 357712.5417 | E40: 0.03561543194
B41: Grand Total | C41: 11360242.44 | D41: 403578.0611
C43: =SUM(C20:C25)-C41 -> -7853.224341
C44: =C43/C41 -> -0.0006912902061
A46: Global Adjustment - Actual
A47: ga_actual | B47: year
A48: month | B48: 2023
A49: 202301 | B49: 5.380000114
A52: Class A kWh
A53: Year | B53: 2023
A55: Class A
A56: Source | B56: kWh
A57: 202301 | B57: 5244745.87
A60: IESO Class B
A61: chargetype | B61: 148
A63: Sum of chargeamount | B63: year
A64: month | B64: 2023
A65: 202301 | B65: 985623.84

Sheet I3 Input Rev 01 Init
A1: Reverse IESO Posted
A5: =Admin!B8 -> 202301
A6: RPP Revenue Prices | B6: kWh Volumes | C6: $ RPP Settlement
A7: RPPTiered_1 | B7: 977017.48 | C7: 4732.82
A8: RPPTiered_2 | B8: 298377.86 | C8: -3327.93
A9: RPPTOU_MID | B9: 1653542.88 | C9: -13838.93
A10: RPPTOU_OFF | B10: 5964539.41 | C10: 117105.43
A11: RPPTOU_ON | B11: 1735082.54 | C11: -99540.33
A12: Grand Total | B12: 10628560.17 | C12: 5131.06

Sheet I4 Input 02 Trueup Sett
A1: Date: | B1: =Admin!B8+1 -> 202302 | C1: Trueup | K1: ="Data for 1st True up of RPP Settlement based on Actual IESO Invoice" -> Data for 1st True up of RPP Settlement based on Actual IESO Invoice | P1: For Reconciliation
A3: Wholesale Electricty | B3: Year | C3: 2023 | E3: Rate | P3: Actual RPP Revenue and GA
B4: dateref | C4: 202302 | K4: Wholesale Volume data per IESO Power Bill: | L4: GA RPP/non-RPP Ratios | M4: GA Volumes | N4: Energy Volumes | P4: =B1 -> 202302
K5: AQEW | M5: =C10 -> 21427804.6 | N5: =+M5 -> 21427804.6 | P5: RPP Revenue Prices | Q5: RPP Rate | R5: Estimated RPP Energy Price | S5: GA actual IESO billed | T5: Total Commodity | U5: Difference | V5: kWh Volumes | W5: $ Estimated RPP Revenue | X5: $ Estimated RPP Energy | Y5: $ Estimated GA | Z5: $ Estimated RPP Settlement
B6: Wholesale | K6: Embedded Generation | M6: =SUM(C8:C9) -> 261979.01 | N6: =+M6 -> 261979.01 | P6: RPPT1 | Q6: =E20 -> 0.0869999922 | R6: =E42 -> 0.02427626259 | S6: =L32 -> 0.0825 | T6: =R6+S6 -> 0.1067762626 | U6: =+Q6-T6 -> -0.01977627039 | V6: =M18 -> 904357.1942 | W6: =Q6*V6 -> 78679.06884 | X6: =R6*V6 -> 21954.41272 | Y6: =+V6*S6 -> 74609.46852 | Z6: =W6-X6-Y6 -> -17884.81241
A7: FIT/mFIT | B7: Source | C7: kWh | D7: Total Cost | K7: Class A customer Volumes for GA (TLF included) | M7: =-B64 -> -4872482.76 | P7: RPPT2 | Q7: =E21 -> 0.1030006057 | R7: =R6 -> 0.02427626259 | S7: =S6 -> 0.0825 | T7: =R7+S7 -> 0.1067762626 | U7: =+Q7-T7 -> -0.003775656863 | V7: =M19 -> 328672.7689 | W7: =Q7*V7 -> 33853.49428 | X7: =R7*V7 -> 7978.946445 | Y7: =+V7*S7 -> 27115.50344 | Z7: =W7-X7-Y7 -> -1240.955596
B8: FIT | C8: 246458.66 | D8: 4730.18 | E8: =D8/C8 -> 0.01919258995 | M8: =+M5+M6+M7 -> 16817300.85 | N8: =+N5+N6+N7 -> 21689783.61 | P8: RPPTOUMID | Q8: =E23 -> 0.101993965 | R8: =E43 -> 0.02455935687 | S8: =S7 -> 0.0825 | T8: 0.1070593569 | U8: -0.00506539186 | V8: 1669989.008 | W8: 170328.8004 | X8: 41013.85602 | Y8: 137774.0931 | Z8: -8459.148727
B9: microFIT | C9: 15520.35 | D9: 303.63 | E9: =D9/C9 -> 0.01956334748 | P9: RPPTOUOFF | Q9: =E24 -> 0.07399799999 | R9: =R8 -> 0.02455935687 | S9: 0.0825 | T9: 0.1070593569 | U9: -0.03306135688 | V9: 5935948.384 | W9: 439248.3084 | X9: 145783.0747 | Y9: 489715.7417 | Z9: -196250.5079
B10: WHOLESALE | C10: 21427804.6 | D10: 504134.75 | E10: =D10/C10 -> 0.02352713026 | K10: Estimated Retail Volume Revenue Data (TLF Included) | L10: RPP/non-RPP Ratios | M10: GA Volumes | N10: Energy Volumes | P10: RPPTOUON | Q10: 0.1509706305 | R10: =R9 -> 0.02455935687 | S10: 0.0825 | T10: 0.1070593569 | U10: 0.04391127365 | V10: 1743893.446 | W10: 263276.6931 | X10: 42828.90149 | Y10: 143871.2093 | Z10: 76576.58232
A11: Total Wholesale Electricity | B11: Grand Total | C11: 21689783.61 | D11: 509168.56 | K11: Estimated Retail Revenue Data (Net of Retail Billed/Unbilled) | M11: =+M15 -> 16817300.85 | N11: =+N15 -> 21689783.61 | P11: RPPULOMID | Q11: 0 | R11: 0 | S11: 0 | T11: 0 | U11: 0 | V11: 0 | W11: 0 | X11: 0 | Y11: 0 | Z11: 0
P12: RPPULOOFF | Q12: 0 | R12: 0 | S12: 0 | T12: 0 | U12: 0 | V12: 0 | W12: 0 | X12: 0 | Y12: 0 | Z12: 0
K13: Estimated RPP Sales Quantities | L13: =SUM(C20:C25)/(C30-B64) -> 0.6292841458 | M13: =M8*L13 -> 10582860.8 | N13: =M13 -> 10582860.8 | P13: RPPULOON | Q13: 0 | R13: 0 | S13: 0 | T13: 0 | U13: 0 | V13: 0 | W13: 0 | X13: 0 | Y13: 0 | Z13: 0
A14: RPP Revenue Volume and Price Data | K14: Estimated non-RPP Sales Quantities | L14: =1-L13 -> 0.3707158542 | M14: =M8*L14 -> 6234440.049 | N14: =N8-N13 -> 11106922.81 | P14: RPPULOOVN | Q14: 0 | R14: 0 | S14: 0 | T14: 0 | U14: 0 | V14: 0 | W14: 0 | X14: 0 | Y14: 0 | Z14: 0
B15: bill_year | C15: 2023 | K15: Estimated Retail Revenue kWh Volumes | L15: =+L13+L14 -> 1 | M15: =+M13+M14 -> 16817300.85 | N15: =+N13+N14 -> 21689783.61 | V15: =SUM(V6:V14) -> 10582860.8 | W15: =SUM(W6:W14) -> 985386.3651 | X15: =SUM(X6:X14) -> 259559.1914 | Y15: =SUM(Y6:Y14) -> 873086.0161 | Z15: =SUM(Z6:Z14) -> -147258.8424
B16: bill_month | C16: 2 | Z16: =W15-X15-Y15-Z15 -> 0
K17: Estimated RPP Revenue Volume and Price Data | L17: Actual % | M17: kWh Volumes
B18: Row Labels | C18: usagebilled | D18: amountbilled | E18: Rate | K18: RPPT1 | L18: =C20/SUM($C$20:$C$25) -> 0.08545488892 | M18: =$M$13*L18 -> 904357.1942
B19: RPPTIER | K19: RPPT2 | L19: =C21/SUM($C$20:$C$25) -> 0.03105708136 | M19: =$M$13*L19 -> 328672.7689
B20: RPPT1 | C20: 898481.9727 | D20: 78167.92461 | E20: =D20/C20 -> 0.0869999922 | K20: RPPTOUMID | L20: =C23/SUM($C$20:$C$25) -> 0.1578012826 | M20: 1669989.008
B21: RPPT2 | C21: 326537.5226 | D21: 33633.56262 | E21: =D21/C21 -> 0.1030006057 | K21: RPPTOUOFF | L21: =C24/SUM($C$20:$C$25) -> 0.5609020562 | M21: 5935948.384
B22: RPPTOU | K22: RPPTOUON | L22: 0.1647846909 | M22: 1743893.446
B23: RPPTOUMID | C23: 1659139.804 | D23: 169222.2471 | E23: 0.101993965 | K23: RPPULOMID | L23: 0 | M23: 0
B24: RPPTOUOFF | C24: 5897385.068 | D24: 436394.7002 | E24: 0.07399799999 | K24: RPPULOOFF | L24: 0 | M24: 0
B25: RPPTOUON | C25: 1732564.117 | D25: 261566.2972 | E25: 0.1509706305 | K25: RPPULOON | L25: 0 | M25: 0
B26: RETAIL | K26: RPPULOOVN | L26: 0 | M26: 0
B27: NSLS | C27: 3390452.464 | D27: 79680.76868 | E27: 0.02350151478 | L27: =SUM(L18:L26) -> 1 | M27: =SUM(M18:M26) -> 10582860.8
B28: INTERVAL
B29: HOEP | C29: 7675967.857 | D29: 175644.9374 | E29: 0.02288244827
B30: Grand Total | C30: 21580528.81 | D30: 1234310.438
K31: Global Adjustment | L31: per kWh
C32: =C30/C11-1 -> -0.00503715511 | K32: Class B - GA actual8 | L32: =B69/100 -> 0.0825 | N32: GA Posted Price
K33: Class B - GA actual IESO billed | L33: =+M33/M8 -> 0.08248820856 | M33: =B77 -> 1387229.02 | N33: GA Billed by IESO CT 148
A37: RPP COP Volume and Price Data
B38: bill_year | C38: 2023
B39: bill_month | C39: 2
B41: Row Labels | C41: usagebilled | D41: amountbilled | E41: Rate
B42: RPPTIERED | C42: 1209160.524 | D42: 29353.89839 | E42: =D42/C42 -> 0.02427626259
B43: RPPTOU | C43: 9288784.333 | D43: 228126.5693 | E43: 0.02455935687
B44: Grand Total | C44: 10497944.86 | D44: 257480.4677
C46: =SUM(C20:C25)-C44 -> 16163.62811
C47: =C46/C44 -> 0.001539694515
A60: Year | B60: 2023
A62: Class A
A63: Source | B63: kWh
A64: 202302 | B64: 4872482.76
A67: ga_actual | B67: year
A68: month | B68: 2023
A69: 202302 | B69: 8.25
A73: chargetype | B73: 148
A75: Sum of chargeamount | B75: year
A76: month | B76: 2023
A77: 202302 | B77: 1387229.02

Sheet I5 Input Rev 02 Init
A1: Reverse IESO Posted
A5: =Admin!B11 -> 202302
A6: RPP Revenue Prices | B6: kWh Volumes | C6: $ RPP Settlement
A7: RPPTiered_1 | B7: 1006526.98 | C7: 1820.69
A8: RPPTiered_2 | B8: 318299.44 | C8: -4517.1
A9: RPPTOU_MID | B9: 1769390.18 | C9: -21652.63
A10: RPPTOU_OFF | B10: 6646244.17 | C10: 104754.1
A11: RPPTOU_ON | B11: 1823318.22 | C11: -111653.44
A12: Grand Total | B12: 11563778.99 | C12: -31248.38

Sheet I6 Input 03 Trueup Sett
A1: Date: | B1: =Admin!B8+2 -> 202303 | C1: Trueup | K1: ="Data for 1st True up of RPP Settlement based on Actual IESO Invoice" -> Data for 1st True up of RPP Settlement based on Actual IESO Invoice | P1: For Reconciliation
A3: Wholesale Electricty | B3: Year | C3: 2023 | E3: Rate | P3: Actual RPP Revenue and GA
B4: dateref | C4: 202303 | K4: Wholesale Volume data per IESO Power Bill: | L4: GA RPP/non-RPP Ratios | M4: GA Volumes | N4: Energy Volumes | P4: =B1 -> 202303
K5: AQEW | M5: =C10 -> 22623431.12 | N5: =+M5 -> 22623431.12 | P5: RPP Revenue Prices | Q5: RPP Rate | R5: Estimated RPP Energy Price | S5: GA actual IESO billed | T5: Total Commodity | U5: Difference | V5: kWh Volumes | W5: $ Estimated RPP Revenue | X5: $ Estimated RPP Energy | Y5: $ Estimated GA | Z5: $ Estimated RPP Settlement
B6: Wholesale | K6: Embedded Generation | M6: =SUM(C8:C9) -> 448568.38 | N6: =+M6 -> 448568.38 | P6: RPPT1 | Q6: =E20 -> 0.08700020612 | R6: =E42 -> 0.02498890485 | S6: =L32 -> 0.08029999733 | T6: =R6+S6 -> 0.1052889022 | U6: =+Q6-T6 -> -0.01828869606 | V6: =M18 -> 940603.6824 | W6: =Q6*V6 -> 81832.71424 | X6: =R6*V6 -> 23504.65592 | Y6: =+V6*S6 -> 75530.47318 | Z6: =W6-X6-Y6 -> -17202.41486
A7: FIT/mFIT | B7: Source | C7: kWh | D7: Total Cost | K7: Class A customer Volumes for GA (TLF included) | M7: =-B64 -> -5406559.1 | P7: RPPT2 | Q7: =E21 -> 0.1030001198 | R7: =R6 -> 0.02498890485 | S7: =S6 -> 0.08029999733 | T7: =R7+S7 -> 0.1052889022 | U7: =+Q7-T7 -> -0.002288782326 | V7: =M19 -> 293381.764 | W7: =Q7*V7 -> 30218.35685 | X7: =R7*V7 -> 7331.288983 | Y7: =+V7*S7 -> 23558.55486 | Z7: =W7-X7-Y7 -> -671.4869962
B8: FIT | C8: 421544.81 | D8: 9085.53 | E8: =D8/C8 -> 0.02155294001 | M8: =+M5+M6+M7 -> 17665440.4 | N8: =+N5+N6+N7 -> 23071999.5 | P8: RPPTOUMID | Q8: =E23 -> 0.1019921321 | R8: =E43 -> 0.02503068397 | S8: =S7 -> 0.08029999733 | T8: 0.1053306813 | U8: -0.003338549175 | V8: 1845815.975 | W8: 188258.7068 | X8: 46202.03634 | Y8: 148219.0179 | Z8: -6162.347401
B9: microFIT | C9: 27023.57 | D9: 574.17 | E9: =D9/C9 -> 0.0212470077 | P9: RPPTOUOFF | Q9: =E24 -> 0.07399263894 | R9: =R8 -> 0.02503068397 | S9: 0.08029999733 | T9: 0.1053306813 | U9: -0.03133804235 | V9: 5830516.677 | W9: 431415.3153 | X9: 145941.8203 | Y9: 468190.4736 | Z9: -182716.9786
B10: WHOLESALE | C10: 22623431.12 | D10: 569802.92 | E10: =D10/C10 -> 0.02518640594 | K10: Estimated Retail Volume Revenue Data (TLF Included) | L10: RPP/non-RPP Ratios | M10: GA Volumes | N10: Energy Volumes | P10: RPPTOUON | Q10: 0.1509424488 | R10: =R9 -> 0.02503068397 | S10: 0.08029999733 | T10: 0.1053306813 | U10: 0.0456117675 | V10: 1901438.395 | W10: 287007.7676 | X10: 47594.30355 | Y10: 152685.498 | Z10: 86727.96599
A11: Total Wholesale Electricity | B11: Grand Total | C11: 23071999.5 | D11: 579462.62 | K11: Estimated Retail Revenue Data (Net of Retail Billed/Unbilled) | M11: =+M15 -> 17665440.4 | N11: =+N15 -> 23071999.5 | P11: RPPULOMID | Q11: 0 | R11: 0 | S11: 0 | T11: 0 | U11: 0 | V11: 0 | W11: 0 | X11: 0 | Y11: 0 | Z11: 0
P12: RPPULOOFF | Q12: 0 | R12: 0 | S12: 0 | T12: 0 | U12: 0 | V12: 0 | W12: 0 | X12: 0 | Y12: 0 | Z12: 0
K13: Estimated RPP Sales Quantities | L13: =SUM(C20:C25)/(C30-B64) -> 0.6120286983 | M13: =M8*L13 -> 10811756.49 | N13: =M13 -> 10811756.49 | P13: RPPULOON | Q13: 0 | R13: 0 | S13: 0 | T13: 0 | U13: 0 | V13: 0 | W13: 0 | X13: 0 | Y13: 0 | Z13: 0
A14: RPP Revenue Volume and Price Data | K14: Estimated non-RPP Sales Quantities | L14: =1-L13 -> 0.3879713017 | M14: =M8*L14 -> 6853683.907 | N14: =N8-N13 -> 12260243.01 | P14: RPPULOOVN | Q14: 0 | R14: 0 | S14: 0 | T14: 0 | U14: 0 | V14: 0 | W14: 0 | X14: 0 | Y14: 0 | Z14: 0
B15: bill_year | C15: 2023 | K15: Estimated Retail Revenue kWh Volumes | L15: =+L13+L14 -> 1 | M15: =+M13+M14 -> 17665440.4 | N15: =+N13+N14 -> 23071999.5 | V15: =SUM(V6:V14) -> 10811756.49 | W15: =SUM(W6:W14) -> 1018732.861 | X15: =SUM(X6:X14) -> 270574.1051 | Y15: =SUM(Y6:Y14) -> 868184.0176 | Z15: =SUM(Z6:Z14) -> -120025.2618
B16: bill_month | C16: 3 | Z16: =W15-X15-Y15-Z15 -> 0
K17: Estimated RPP Revenue Volume and Price Data | L17: Actual % | M17: kWh Volumes
B18: Row Labels | C18: usagebilled | D18: amountbilled | E18: Rate | K18: RPPT1 | L18: =C20/SUM($C$20:$C$25) -> 0.08699823039 | M18: =$M$13*L18 -> 940603.6824
B19: RPPTIER | K19: RPPT2 | L19: =C21/SUM($C$20:$C$25) -> 0.02713543948 | M19: =$M$13*L19 -> 293381.764
B20: RPPT1 | C20: 933806.2024 | D20: 81241.33209 | E20: =D20/C20 -> 0.08700020612 | K20: RPPTOUMID | L20: =C23/SUM($C$20:$C$25) -> 0.1707230436 | M20: 1845815.975
B21: RPPT2 | C21: 291261.5759 | D21: 29999.97723 | E21: =D21/C21 -> 0.1030001198 | K21: RPPTOUOFF | L21: =C24/SUM($C$20:$C$25) -> 0.5392756191 | M21: 5830516.677
B22: RPPTOU | K22: RPPTOUON | L22: 0.1758676674 | M22: 1901438.395
B23: RPPTOUMID | C23: 1832476.779 | D23: 186898.2137 | E23: 0.1019921321 | K23: RPPULOMID | L23: 0 | M23: 0
B24: RPPTOUOFF | C24: 5788381.162 | D24: 428297.5974 | E24: 0.07399263894 | K24: RPPULOOFF | L24: 0 | M24: 0
B25: RPPTOUON | C25: 1887697.231 | D25: 284933.6426 | E25: 0.1509424488 | K25: RPPULOON | L25: 0 | M25: 0
B26: RETAIL | K26: RPPULOOVN | L26: 0 | M26: 0
B27: NSLS | C27: 3816673.984 | D27: 95610.54951 | E27: 0.02505075097 | L27: =SUM(L18:L26) -> 1 | M27: =SUM(M18:M26) -> 10811756.49
B28: INTERVAL
B29: HOEP | C29: 8394039.364 | D29: 209692.6337 | E29: 0.02498113537
B30: Grand Total | C30: 22944336.3 | D30: 1316673.946
K31: Global Adjustment | L31: per kWh
C32: =C30/C11-1 -> -0.005533252604 | K32: Class B - GA actual8 | L32: =B69/100 -> 0.08029999733 | N32: GA Posted Price
K33: Class B - GA actual IESO billed | L33: =+M33/M8 -> 0.08030034168 | M33: =B76 -> 1418540.9 | N33: GA Billed by IESO CT 148
A37: RPP COP Volume and Price Data
B38: bill_year | C38: 2023
B39: bill_month | C39: 3
B41: Row Labels | C41: usagebilled | D41: amountbilled | E41: Rate
B42: RPPTIERED | C42: 1226587.259 | D42: 30651.07231 | E42: =D42/C42 -> 0.02498890485
B43: RPPTOU | C43: 9595680.192 | D43: 240186.4384 | E43: 0.02503068397
B44: Grand Total | C44: 10822267.45 | D44: 270837.5107
C46: =SUM(C20:C25)-C44 -> -88644.50126
C47: =C46/C44 -> -0.00819093611
A60: Year | B60: 2023
A62: Class A
A63: Source | B63: kWh
A64: 202303 | B64: 5406559.1
A67: ga_actual | B67: year
A68: month | B68: 2023
A69: 202303 | B69: 8.029999733
A72: chargetype | B72: 148
A74: Sum of chargeamount | B74: year
A75: month | B75: 2023
A76: 202303 | B76: 1418540.9

Sheet I7 Input Rev 03 Init
A1: Reverse IESO Posted
A5: =Admin!B14 -> 202303
A6: RPP Revenue Prices | B6: kWh Volumes | C6: $ RPP Settlement
A7: RPPTiered_1 | B7: 956949.9 | C7: 16126.42
A8: RPPTiered_2 | B8: 329868.37 | C8: 280.83
A9: RPPTOU_MID | B9: 1817996.2 | C9: -323.58
A10: RPPTOU_OFF | B10: 6327729.68 | C10: 176053.2
A11: RPPTOU_ON | B11: 1877575.38 | C11: -92333.77
A12: Grand Total | B12: 11310119.53 | C12: 99803.1

Sheet I8 Input 04 Trueup Sett
A1: Date: | B1: =Admin!B8+3 -> 202304 | C1: Trueup | K1: ="Data for 1st True up of RPP Settlement based on Actual IESO Invoice" -> Data for 1st True up of RPP Settlement based on Actual IESO Invoice | P1: For Reconciliation
A3: Wholesale Electricty | B3: Year | C3: 2023 | E3: Rate | P3: Actual RPP Revenue and GA
B4: dateref | C4: 202304 | K4: Wholesale Volume data per IESO Power Bill: | L4: GA RPP/non-RPP Ratios | M4: GA Volumes | N4: Energy Volumes | P4: =B1 -> 202304
K5: AQEW | M5: =C10 -> 18860183.95 | N5: =+M5 -> 18860183.95 | P5: RPP Revenue Prices | Q5: RPP Rate | R5: Estimated RPP Energy Price | S5: GA actual IESO billed | T5: Total Commodity | U5: Difference | V5: kWh Volumes | W5: $ Estimated RPP Revenue | X5: $ Estimated RPP Energy | Y5: $ Estimated GA | Z5: $ Estimated RPP Settlement
B6: Wholesale | K6: Embedded Generation | M6: =SUM(C8:C9) -> 752413.02 | N6: =+M6 -> 752413.02 | P6: RPPT1 | Q6: =E20 -> 0.08700014176 | R6: =E42 -> 0.02135544139 | S6: =L32 -> 0.09850000381 | T6: =R6+S6 -> 0.1198554452 | U6: =+Q6-T6 -> -0.03285530345 | V6: =M18 -> 812590.503 | W6: =Q6*V6 -> 70695.48895 | X6: =R6*V6 -> 17353.22887 | Y6: =+V6*S6 -> 80040.16765 | Z6: =W6-X6-Y6 -> -26697.90756
A7: FIT/mFIT | B7: Source | C7: kWh | D7: Total Cost | K7: Class A customer Volumes for GA (TLF included) | M7: =-B64 -> -4919229.58 | P7: RPPT2 | Q7: =E21 -> 0.1030018462 | R7: =R6 -> 0.02135544139 | S7: =S6 -> 0.09850000381 | T7: =R7+S7 -> 0.1198554452 | U7: =+Q7-T7 -> -0.01685359904 | V7: =M19 -> 136055.6249 | W7: =Q7*V7 -> 14013.98054 | X7: =R7*V7 -> 2905.527923 | Y7: =+V7*S7 -> 13401.47957 | Z7: =W7-X7-Y7 -> -2293.026948
B8: FIT | C8: 713697.51 | D8: 15146.04 | E8: =D8/C8 -> 0.02122193196 | M8: =+M5+M6+M7 -> 14693367.39 | N8: =+N5+N6+N7 -> 19612596.97 | P8: RPPTOUMID | Q8: =E23 -> 0.1019858083 | R8: =E43 -> 0.02146096862 | S8: =S7 -> 0.09850000381 | T8: 0.1199609724 | U8: -0.01797516415 | V8: 1345687.35 | W8: 137241.0121 | X8: 28879.75399 | Y8: 132550.2091 | Z8: -24188.95102
B9: microFIT | C9: 38715.51 | D9: 819.62 | E9: =D9/C9 -> 0.02117032683 | P9: RPPTOUOFF | Q9: =E24 -> 0.07399100086 | R9: =R8 -> 0.02146096862 | S9: 0.09850000381 | T9: 0.1199609724 | U9: -0.04596997157 | V9: 5121509.606 | W9: 378945.6216 | X9: 109912.5569 | Y9: 504468.7157 | Z9: -235435.651
B10: WHOLESALE | C10: 18860183.95 | D10: 396944.77 | E10: =D10/C10 -> 0.02104670724 | K10: Estimated Retail Volume Revenue Data (TLF Included) | L10: RPP/non-RPP Ratios | M10: GA Volumes | N10: Energy Volumes | P10: RPPTOUON | Q10: 0.1508994712 | R10: =R9 -> 0.02146096862 | S10: 0.09850000381 | T10: 0.1199609724 | U10: 0.03093849876 | V10: 1373166.655 | W10: 207210.122 | X10: 29469.48648 | Y10: 135256.9207 | Z10: 42483.71484
A11: Total Wholesale Electricity | B11: Grand Total | C11: 19612596.97 | D11: 412910.43 | K11: Estimated Retail Revenue Data (Net of Retail Billed/Unbilled) | M11: =+M15 -> 14693367.39 | N11: =+N15 -> 19612596.97 | P11: RPPULOMID | Q11: 0 | R11: 0 | S11: 0 | T11: 0 | U11: 0 | V11: 0 | W11: 0 | X11: 0 | Y11: 0 | Z11: 0
P12: RPPULOOFF | Q12: 0 | R12: 0 | S12: 0 | T12: 0 | U12: 0 | V12: 0 | W12: 0 | X12: 0 | Y12: 0 | Z12: 0
K13: Estimated RPP Sales Quantities | L13: =SUM(C20:C25)/(C30-B64) -> 0.5981617083 | M13: =M8*L13 -> 8789009.738 | N13: =M13 -> 8789009.738 | P13: RPPULOON | Q13: 0 | R13: 0 | S13: 0 | T13: 0 | U13: 0 | V13: 0 | W13: 0 | X13: 0 | Y13: 0 | Z13: 0
A14: RPP Revenue Volume and Price Data | K14: Estimated non-RPP Sales Quantities | L14: =1-L13 -> 0.4018382917 | M14: =M8*L14 -> 5904357.652 | N14: =N8-N13 -> 10823587.23 | P14: RPPULOOVN | Q14: 0 | R14: 0 | S14: 0 | T14: 0 | U14: 0 | V14: 0 | W14: 0 | X14: 0 | Y14: 0 | Z14: 0
B15: bill_year | C15: 2023 | K15: Estimated Retail Revenue kWh Volumes | L15: =+L13+L14 -> 1 | M15: =+M13+M14 -> 14693367.39 | N15: =+N13+N14 -> 19612596.97 | V15: =SUM(V6:V14) -> 8789009.738 | W15: =SUM(W6:W14) -> 808106.2253 | X15: =SUM(X6:X14) -> 188520.5542 | Y15: =SUM(Y6:Y14) -> 865717.4928 | Z15: =SUM(Z6:Z14) -> -246131.8217
B16: bill_month | C16: 4 | Z16: =W15-X15-Y15-Z15 -> 0
K17: Estimated RPP Revenue Volume and Price Data | L17: Actual % | M17: kWh Volumes
B18: Row Labels | C18: usagebilled | D18: amountbilled | E18: Rate | K18: RPPT1 | L18: =C20/SUM($C$20:$C$25) -> 0.0924552967 | M18: =$M$13*L18 -> 812590.503
B19: RPPTIER | K19: RPPT2 | L19: =C21/SUM($C$20:$C$25) -> 0.01548019958 | M19: =$M$13*L19 -> 136055.6249
B20: RPPT1 | C20: 806903.8699 | D20: 70200.75107 | E20: =D20/C20 -> 0.08700014176 | K20: RPPTOUMID | L20: =C23/SUM($C$20:$C$25) -> 0.1531102354 | M20: 1345687.35
B21: RPPT2 | C21: 135103.4867 | D21: 13915.90855 | E21: =D21/C21 -> 0.1030018462 | K21: RPPTOUOFF | L21: =C24/SUM($C$20:$C$25) -> 0.5827174799 | M21: 5121509.606
B22: RPPTOU | K22: RPPTOUON | L22: 0.1562367884 | M22: 1373166.655
B23: RPPTOUMID | C23: 1336270.023 | D23: 136280.5784 | E23: 0.1019858083 | K23: RPPULOMID | L23: 0 | M23: 0
B24: RPPTOUOFF | C24: 5085668.496 | D24: 376293.702 | E24: 0.07399100086 | K24: RPPULOOFF | L24: 0 | M24: 0
B25: RPPTOUON | C25: 1363557.024 | D25: 205760.0338 | E25: 0.1508994712 | K25: RPPULOON | L25: 0 | M25: 0
B26: RETAIL | K26: RPPULOOVN | L26: 0 | M26: 0
B27: NSLS | C27: 3240961.401 | D27: 68633.73083 | E27: 0.02117696645 | L27: =SUM(L18:L26) -> 1 | M27: =SUM(M18:M26) -> 8789009.738
B28: INTERVAL
B29: HOEP | C29: 7541306.23 | D29: 155566.2708 | E29: 0.02062855772
B30: Grand Total | C30: 19509770.53 | D30: 1026650.975
K31: Global Adjustment | L31: per kWh
C32: =C30/C11-1 -> -0.005242877351 | K32: Class B - GA actual8 | L32: =B69/100 -> 0.09850000381 | N32: GA Posted Price
K33: Class B - GA actual IESO billed | L33: =+M33/M8 -> 0.09849702601 | M33: =B76 -> 1447252.99 | N33: GA Billed by IESO CT 148
A37: RPP COP Volume and Price Data
B38: bill_year | C38: 2023
B39: bill_month | C39: 4
B41: Row Labels | C41: usagebilled | D41: amountbilled | E41: Rate
B42: RPPTIERED | C42: 986521.6952 | D42: 21067.60625 | E42: =D42/C42 -> 0.02135544139
B43: RPPTOU | C43: 7811009.165 | D43: 167631.8226 | E43: 0.02146096862
B44: Grand Total | C44: 8797530.86 | D44: 188699.4288
C46: =SUM(C20:C25)-C44 -> -70027.96111
C47: =C46/C44 -> -0.00795995629
A60: Year | B60: 2023
A62: Class A
A63: Source | B63: kWh
A64: 202304 | B64: 4919229.58
A67: ga_actual | B67: year
A68: month | B68: 2023
A69: 202304 | B69: 9.850000381
A72: chargetype | B72: 148
A74: Sum of chargeamount | B74: year
A75: month | B75: 2023
A76: 202304 | B76: 1447252.99

Sheet I9 Input Rev 04 Init
A1: Reverse IESO Posted
A5: =Admin!B17 -> 202304
A6: RPP Revenue Prices | B6: kWh Volumes | C6: $ RPP Settlement
A7: RPPTiered_1 | B7: 936580.82 | C7: 17360.1
A8: RPPTiered_2 | B8: 306275.99 | C8: 776.62
A9: RPPTOU_MID | B9: 1819262.11 | C9: 7039.7
A10: RPPTOU_OFF | B10: 5732473.51 | C10: 182693.05
A11: RPPTOU_ON | B11: 1873530.66 | C11: -84553.35
A12: Grand Total | B12: 10668123.09 | C12: 123316.12

Sheet I10 Input 05 Trueup Sett
A1: Date: | B1: =Admin!B8+4 -> 202305 | C1: Trueup | K1: ="Data for 1st True up of RPP Settlement based on Actual IESO Invoice" -> Data for 1st True up of RPP Settlement based on Actual IESO Invoice | P1: For Reconciliation
A3: Wholesale Electricty | B3: Year | C3: 2023 | E3: Rate | P3: Actual RPP Revenue and GA
B4: dateref | C4: 202305 | K4: Wholesale Volume data per IESO Power Bill: | L4: GA RPP/non-RPP Ratios | M4: GA Volumes | N4: Energy Volumes | P4: =B1 -> 202305
K5: AQEW | M5: =C10 -> 18443214.08 | N5: =+M5 -> 18443214.08 | P5: RPP Revenue Prices | Q5: RPP Rate | R5: Estimated RPP Energy Price | S5: GA actual IESO billed | T5: Total Commodity | U5: Difference | V5: kWh Volumes | W5: $ Estimated RPP Revenue | X5: $ Estimated RPP Energy | Y5: $ Estimated GA | Z5: $ Estimated RPP Settlement
B6: Wholesale | K6: Embedded Generation | M6: =SUM(C8:C9) -> 986794.69 | N6: =+M6 -> 986794.69 | P6: RPPT1 | Q6: =E20 -> 0.08700035284 | R6: =E42 -> 0.01757902524 | S6: =L32 -> 0.09960000038 | T6: =R6+S6 -> 0.1171790256 | U6: =+Q6-T6 -> -0.03017867278 | V6: =M18 -> 740095.9612 | W6: =Q6*V6 -> 64388.60976 | X6: =R6*V6 -> 13010.16558 | Y6: =+V6*S6 -> 73713.55802 | Z6: =W6-X6-Y6 -> -22335.11384
A7: FIT/mFIT | B7: Source | C7: kWh | D7: Total Cost | K7: Class A customer Volumes for GA (TLF included) | M7: =-B64 -> -5179605.98 | P7: RPPT2 | Q7: =E21 -> 0.1029994908 | R7: =R6 -> 0.01757902524 | S7: =S6 -> 0.09960000038 | T7: =R7+S7 -> 0.1171790256 | U7: =+Q7-T7 -> -0.01417953479 | V7: =M19 -> 184419.878 | W7: =Q7*V7 -> 18995.15354 | X7: =R7*V7 -> 3241.92169 | Y7: =+V7*S7 -> 18368.21992 | Z7: =W7-X7-Y7 -> -2614.988076
B8: FIT | C8: 937597.73 | D8: 17378.49 | E8: =D8/C8 -> 0.0185351238 | M8: =+M5+M6+M7 -> 14250402.79 | N8: =+N5+N6+N7 -> 19430008.77 | P8: RPPTOUMID | Q8: =E23 -> 0.101975208 | R8: =E43 -> 0.01799516175 | S8: =S7 -> 0.09960000038 | T8: 0.1175951621 | U8: -0.01561995414 | V8: 1420092.896 | W8: 144814.2684 | X8: 25554.80137 | Y8: 141441.253 | Z8: -22181.78592
B9: microFIT | C9: 49196.96 | D9: 907.94 | E9: =D9/C9 -> 0.01845520536 | P9: RPPTOUOFF | Q9: =E24 -> 0.07398692666 | R9: =R8 -> 0.01799516175 | S9: 0.09960000038 | T9: 0.1175951621 | U9: -0.04360823547 | V9: 4469722.718 | W9: 330701.0469 | X9: 80433.38328 | Y9: 445184.3844 | Z9: -194916.7208
B10: WHOLESALE | C10: 18443214.08 | D10: 322522.32 | E10: =D10/C10 -> 0.0174873164 | K10: Estimated Retail Volume Revenue Data (TLF Included) | L10: RPP/non-RPP Ratios | M10: GA Volumes | N10: Energy Volumes | P10: RPPTOUON | Q10: 0.1508389935 | R10: =R9 -> 0.01799516175 | S10: 0.09960000038 | T10: 0.1175951621 | U10: 0.03324383141 | V10: 1411007.796 | W10: 212834.9958 | X10: 25391.31351 | Y10: 140536.377 | Z10: 46907.30527
A11: Total Wholesale Electricity | B11: Grand Total | C11: 19430008.77 | D11: 340808.75 | K11: Estimated Retail Revenue Data (Net of Retail Billed/Unbilled) | M11: =+M15 -> 14250402.79 | N11: =+N15 -> 19430008.77 | P11: RPPULOMID | Q11: 0 | R11: 0 | S11: 0 | T11: 0 | U11: 0 | V11: 0 | W11: 0 | X11: 0 | Y11: 0 | Z11: 0
P12: RPPULOOFF | Q12: 0 | R12: 0 | S12: 0 | T12: 0 | U12: 0 | V12: 0 | W12: 0 | X12: 0 | Y12: 0 | Z12: 0
K13: Estimated RPP Sales Quantities | L13: =SUM(C20:C25)/(C30-B64) -> 0.5772004742 | M13: =M8*L13 -> 8225339.248 | N13: =M13 -> 8225339.248 | P13: RPPULOON | Q13: 0 | R13: 0 | S13: 0 | T13: 0 | U13: 0 | V13: 0 | W13: 0 | X13: 0 | Y13: 0 | Z13: 0
A14: RPP Revenue Volume and Price Data | K14: Estimated non-RPP Sales Quantities | L14: =1-L13 -> 0.4227995258 | M14: =M8*L14 -> 6025063.542 | N14: =N8-N13 -> 11204669.52 | P14: RPPULOOVN | Q14: 0 | R14: 0 | S14: 0 | T14: 0 | U14: 0 | V14: 0 | W14: 0 | X14: 0 | Y14: 0 | Z14: 0
B15: bill_year | C15: 2023 | K15: Estimated Retail Revenue kWh Volumes | L15: =+L13+L14 -> 1 | M15: =+M13+M14 -> 14250402.79 | N15: =+N13+N14 -> 19430008.77 | V15: =SUM(V6:V14) -> 8225339.248 | W15: =SUM(W6:W14) -> 771734.0744 | X15: =SUM(X6:X14) -> 147631.5854 | Y15: =SUM(Y6:Y14) -> 819243.7923 | Z15: =SUM(Z6:Z14) -> -195141.3033
B16: bill_month | C16: 5 | Z16: =W15-X15-Y15-Z15 -> 0
K17: Estimated RPP Revenue Volume and Price Data | L17: Actual % | M17: kWh Volumes
B18: Row Labels | C18: usagebilled | D18: amountbilled | E18: Rate | K18: RPPT1 | L18: =C20/SUM($C$20:$C$25) -> 0.08997756067 | M18: =$M$13*L18 -> 740095.9612
B19: RPPTIER | K19: RPPT2 | L19: =C21/SUM($C$20:$C$25) -> 0.02242094489 | M19: =$M$13*L19 -> 184419.878
B20: RPPT1 | C20: 738556.1042 | D20: 64254.64166 | E20: =D20/C20 -> 0.08700035284 | K20: RPPTOUMID | L20: =C23/SUM($C$20:$C$25) -> 0.1726485502 | M20: 1420092.896
B21: RPPT2 | C21: 184036.1707 | D21: 18955.63188 | E21: =D21/C21 -> 0.1029994908 | K21: RPPTOUOFF | L21: =C24/SUM($C$20:$C$25) -> 0.54340892 | M21: 4469722.718
B22: RPPTOU | K22: RPPTOUON | L22: 0.1715440243 | M22: 1411007.796
B23: RPPTOUMID | C23: 1417138.225 | D23: 144512.9653 | E23: 0.101975208 | K23: RPPULOMID | L23: 0 | M23: 0
B24: RPPTOUOFF | C24: 4460422.932 | D24: 330012.9843 | E24: 0.07398692666 | K24: RPPULOOFF | L24: 0 | M24: 0
B25: RPPTOUON | C25: 1408072.027 | D25: 212392.1674 | E25: 0.1508389935 | K25: RPPULOON | L25: 0 | M25: 0
B26: RETAIL | K26: RPPULOOVN | L26: 0 | M26: 0
B27: NSLS | C27: 3336479.165 | D27: 60319.76182 | E27: 0.01807886663 | L27: =SUM(L18:L26) -> 1 | M27: =SUM(M18:M26) -> 8225339.248
B28: INTERVAL
B29: HOEP | C29: 7855654.501 | D29: 135775.9576 | E29: 0.01728385045
B30: Grand Total | C30: 19400359.12 | D30: 966224.1099
K31: Global Adjustment | L31: per kWh
C32: =C30/C11-1 -> -0.00152597181 | K32: Class B - GA actual8 | L32: =B69/100 -> 0.09960000038 | N32: GA Posted Price
K33: Class B - GA actual IESO billed | L33: =+M33/M8 -> 0.09994805908 | M33: =B76 -> 1424300.1 | N33: GA Billed by IESO CT 148
A37: RPP COP Volume and Price Data
B38: bill_year | C38: 2023
B39: bill_month | C39: 5
B41: Row Labels | C41: usagebilled | D41: amountbilled | E41: Rate
B42: RPPTIERED | C42: 891524.4736 | D42: 15672.13122 | E42: =D42/C42 -> 0.01757902524
B43: RPPTOU | C43: 7284471.144 | D43: 131085.2365 | E43: 0.01799516175
B44: Grand Total | C44: 8175995.618 | D44: 146757.3677
C46: =SUM(C20:C25)-C44 -> 32229.8414
C47: =C46/C44 -> 0.003942008155
A60: Year | B60: 2023
A62: Class A
A63: Source | B63: kWh
A64: 202305 | B64: 5179605.98
A67: ga_actual | B67: year
A68: month | B68: 2023
A69: 202305 | B69: 9.960000038
A72: chargetype | B72: 148
A74: Sum of chargeamount | B74: year
A75: month | B75: 2023
A76: 202305 | B76: 1424300.1

Sheet I11 Input Rev 05 Init
A1: Reverse IESO Posted
A5: =Admin!B20 -> 202305
A6: RPP Revenue Prices | B6: kWh Volumes | C6: $ RPP Settlement
A7: RPPTiered_1 | B7: 847946.98 | C7: 27148.92
A8: RPPTiered_2 | B8: 147768.75 | C8: 2366.14
A9: RPPTOU_MID | B9: 1354869.67 | C9: 21803
A10: RPPTOU_OFF | B10: 5190583.26 | C10: 228867.38
A11: RPPTOU_ON | B11: 1397416.4 | C11: -45985.07
A12: Grand Total | B12: 8938585.06 | C12: 234200.37

Sheet I12 Input 06 Trueup Sett
A1: Date: | B1: =Admin!B8+5 -> 202306 | C1: Trueup | K1: ="Data for 1st True up of RPP Settlement based on Actual IESO Invoice" -> Data for 1st True up of RPP Settlement based on Actual IESO Invoice | P1: For Reconciliation
A3: Wholesale Electricty | B3: Year | C3: 2023 | E3: Rate | P3: Actual RPP Revenue and GA
B4: dateref | C4: 202306 | K4: Wholesale Volume data per IESO Power Bill: | L4: GA RPP/non-RPP Ratios | M4: GA Volumes | N4: Energy Volumes | P4: =B1 -> 202306
K5: AQEW | M5: =C10 -> 19093937.1 | N5: =+M5 -> 19093937.1 | P5: RPP Revenue Prices | Q5: RPP Rate | R5: Estimated RPP Energy Price | S5: GA actual IESO billed | T5: Total Commodity | U5: Difference | V5: kWh Volumes | W5: $ Estimated RPP Revenue | X5: $ Estimated RPP Energy | Y5: $ Estimated GA | Z5: $ Estimated RPP Settlement
B6: Wholesale | K6: Embedded Generation | M6: =SUM(C8:C9) -> 784522.09 | N6: =+M6 -> 784522.09 | P6: RPPT1 | Q6: =E20 -> 0.08700007152 | R6: =E42 -> 0.03082670887 | S6: =L32 -> 0.08289999962 | T6: =R6+S6 -> 0.1137267085 | U6: =+Q6-T6 -> -0.02672663696 | V6: =M18 -> 711900.7857 | W6: =Q6*V6 -> 61935.41927 | X6: =R6*V6 -> 21945.55826 | Y6: =+V6*S6 -> 59016.57486 | Z6: =W6-X6-Y6 -> -19026.71385
A7: FIT/mFIT | B7: Source | C7: kWh | D7: Total Cost | K7: Class A customer Volumes for GA (TLF included) | M7: =-B64 -> -4723319.77 | P7: RPPT2 | Q7: =E21 -> 0.1030009826 | R7: =R6 -> 0.03082670887 | S7: =S6 -> 0.08289999962 | T7: =R7+S7 -> 0.1137267085 | U7: =+Q7-T7 -> -0.01072572593 | V7: =M19 -> 202920.0412 | W7: =Q7*V7 -> 20900.96363 | X7: =R7*V7 -> 6255.357035 | Y7: =+V7*S7 -> 16822.07134 | Z7: =W7-X7-Y7 -> -2176.464749
B8: FIT | C8: 746236.02 | D8: 24873.08 | E8: =D8/C8 -> 0.03333138489 | M8: =+M5+M6+M7 -> 15155139.42 | N8: =+N5+N6+N7 -> 19878459.19 | P8: RPPTOUMID | Q8: =E23 -> 0.1019931354 | R8: =E43 -> 0.03110572232 | S8: =S7 -> 0.08289999962 | T8: 0.1140057219 | U8: -0.01201258653 | V8: 1572756.621 | W8: 160410.379 | X8: 48921.73073 | Y8: 130381.5233 | Z8: -18892.87501
B9: microFIT | C9: 38286.07 | D9: 1276.24 | E9: =D9/C9 -> 0.03333431716 | P9: RPPTOUOFF | Q9: =E24 -> 0.07399410976 | R9: =R8 -> 0.03110572232 | S9: 0.08289999962 | T9: 0.1140057219 | U9: -0.04001161217 | V9: 4775331.587 | W9: 353346.4096 | X9: 148540.1383 | Y9: 395874.9868 | Z9: -191068.7155
B10: WHOLESALE | C10: 19093937.1 | D10: 580068.36 | E10: =D10/C10 -> 0.03037971462 | K10: Estimated Retail Volume Revenue Data (TLF Included) | L10: RPP/non-RPP Ratios | M10: GA Volumes | N10: Energy Volumes | P10: RPPTOUON | Q10: 0.150942493 | R10: =R9 -> 0.03110572232 | S10: 0.08289999962 | T10: 0.1140057219 | U10: 0.03693677111 | V10: 1684660.733 | W10: 254286.891 | X10: 52402.58896 | Y10: 139658.3741 | Z10: 62225.9279
A11: Total Wholesale Electricity | B11: Grand Total | C11: 19878459.19 | D11: 606217.68 | K11: Estimated Retail Revenue Data (Net of Retail Billed/Unbilled) | M11: =+M15 -> 15155139.42 | N11: =+N15 -> 19878459.19 | P11: RPPULOMID | Q11: 0 | R11: 0 | S11: 0 | T11: 0 | U11: 0 | V11: 0 | W11: 0 | X11: 0 | Y11: 0 | Z11: 0
P12: RPPULOOFF | Q12: 0 | R12: 0 | S12: 0 | T12: 0 | U12: 0 | V12: 0 | W12: 0 | X12: 0 | Y12: 0 | Z12: 0
K13: Estimated RPP Sales Quantities | L13: =SUM(C20:C25)/(C30-B64) -> 0.5903983804 | M13: =M8*L13 -> 8947569.769 | N13: =M13 -> 8947569.769 | P13: RPPULOON | Q13: 0 | R13: 0 | S13: 0 | T13: 0 | U13: 0 | V13: 0 | W13: 0 | X13: 0 | Y13: 0 | Z13: 0
A14: RPP Revenue Volume and Price Data | K14: Estimated non-RPP Sales Quantities | L14: =1-L13 -> 0.4096016196 | M14: =M8*L14 -> 6207569.651 | N14: =N8-N13 -> 10930889.42 | P14: RPPULOOVN | Q14: 0 | R14: 0 | S14: 0 | T14: 0 | U14: 0 | V14: 0 | W14: 0 | X14: 0 | Y14: 0 | Z14: 0
B15: bill_year | C15: 2023 | K15: Estimated Retail Revenue kWh Volumes | L15: =+L13+L14 -> 1 | M15: =+M13+M14 -> 15155139.42 | N15: =+N13+N14 -> 19878459.19 | V15: =SUM(V6:V14) -> 8947569.769 | W15: =SUM(W6:W14) -> 850880.0626 | X15: =SUM(X6:X14) -> 278065.3733 | Y15: =SUM(Y6:Y14) -> 741753.5304 | Z15: =SUM(Z6:Z14) -> -168938.8412
B16: bill_month | C16: 6 | Z16: =W15-X15-Y15-Z15 -> 0
K17: Estimated RPP Revenue Volume and Price Data | L17: Actual % | M17: kWh Volumes
B18: Row Labels | C18: usagebilled | D18: amountbilled | E18: Rate | K18: RPPT1 | L18: =C20/SUM($C$20:$C$25) -> 0.07956359147 | M18: =$M$13*L18 -> 711900.7857
B19: RPPTIER | K19: RPPT2 | L19: =C21/SUM($C$20:$C$25) -> 0.02267878837 | M19: =$M$13*L19 -> 202920.0412
B20: RPPT1 | C20: 704600.8284 | D20: 61300.32247 | E20: =D20/C20 -> 0.08700007152 | K20: RPPTOUMID | L20: =C23/SUM($C$20:$C$25) -> 0.1757747256 | M20: 1572756.621
B21: RPPT2 | C21: 200839.263 | D21: 20686.64143 | E21: =D21/C21 -> 0.1030009826 | K21: RPPTOUOFF | L21: =C24/SUM($C$20:$C$25) -> 0.5337015202 | M21: 4775331.587
B22: RPPTOU | K22: RPPTOUON | L22: 0.1882813744 | M22: 1684660.733
B23: RPPTOUMID | C23: 1556629.295 | D23: 158765.5025 | E23: 0.1019931354 | K23: RPPULOMID | L23: 0 | M23: 0
B24: RPPTOUOFF | C24: 4726364.488 | D24: 349723.1327 | E24: 0.07399410976 | K24: RPPULOOFF | L24: 0 | M24: 0
B25: RPPTOUON | C25: 1667385.922 | D25: 251679.388 | E25: 0.150942493 | K25: RPPULOON | L25: 0 | M25: 0
B26: RETAIL | K26: RPPULOOVN | L26: 0 | M26: 0
B27: NSLS | C27: 3647045.442 | D27: 111103.8493 | E27: 0.03046407045 | L27: =SUM(L18:L26) -> 1 | M27: =SUM(M18:M26) -> 8947569.769
B28: INTERVAL
B29: HOEP | C29: 7220190.456 | D29: 214986.3675 | E29: 0.02977571974
B30: Grand Total | C30: 19723055.69 | D30: 1168245.204
K31: Global Adjustment | L31: per kWh
C32: =C30/C11-1 -> -0.007817683166 | K32: Class B - GA actual8 | L32: =B69/100 -> 0.08289999962 | N32: GA Posted Price
K33: Class B - GA actual IESO billed | L33: =+M33/M8 -> 0.08261742009 | M33: =B76 -> 1252078.52 | N33: GA Billed by IESO CT 148
A37: RPP COP Volume and Price Data
B38: bill_year | C38: 2023
B39: bill_month | C39: 6
B41: Row Labels | C41: usagebilled | D41: amountbilled | E41: Rate
B42: RPPTIERED | C42: 905795.9934 | D42: 27922.70938 | E42: =D42/C42 -> 0.03082670887
B43: RPPTOU | C43: 7950629.799 | D43: 247310.0828 | E43: 0.03110572232
B44: Grand Total | C44: 8856425.793 | D44: 275232.7922
C46: =SUM(C20:C25)-C44 -> -605.9961828
C47: =C46/C44 -> -6.842446343e-05
A60: Year | B60: 2023
A62: Class A
A63: Source | B63: kWh
A64: 202306 | B64: 4723319.77
A67: ga_actual | B67: year
A68: month | B68: 2023
A69: 202306 | B69: 8.289999962
A72: chargetype | B72: 148
A74: Sum of chargeamount | B74: year
A75: month | B75: 2023
A76: 202306 | B76: 1252078.52

Sheet I13 Input Rev 06 Init
A1: Reverse IESO Posted
A5: =Admin!B23 -> 202306
A6: RPP Revenue Prices | B6: kWh Volumes | C6: $ RPP Settlement
A7: RPPTiered_1 | B7: 705141.28 | C7: 21245.58
A8: RPPTiered_2 | B8: 178715.42 | C8: 2525.31
A9: RPPTOU_MID | B9: 1396921.81 | C9: 21651.37
A10: RPPTOU_OFF | B10: 4338453.27 | C10: 188721.04
A11: RPPTOU_ON | B11: 1396815.42 | C11: -46792.91
A12: Grand Total | B12: 8016047.2 | C12: 187350.39

Sheet I14 Input 07 Trueup Sett
A1: Date: | B1: =Admin!B8+6 -> 202307 | C1: Trueup | K1: ="Data for 1st True up of RPP Settlement based on Actual IESO Invoice" -> Data for 1st True up of RPP Settlement based on Actual IESO Invoice | P1: For Reconciliation
A3: Wholesale Electricty | B3: Year | C3: 2023 | E3: Rate | P3: Actual RPP Revenue and GA
B4: dateref | C4: 202307 | K4: Wholesale Volume data per IESO Power Bill: | L4: GA RPP/non-RPP Ratios | M4: GA Volumes | N4: Energy Volumes | P4: =B1 -> 202307
K5: AQEW | M5: =C10 -> 20874316.19 | N5: =+M5 -> 20874316.19 | P5: RPP Revenue Prices | Q5: RPP Rate | R5: Estimated RPP Energy Price | S5: GA actual IESO billed | T5: Total Commodity | U5: Difference | V5: kWh Volumes | W5: $ Estimated RPP Revenue | X5: $ Estimated RPP Energy | Y5: $ Estimated GA | Z5: $ Estimated RPP Settlement
B6: Wholesale | K6: Embedded Generation | M6: =SUM(C8:C9) -> 863913.49 | N6: =+M6 -> 863913.49 | P6: RPPT1 | Q6: =E20 -> 0.087000317 | R6: =E42 -> 0.04080562347 | S6: =L32 -> 0.04949999809 | T6: =R6+S6 -> 0.09030562156 | U6: =+Q6-T6 -> -0.003305304563 | V6: =M18 -> 802108.7616 | W6: =Q6*V6 -> 69783.71652 | X6: =R6*V6 -> 32730.54811 | Y6: =+V6*S6 -> 39704.38217 | Z6: =W6-X6-Y6 -> -2651.21375
A7: FIT/mFIT | B7: Source | C7: kWh | D7: Total Cost | K7: Class A customer Volumes for GA (TLF included) | M7: =-B64 -> -3986098.22 | P7: RPPT2 | Q7: =E21 -> 0.1030002516 | R7: =R6 -> 0.04080562347 | S7: =S6 -> 0.04949999809 | T7: =R7+S7 -> 0.09030562156 | U7: =+Q7-T7 -> 0.01269463008 | V7: =M19 -> 305610.8249 | W7: =Q7*V7 -> 31477.99187 | X7: =R7*V7 -> 12470.64025 | Y7: =+V7*S7 -> 15127.73525 | Z7: =W7-X7-Y7 -> 3879.616371
B8: FIT | C8: 822354.47 | D8: 35649.28 | E8: =D8/C8 -> 0.04335025989 | M8: =+M5+M6+M7 -> 17752131.46 | N8: =+N5+N6+N7 -> 21738229.68 | P8: RPPTOUMID | Q8: =E23 -> 0.1019953278 | R8: =E43 -> 0.04111584679 | S8: =S7 -> 0.04949999809 | T8: 0.09061584488 | U8: 0.01137948295 | V8: 1790547.697 | W8: 182627.4994 | X8: 73619.88478 | Y8: 88632.10758 | Z8: 20375.507
B9: microFIT | C9: 41559.02 | D9: 1815.55 | E9: =D9/C9 -> 0.04368606382 | P9: RPPTOUOFF | Q9: =E24 -> 0.07399799274 | R9: =R8 -> 0.04111584679 | S9: 0.04949999809 | T9: 0.09061584488 | U9: -0.01661785215 | V9: 6101674.896 | W9: 451511.6946 | X9: 250875.5302 | Y9: 302032.8957 | Z9: -101396.7313
B10: WHOLESALE | C10: 20874316.19 | D10: 850093.66 | E10: =D10/C10 -> 0.0407243836 | K10: Estimated Retail Volume Revenue Data (TLF Included) | L10: RPP/non-RPP Ratios | M10: GA Volumes | N10: Energy Volumes | P10: RPPTOUON | Q10: 0.1509600027 | R10: =R9 -> 0.04111584679 | S10: 0.04949999809 | T10: 0.09061584488 | U10: 0.06034415779 | V10: 2012361.987 | W10: 303786.171 | X10: 82739.96715 | Y10: 99611.91453 | Z10: 121434.2893
A11: Total Wholesale Electricity | B11: Grand Total | C11: 21738229.68 | D11: 887558.49 | K11: Estimated Retail Revenue Data (Net of Retail Billed/Unbilled) | M11: =+M15 -> 17752131.46 | N11: =+N15 -> 21738229.68 | P11: RPPULOMID | Q11: 0 | R11: 0 | S11: 0 | T11: 0 | U11: 0 | V11: 0 | W11: 0 | X11: 0 | Y11: 0 | Z11: 0
P12: RPPULOOFF | Q12: 0 | R12: 0 | S12: 0 | T12: 0 | U12: 0 | V12: 0 | W12: 0 | X12: 0 | Y12: 0 | Z12: 0
K13: Estimated RPP Sales Quantities | L13: =SUM(C20:C25)/(C30-B64) -> 0.6203370109 | M13: =M8*L13 -> 11012304.17 | N13: =M13 -> 11012304.17 | P13: RPPULOON | Q13: 0 | R13: 0 | S13: 0 | T13: 0 | U13: 0 | V13: 0 | W13: 0 | X13: 0 | Y13: 0 | Z13: 0
A14: RPP Revenue Volume and Price Data | K14: Estimated non-RPP Sales Quantities | L14: =1-L13 -> 0.3796629891 | M14: =M8*L14 -> 6739827.293 | N14: =N8-N13 -> 10725925.51 | P14: RPPULOOVN | Q14: 0 | R14: 0 | S14: 0 | T14: 0 | U14: 0 | V14: 0 | W14: 0 | X14: 0 | Y14: 0 | Z14: 0
B15: bill_year | C15: 2023 | K15: Estimated Retail Revenue kWh Volumes | L15: =+L13+L14 -> 1 | M15: =+M13+M14 -> 17752131.46 | N15: =+N13+N14 -> 21738229.68 | V15: =SUM(V6:V14) -> 11012304.17 | W15: =SUM(W6:W14) -> 1039187.073 | X15: =SUM(X6:X14) -> 452436.5705 | Y15: =SUM(Y6:Y14) -> 545109.0352 | Z15: =SUM(Z6:Z14) -> 41641.46764
B16: bill_month | C16: 7 | Z16: =W15-X15-Y15-Z15 -> 0
K17: Estimated RPP Revenue Volume and Price Data | L17: Actual % | M17: kWh Volumes
B18: Row Labels | C18: usagebilled | D18: amountbilled | E18: Rate | K18: RPPT1 | L18: =C20/SUM($C$20:$C$25) -> 0.07283750516 | M18: =$M$13*L18 -> 802108.7616
B19: RPPTIER | K19: RPPT2 | L19: =C21/SUM($C$20:$C$25) -> 0.02775176024 | M19: =$M$13*L19 -> 305610.8249
B20: RPPT1 | C20: 788643.1431 | D20: 68612.20344 | E20: =D20/C20 -> 0.087000317 | K20: RPPTOUMID | L20: =C23/SUM($C$20:$C$25) -> 0.1625951908 | M20: 1790547.697
B21: RPPT2 | C21: 300480.3002 | D21: 30949.54653 | E21: =D21/C21 -> 0.1030002516 | K21: RPPTOUOFF | L21: =C24/SUM($C$20:$C$25) -> 0.5540779481 | M21: 6101674.896
B22: RPPTOU | K22: RPPTOUON | L22: 0.1827375958 | M22: 2012361.987
B23: RPPTOUMID | C23: 1760488.391 | D23: 179561.5906 | E23: 0.1019953278 | K23: RPPULOMID | L23: 0 | M23: 0
B24: RPPTOUOFF | C24: 5999241.373 | D24: 443931.8195 | E24: 0.07399799274 | K24: RPPULOOFF | L24: 0 | M24: 0
B25: RPPTOUON | C25: 1978578.914 | D25: 298686.2782 | E25: 0.1509600027 | K25: RPPULOON | L25: 0 | M25: 0
B26: RETAIL | K26: RPPULOOVN | L26: 0 | M26: 0
B27: NSLS | C27: 3892043.279 | D27: 157594.8671 | E27: 0.04049155052 | L27: =SUM(L18:L26) -> 1 | M27: =SUM(M18:M26) -> 11012304.17
B28: INTERVAL
B29: HOEP | C29: 6720735.554 | D29: 268508.8189 | E29: 0.03995229641
B30: Grand Total | C30: 21440210.96 | D30: 1447845.124
K31: Global Adjustment | L31: per kWh
C32: =C30/C11-1 -> -0.01370942939 | K32: Class B - GA actual8 | L32: =B69/100 -> 0.04949999809 | N32: GA Posted Price
K33: Class B - GA actual IESO billed | L33: =+M33/M8 -> 0.05009228114 | M33: =B76 -> 889244.76 | N33: GA Billed by IESO CT 148
A37: RPP COP Volume and Price Data
B38: bill_year | C38: 2023
B39: bill_month | C39: 7
B41: Row Labels | C41: usagebilled | D41: amountbilled | E41: Rate
B42: RPPTIERED | C42: 1089001.93 | D42: 44437.40272 | E42: =D42/C42 -> 0.04080562347
B43: RPPTOU | C43: 9739808.283 | D43: 400460.4652 | E43: 0.04111584679
B44: Grand Total | C44: 10828810.21 | D44: 444897.8679
C46: =SUM(C20:C25)-C44 -> -1378.092009
C47: =C46/C44 -> -0.0001272616273
A60: Year | B60: 2023
A62: Class A
A63: Source | B63: kWh
A64: 202307 | B64: 3986098.22
A67: ga_actual | B67: year
A68: month | B68: 2023
A69: 202307 | B69: 4.949999809
A72: chargetype | B72: 148
A74: Sum of chargeamount | B74: year
A75: month | B75: 2023
A76: 202307 | B76: 889244.76

Sheet I15 Input Rev 07 Init
A1: Reverse IESO Posted
A5: =Admin!B26 -> 202307
A6: RPP Revenue Prices | B6: kWh Volumes | C6: $ RPP Settlement
A7: RPPTiered_1 | B7: 689479.08 | C7: 18535.64
A8: RPPTiered_2 | B8: 190983.03 | C8: 2078.4
A9: RPPTOU_MID | B9: 1484907.75 | C9: 18231.56
A10: RPPTOU_OFF | B10: 4517335.78 | C10: 181948.37
A11: RPPTOU_ON | B11: 1587040.34 | C11: -58280.17
A12: Grand Total | B12: 8469745.98 | C12: 162513.8

Sheet I16 Input 08 Trueup Sett
A1: Date: | B1: =Admin!B8+7 -> 202308 | C1: Trueup | K1: ="Data for 1st True up of RPP Settlement based on Actual IESO Invoice" -> Data for 1st True up of RPP Settlement based on Actual IESO Invoice | P1: For Reconciliation
A3: Wholesale Electricty | B3: Year | C3: 2023 | E3: Rate | P3: Actual RPP Revenue and GA
B4: dateref | C4: 202308 | K4: Wholesale Volume data per IESO Power Bill: | L4: GA RPP/non-RPP Ratios | M4: GA Volumes | N4: Energy Volumes | P4: =B1 -> 202308
K5: AQEW | M5: =C10 -> 19944761.83 | N5: =+M5 -> 19944761.83 | P5: RPP Revenue Prices | Q5: RPP Rate | R5: Estimated RPP Energy Price | S5: GA actual IESO billed | T5: Total Commodity | U5: Difference | V5: kWh Volumes | W5: $ Estimated RPP Revenue | X5: $ Estimated RPP Energy | Y5: $ Estimated GA | Z5: $ Estimated RPP Settlement
B6: Wholesale | K6: Embedded Generation | M6: =SUM(C8:C9) -> 770241.5 | N6: =+M6 -> 770241.5 | P6: RPPT1 | Q6: =E20 -> 0.08700054023 | R6: =E42 -> 0.03168543035 | S6: =L32 -> 0.07610000134 | T6: =R6+S6 -> 0.1077854317 | U6: =+Q6-T6 -> -0.02078489145 | V6: =M18 -> 749775.3547 | W6: =Q6*V6 -> 65230.86091 | X6: =R6*V6 -> 23756.95478 | Y6: =+V6*S6 -> 57057.90549 | Z6: =W6-X6-Y6 -> -15583.99936
A7: FIT/mFIT | B7: Source | C7: kWh | D7: Total Cost | K7: Class A customer Volumes for GA (TLF included) | M7: =-B64 -> -4268877.49 | P7: RPPT2 | Q7: =E21 -> 0.1029997367 | R7: =R6 -> 0.03168543035 | S7: =S6 -> 0.07610000134 | T7: =R7+S7 -> 0.1077854317 | U7: =+Q7-T7 -> -0.004785694989 | V7: =M19 -> 219440.4182 | W7: =Q7*V7 -> 22602.30529 | X7: =R7*V7 -> 6953.064085 | Y7: =+V7*S7 -> 16699.41612 | Z7: =W7-X7-Y7 -> -1050.17491
B8: FIT | C8: 730086.37 | D8: 24815.01 | E8: =D8/C8 -> 0.03398914296 | M8: =+M5+M6+M7 -> 16446125.84 | N8: =+N5+N6+N7 -> 20715003.33 | P8: RPPTOUMID | Q8: =E23 -> 0.1019983693 | R8: =E43 -> 0.03182523502 | S8: =S7 -> 0.07610000134 | T8: 0.1079252364 | U8: -0.005926867104 | V8: 1718904.97 | W8: 175325.5038 | X8: 54704.55464 | Y8: 130808.6705 | Z8: -10187.72132
B9: microFIT | C9: 40155.13 | D9: 1362.96 | E9: =D9/C9 -> 0.03394236303 | P9: RPPTOUOFF | Q9: =E24 -> 0.07399880081 | R9: =R8 -> 0.03182523502 | S9: 0.07610000134 | T9: 0.1079252364 | U9: -0.03392643555 | V9: 5303422.989 | W9: 392446.9413 | X9: 168782.683 | Y9: 403590.4965 | Z9: -179926.2382
B10: WHOLESALE | C10: 19944761.83 | D10: 625707.61 | E10: =D10/C10 -> 0.03137202717 | K10: Estimated Retail Volume Revenue Data (TLF Included) | L10: RPP/non-RPP Ratios | M10: GA Volumes | N10: Energy Volumes | P10: RPPTOUON | Q10: 0.1509723981 | R10: =R9 -> 0.03182523502 | S10: 0.07610000134 | T10: 0.1079252364 | U10: 0.04304716173 | V10: 1885060.602 | W10: 284592.1196 | X10: 59992.49669 | Y10: 143453.1143 | Z10: 81146.50861
A11: Total Wholesale Electricity | B11: Grand Total | C11: 20715003.33 | D11: 651885.58 | K11: Estimated Retail Revenue Data (Net of Retail Billed/Unbilled) | M11: =+M15 -> 16446125.84 | N11: =+N15 -> 20715003.33 | P11: RPPULOMID | Q11: 0 | R11: 0 | S11: 0 | T11: 0 | U11: 0 | V11: 0 | W11: 0 | X11: 0 | Y11: 0 | Z11: 0
P12: RPPULOOFF | Q12: 0 | R12: 0 | S12: 0 | T12: 0 | U12: 0 | V12: 0 | W12: 0 | X12: 0 | Y12: 0 | Z12: 0
K13: Estimated RPP Sales Quantities | L13: =SUM(C20:C25)/(C30-B64) -> 0.6005429138 | M13: =M8*L13 -> 9876604.333 | N13: =M13 -> 9876604.333 | P13: RPPULOON | Q13: 0 | R13: 0 | S13: 0 | T13: 0 | U13: 0 | V13: 0 | W13: 0 | X13: 0 | Y13: 0 | Z13: 0
A14: RPP Revenue Volume and Price Data | K14: Estimated non-RPP Sales Quantities | L14: =1-L13 -> 0.3994570862 | M14: =M8*L14 -> 6569521.507 | N14: =N8-N13 -> 10838399 | P14: RPPULOOVN | Q14: 0 | R14: 0 | S14: 0 | T14: 0 | U14: 0 | V14: 0 | W14: 0 | X14: 0 | Y14: 0 | Z14: 0
B15: bill_year | C15: 2023 | K15: Estimated Retail Revenue kWh Volumes | L15: =+L13+L14 -> 1 | M15: =+M13+M14 -> 16446125.84 | N15: =+N13+N14 -> 20715003.33 | V15: =SUM(V6:V14) -> 9876604.333 | W15: =SUM(W6:W14) -> 940197.731 | X15: =SUM(X6:X14) -> 314189.7532 | Y15: =SUM(Y6:Y14) -> 751609.603 | Z15: =SUM(Z6:Z14) -> -125601.6252
B16: bill_month | C16: 8 | Z16: =W15-X15-Y15-Z15 -> 0
K17: Estimated RPP Revenue Volume and Price Data | L17: Actual % | M17: kWh Volumes
B18: Row Labels | C18: usagebilled | D18: amountbilled | E18: Rate | K18: RPPT1 | L18: =C20/SUM($C$20:$C$25) -> 0.07591428485 | M18: =$M$13*L18 -> 749775.3547
B19: RPPTIER | K19: RPPT2 | L19: =C21/SUM($C$20:$C$25) -> 0.02221820484 | M19: =$M$13*L19 -> 219440.4182
B20: RPPT1 | C20: 739125.6635 | D20: 64304.33202 | E20: =D20/C20 -> 0.08700054023 | K20: RPPTOUMID | L20: =C23/SUM($C$20:$C$25) -> 0.1740380511 | M20: 1718904.97
B21: RPPT2 | C21: 216323.521 | D21: 22281.2657 | E21: =D21/C21 -> 0.1029997367 | K21: RPPTOUOFF | L21: =C24/SUM($C$20:$C$25) -> 0.5369682545 | M21: 5303422.989
B22: RPPTOU | K22: RPPTOUON | L22: 0.1908612048 | M22: 1885060.602
B23: RPPTOUMID | C23: 1694489.914 | D23: 172835.2079 | E23: 0.1019983693 | K23: RPPULOMID | L23: 0 | M23: 0
B24: RPPTOUOFF | C24: 5228094.003 | D24: 386872.6867 | E24: 0.07399880081 | K24: RPPULOOFF | L24: 0 | M24: 0
B25: RPPTOUON | C25: 1858285.498 | D25: 280549.8179 | E25: 0.1509723981 | K25: RPPULOON | L25: 0 | M25: 0
B26: RETAIL | K26: RPPULOOVN | L26: 0 | M26: 0
B27: NSLS | C27: 3796372.237 | D27: 119094.1904 | E27: 0.03137052506 | L27: =SUM(L18:L26) -> 1 | M27: =SUM(M18:M26) -> 9876604.333
B28: INTERVAL
B29: HOEP | C29: 6948714.309 | D29: 214822.6106 | E29: 0.03091544724
B30: Grand Total | C30: 20481405.14 | D30: 1260760.111
K31: Global Adjustment | L31: per kWh
C32: =C30/C11-1 -> -0.0112767631 | K32: Class B - GA actual8 | L32: =B69/100 -> 0.07610000134 | N32: GA Posted Price
K33: Class B - GA actual IESO billed | L33: =+M33/M8 -> 0.07372454168 | M33: =B76 -> 1212483.09 | N33: GA Billed by IESO CT 148
A37: RPP COP Volume and Price Data
B38: bill_year | C38: 2023
B39: bill_month | C39: 8
B41: Row Labels | C41: usagebilled | D41: amountbilled | E41: Rate
B42: RPPTIERED | C42: 1157163.219 | D42: 36665.21456 | E42: =D42/C42 -> 0.03168543035
B43: RPPTOU | C43: 11748521.63 | D43: 373899.4621 | E43: 0.03182523502
B44: Grand Total | C44: 12905684.85 | D44: 410564.6766
C46: =SUM(C20:C25)-C44 -> -3169366.251
C47: =C46/C44 -> -0.245579083
A60: Year | B60: 2023
A62: Class A
A63: Source | B63: kWh
A64: 202308 | B64: 4268877.49
A67: ga_actual | B67: year
A68: month | B68: 2023
A69: 202308 | B69: 7.610000134
A72: chargetype | B72: 148
A74: Sum of chargeamount | B74: year
A75: month | B75: 2023
A76: 202308 | B76: 1212483.09

Sheet I17 Input Rev 08 Init
A1: Reverse IESO Posted
A5: =Admin!B29 -> 202308
A6: RPP Revenue Prices | B6: kWh Volumes | C6: $ RPP Settlement
A7: RPPTiered_1 | B7: 784759.13 | C7: 4182.5
A8: RPPTiered_2 | B8: 284152.27 | C8: -3031.94
A9: RPPTOU_MID | B9: 1704511.01 | C9: -13751.63
A10: RPPTOU_OFF | B10: 5883687.93 | C10: 117275.24
A11: RPPTOU_ON | B11: 1898516.04 | C11: -108343.29
A12: Grand Total | B12: 10555626.38 | C12: -3669.12

Sheet I18 Input 09 Trueup Sett
A1: Date: | B1: =Admin!B8+8 -> 202309 | C1: Trueup | K1: ="Data for 1st True up of RPP Settlement based on Actual IESO Invoice" -> Data for 1st True up of RPP Settlement based on Actual IESO Invoice | P1: For Reconciliation
A3: Wholesale Electricty | B3: Year | C3: 2023 | E3: Rate | P3: Actual RPP Revenue and GA
B4: dateref | C4: 202309 | K4: Wholesale Volume data per IESO Power Bill: | L4: GA RPP/non-RPP Ratios | M4: GA Volumes | N4: Energy Volumes | P4: =B1 -> 202309
K5: AQEW | M5: =C10 -> 18297579.24 | N5: =+M5 -> 18297579.24 | P5: RPP Revenue Prices | Q5: RPP Rate | R5: Estimated RPP Energy Price | S5: GA actual IESO billed | T5: Total Commodity | U5: Difference | V5: kWh Volumes | W5: $ Estimated RPP Revenue | X5: $ Estimated RPP Energy | Y5: $ Estimated GA | Z5: $ Estimated RPP Settlement
B6: Wholesale | K6: Embedded Generation | M6: =SUM(C8:C9) -> 741934.17 | N6: =+M6 -> 741934.17 | P6: RPPT1 | Q6: =E20 -> 0.08699989983 | R6: =E42 -> 0.0411178803 | S6: =L32 -> 0.05090000153 | T6: =R6+S6 -> 0.09201788183 | U6: =+Q6-T6 -> -0.005017981992 | V6: =M18 -> 703289.7193 | W6: =Q6*V6 -> 61186.13513 | X6: =R6*V6 -> 28917.78249 | Y6: =+V6*S6 -> 35797.44778 | Z6: =W6-X6-Y6 -> -3529.095146
A7: FIT/mFIT | B7: Source | C7: kWh | D7: Total Cost | K7: Class A customer Volumes for GA (TLF included) | M7: =-B64 -> -3924844.59 | P7: RPPT2 | Q7: =E21 -> 0.1030013799 | R7: =R6 -> 0.0411178803 | S7: =S6 -> 0.05090000153 | T7: =R7+S7 -> 0.09201788183 | U7: =+Q7-T7 -> 0.01098349811 | V7: =M19 -> 185110.8783 | W7: =Q7*V7 -> 19066.67591 | X7: =R7*V7 -> 7611.366937 | Y7: =+V7*S7 -> 9422.143989 | Z7: =W7-X7-Y7 -> 2033.164982
B8: FIT | C8: 702578.68 | D8: 29523.77 | E8: =D8/C8 -> 0.0420220124 | M8: =+M5+M6+M7 -> 15114668.82 | N8: =+N5+N6+N7 -> 19039513.41 | P8: RPPTOUMID | Q8: =E23 -> 0.1020019068 | R8: =E43 -> 0.04157872785 | S8: =S7 -> 0.05090000153 | T8: 0.09247872938 | U8: 0.009523177436 | V8: 1454616.254 | W8: 148373.6316 | X8: 60481.09337 | Y8: 74039.96957 | Z8: 13852.56869
B9: microFIT | C9: 39355.49 | D9: 1666.18 | E9: =D9/C9 -> 0.04233666002 | P9: RPPTOUOFF | Q9: =E24 -> 0.07400035659 | R9: =R8 -> 0.04157872785 | S9: 0.05090000153 | T9: 0.09247872938 | U9: -0.01847837279 | V9: 4945976.093 | W9: 366003.9946 | X9: 205647.394 | Y9: 251750.1907 | Z9: -91393.59006
B10: WHOLESALE | C10: 18297579.24 | D10: 733006.83 | E10: =D10/C10 -> 0.04006031729 | K10: Estimated Retail Volume Revenue Data (TLF Included) | L10: RPP/non-RPP Ratios | M10: GA Volumes | N10: Energy Volumes | P10: RPPTOUON | Q10: 0.1509576518 | R10: =R9 -> 0.04157872785 | S10: 0.05090000153 | T10: 0.09247872938 | U10: 0.05847892238 | V10: 1541732.751 | W10: 232736.3557 | X10: 64103.28647 | Y10: 78474.19937 | Z10: 90158.86986
A11: Total Wholesale Electricity | B11: Grand Total | C11: 19039513.41 | D11: 764196.78 | K11: Estimated Retail Revenue Data (Net of Retail Billed/Unbilled) | M11: =+M15 -> 15114668.82 | N11: =+N15 -> 19039513.41 | P11: RPPULOMID | Q11: 0 | R11: 0 | S11: 0 | T11: 0 | U11: 0 | V11: 0 | W11: 0 | X11: 0 | Y11: 0 | Z11: 0
P12: RPPULOOFF | Q12: 0 | R12: 0 | S12: 0 | T12: 0 | U12: 0 | V12: 0 | W12: 0 | X12: 0 | Y12: 0 | Z12: 0
K13: Estimated RPP Sales Quantities | L13: =SUM(C20:C25)/(C30-B64) -> 0.5842487058 | M13: =M8*L13 -> 8830725.696 | N13: =M13 -> 8830725.696 | P13: RPPULOON | Q13: 0 | R13: 0 | S13: 0 | T13: 0 | U13: 0 | V13: 0 | W13: 0 | X13: 0 | Y13: 0 | Z13: 0
A14: RPP Revenue Volume and Price Data | K14: Estimated non-RPP Sales Quantities | L14: =1-L13 -> 0.4157512942 | M14: =M8*L14 -> 6283943.124 | N14: =N8-N13 -> 10208787.71 | P14: RPPULOOVN | Q14: 0 | R14: 0 | S14: 0 | T14: 0 | U14: 0 | V14: 0 | W14: 0 | X14: 0 | Y14: 0 | Z14: 0
B15: bill_year | C15: 2023 | K15: Estimated Retail Revenue kWh Volumes | L15: =+L13+L14 -> 1 | M15: =+M13+M14 -> 15114668.82 | N15: =+N13+N14 -> 19039513.41 | V15: =SUM(V6:V14) -> 8830725.696 | W15: =SUM(W6:W14) -> 827366.793 | X15: =SUM(X6:X14) -> 366760.9232 | Y15: =SUM(Y6:Y14) -> 449483.9514 | Z15: =SUM(Z6:Z14) -> 11121.91833
B16: bill_month | C16: 9 | Z16: =W15-X15-Y15-Z15 -> 0
K17: Estimated RPP Revenue Volume and Price Data | L17: Actual % | M17: kWh Volumes
B18: Row Labels | C18: usagebilled | D18: amountbilled | E18: Rate | K18: RPPT1 | L18: =C20/SUM($C$20:$C$25) -> 0.07964121449 | M18: =$M$13*L18 -> 703289.7193
B19: RPPTIER | K19: RPPT2 | L19: =C21/SUM($C$20:$C$25) -> 0.0209621366 | M19: =$M$13*L19 -> 185110.8783
B20: RPPT1 | C20: 694250.1972 | D20: 60399.69762 | E20: =D20/C20 -> 0.08699989983 | K20: RPPTOUMID | L20: =C23/SUM($C$20:$C$25) -> 0.1647221649 | M20: 1454616.254
B21: RPPT2 | C21: 182731.6115 | D21: 18821.60815 | E21: =D21/C21 -> 0.1030013799 | K21: RPPTOUOFF | L21: =C24/SUM($C$20:$C$25) -> 0.560087162 | M21: 4945976.093
B22: RPPTOU | K22: RPPTOUON | L22: 0.174587322 | M22: 1541732.751
B23: RPPTOUMID | C23: 1435919.783 | D23: 146466.556 | E23: 0.1020019068 | K23: RPPULOMID | L23: 0 | M23: 0
B24: RPPTOUOFF | C24: 4882404.483 | D24: 361299.6727 | E24: 0.07400035659 | K24: RPPULOOFF | L24: 0 | M24: 0
B25: RPPTOUON | C25: 1521916.554 | D25: 229744.9492 | E25: 0.1509576518 | K25: RPPULOON | L25: 0 | M25: 0
B26: RETAIL | K26: RPPULOOVN | L26: 0 | M26: 0
B27: NSLS | C27: 3483935.793 | D27: 137446.4105 | E27: 0.03945147634 | L27: =SUM(L18:L26) -> 1 | M27: =SUM(M18:M26) -> 8830725.696
B28: INTERVAL
B29: HOEP | C29: 6644083.156 | D29: 252765.2606 | E29: 0.03804366301
B30: Grand Total | C30: 18845241.58 | D30: 1206944.155
K31: Global Adjustment | L31: per kWh
C32: =C30/C11-1 -> -0.0102036133 | K32: Class B - GA actual8 | L32: =B69/100 -> 0.05090000153 | N32: GA Posted Price
K33: Class B - GA actual IESO billed | L33: =+M33/M8 -> 0.05598357331 | M33: =B76 -> 846173.17 | N33: GA Billed by IESO CT 148
A37: RPP COP Volume and Price Data
B38: bill_year | C38: 2023
B39: bill_month | C39: 9
B41: Row Labels | C41: usagebilled | D41: amountbilled | E41: Rate
B42: RPPTIERED | C42: 877004.3947 | D42: 36060.56172 | E42: =D42/C42 -> 0.0411178803
B43: RPPTOU | C43: 7837432.196 | D43: 325870.4603 | E43: 0.04157872785
B44: Grand Total | C44: 8714436.59 | D44: 361931.0221
C46: =SUM(C20:C25)-C44 -> 2786.039164
C47: =C46/C44 -> 0.000319703877
A60: Year | B60: 2023
A62: Class A
A63: Source | B63: kWh
A64: 202309 | B64: 3924844.59
A67: ga_actual | B67: year
A68: month | B68: 2023
A69: 202309 | B69: 5.090000153
A72: chargetype | B72: 148
A74: Sum of chargeamount | B74: year
A75: month | B75: 2023
A76: 202309 | B76: 846173.17

Sheet I19 Input Rev 09 Init
A1: Reverse IESO Posted
A5: =Admin!B32 -> 202309
A6: RPP Revenue Prices | B6: kWh Volumes | C6: $ RPP Settlement
A7: RPPTiered_1 | B7: 740938.81 | C7: 13933.55
A8: RPPTiered_2 | B8: 218681.73 | C8: 613.67
A9: RPPTOU_MID | B9: 1688552.63 | C9: 4992.81
A10: RPPTOU_OFF | B10: 5181065.23 | C10: 160398.43
A11: RPPTOU_ON | B11: 1861109.95 | C11: -85690.49
A12: Grand Total | B12: 9690348.35 | C12: 94247.97

Sheet I20 Input 10 Trueup Sett
A1: Date: | B1: =Admin!B8+9 -> 202310 | C1: Trueup | K1: ="Data for 1st True up of RPP Settlement based on Actual IESO Invoice" -> Data for 1st True up of RPP Settlement based on Actual IESO Invoice | P1: For Reconciliation
A3: Wholesale Electricty | B3: Year | C3: 2023 | E3: Rate | P3: Actual RPP Revenue and GA
B4: dateref | C4: 202310 | K4: Wholesale Volume data per IESO Power Bill: | L4: GA RPP/non-RPP Ratios | M4: GA Volumes | N4: Energy Volumes | P4: =B1 -> 202310
K5: AQEW | M5: =C10 -> 18253066.7 | N5: =+M5 -> 18253066.7 | P5: RPP Revenue Prices | Q5: RPP Rate | R5: Estimated RPP Energy Price | S5: GA actual IESO billed | T5: Total Commodity | U5: Difference | V5: kWh Volumes | W5: $ Estimated RPP Revenue | X5: $ Estimated RPP Energy | Y5: $ Estimated GA | Z5: $ Estimated RPP Settlement
B6: Wholesale | K6: Embedded Generation | M6: =SUM(C8:C9) -> 455092.03 | N6: =+M6 -> 455092.03 | P6: RPPT1 | Q6: =E20 -> 0.08702943147 | R6: =E42 -> 0.03159153541 | S6: =L32 -> 0.08498000145 | T6: =R6+S6 -> 0.1165715369 | U6: =+Q6-T6 -> -0.0295421054 | V6: =M18 -> 730442.3144 | W6: =Q6*V6 -> 63569.97934 | X6: =R6*V6 -> 23075.79424 | Y6: =+V6*S6 -> 62072.98894 | Z6: =W6-X6-Y6 -> -21578.80384
A7: FIT/mFIT | B7: Source | C7: kWh | D7: Total Cost | K7: Class A customer Volumes for GA (TLF included) | M7: =-B64 -> -3882685 | P7: RPPT2 | Q7: =E21 -> 0.1039439819 | R7: =R6 -> 0.03159153541 | S7: =S6 -> 0.08498000145 | T7: =R7+S7 -> 0.1165715369 | U7: =+Q7-T7 -> -0.01262755501 | V7: =M19 -> 252214.389 | W7: =Q7*V7 -> 26216.16787 | X7: =R7*V7 -> 7967.839802 | Y7: =+V7*S7 -> 21433.17914 | Z7: =W7-X7-Y7 -> -3184.851071
B8: FIT | C8: 430867.01 | D8: 14336.59 | E8: =D8/C8 -> 0.0332738169 | M8: =+M5+M6+M7 -> 14825473.73 | N8: =+N5+N6+N7 -> 18708158.73 | P8: RPPTOUMID | Q8: =E23 -> 0.1020173665 | R8: =E43 -> 0.03176737733 | S8: =S7 -> 0.08498000145 | T8: 0.1167473788 | U8: -0.01473001232 | V8: 1438787.072 | W8: 146781.268 | X8: 45706.49182 | Y8: 122268.1275 | Z8: -21193.3513
B9: microFIT | C9: 24225.02 | D9: 809.63 | E9: =D9/C9 -> 0.03342123144 | P9: RPPTOUOFF | Q9: =E24 -> 0.07400751085 | R9: =R8 -> 0.03176737733 | S9: 0.08498000145 | T9: 0.1167473788 | U9: -0.04273986793 | V9: 4749065.783 | W9: 351466.5375 | X9: 150865.3647 | Y9: 403575.6171 | Z9: -202974.4444
B10: WHOLESALE | C10: 18253066.7 | D10: 576644.25 | E10: =D10/C10 -> 0.0315916366 | K10: Estimated Retail Volume Revenue Data (TLF Included) | L10: RPP/non-RPP Ratios | M10: GA Volumes | N10: Energy Volumes | P10: RPPTOUON | Q10: 0.1509657748 | R10: =R9 -> 0.03176737733 | S10: 0.08498000145 | T10: 0.1167473788 | U10: 0.03421839598 | V10: 1435273.958 | W10: 216677.2451 | X10: 45594.88941 | Y10: 121969.583 | Z10: 49112.77264
A11: Total Wholesale Electricity | B11: Grand Total | C11: 18708158.73 | D11: 591790.47 | K11: Estimated Retail Revenue Data (Net of Retail Billed/Unbilled) | M11: =+M15 -> 14825473.73 | N11: =+N15 -> 18708158.73 | P11: RPPULOMID | Q11: 0 | R11: 0 | S11: 0 | T11: 0 | U11: 0 | V11: 0 | W11: 0 | X11: 0 | Y11: 0 | Z11: 0
P12: RPPULOOFF | Q12: 0 | R12: 0 | S12: 0 | T12: 0 | U12: 0 | V12: 0 | W12: 0 | X12: 0 | Y12: 0 | Z12: 0
K13: Estimated RPP Sales Quantities | L13: =SUM(C20:C25)/(C30-B64) -> 0.5804727507 | M13: =M8*L13 -> 8605783.517 | N13: =M13 -> 8605783.517 | P13: RPPULOON | Q13: 0 | R13: 0 | S13: 0 | T13: 0 | U13: 0 | V13: 0 | W13: 0 | X13: 0 | Y13: 0 | Z13: 0
A14: RPP Revenue Volume and Price Data | K14: Estimated non-RPP Sales Quantities | L14: =1-L13 -> 0.4195272493 | M14: =M8*L14 -> 6219690.213 | N14: =N8-N13 -> 10102375.21 | P14: RPPULOOVN | Q14: 0 | R14: 0 | S14: 0 | T14: 0 | U14: 0 | V14: 0 | W14: 0 | X14: 0 | Y14: 0 | Z14: 0
B15: bill_year | C15: 2023 | K15: Estimated Retail Revenue kWh Volumes | L15: =+L13+L14 -> 1 | M15: =+M13+M14 -> 14825473.73 | N15: =+N13+N14 -> 18708158.73 | V15: =SUM(V6:V14) -> 8605783.517 | W15: =SUM(W6:W14) -> 804711.1978 | X15: =SUM(X6:X14) -> 273210.38 | Y15: =SUM(Y6:Y14) -> 731319.4957 | Z15: =SUM(Z6:Z14) -> -199818.678
B16: bill_month | C16: 10 | Z16: =W15-X15-Y15-Z15 -> 0
K17: Estimated RPP Revenue Volume and Price Data | L17: Actual % | M17: kWh Volumes
B18: Row Labels | C18: usagebilled | D18: amountbilled | E18: Rate | K18: RPPT1 | L18: =C20/SUM($C$20:$C$25) -> 0.08487807217 | M18: =$M$13*L18 -> 730442.3144
B19: RPPTIER | K19: RPPT2 | L19: =C21/SUM($C$20:$C$25) -> 0.02930754515 | M19: =$M$13*L19 -> 252214.389
B20: RPPT1 | C20: 722097.7959 | D20: 62843.76064 | E20: =D20/C20 -> 0.08702943147 | K20: RPPTOUMID | L20: =C23/SUM($C$20:$C$25) -> 0.1671883878 | M20: 1438787.072
B21: RPPT2 | C21: 249333.1106 | D21: 25916.67633 | E21: =D21/C21 -> 0.1039439819 | K21: RPPTOUOFF | L21: =C24/SUM($C$20:$C$25) -> 0.5518458341 | M21: 4749065.783
B22: RPPTOU | K22: RPPTOUON | L22: 0.1667801607 | M22: 1435273.958
B23: RPPTOUMID | C23: 1422350.476 | D23: 145104.4497 | E23: 0.1020173665 | K23: RPPULOMID | L23: 0 | M23: 0
B24: RPPTOUOFF | C24: 4694812.81 | D24: 347451.41 | E24: 0.07400751085 | K24: RPPULOOFF | L24: 0 | M24: 0
B25: RPPTOUON | C25: 1418877.496 | D25: 214201.9404 | E25: 0.1509657748 | K25: RPPULOON | L25: 0 | M25: 0
B26: RETAIL | K26: RPPULOOVN | L26: 0 | M26: 0
B27: NSLS | C27: 3210928.766 | D27: 102478.5392 | E27: 0.03191554428 | L27: =SUM(L18:L26) -> 1 | M27: =SUM(M18:M26) -> 8605783.517
B28: INTERVAL
B29: HOEP | C29: 6820393.171 | D29: 214299.4997 | E29: 0.03142040265
B30: Grand Total | C30: 18538793.62 | D30: 1112296.276
K31: Global Adjustment | L31: per kWh
C32: =C30/C11-1 -> -0.009053007715 | K32: Class B - GA actual8 | L32: =B69/100 -> 0.08498000145 | N32: GA Posted Price
K33: Class B - GA actual IESO billed | L33: =+M33/M8 -> 0.08164649117 | M33: =B76 -> 1210447.91 | N33: GA Billed by IESO CT 148
A37: RPP COP Volume and Price Data
B38: bill_year | C38: 2023
B39: bill_month | C39: 10
B41: Row Labels | C41: usagebilled | D41: amountbilled | E41: Rate
B42: RPPTIERED | C42: 956727.5544 | D42: 30224.49242 | E42: =D42/C42 -> 0.03159153541
B43: RPPTOU | C43: 7540322.949 | D43: 239536.2843 | E43: 0.03176737733
B44: Grand Total | C44: 8497050.503 | D44: 269760.7767
C46: =SUM(C20:C25)-C44 -> 10421.18517
C47: =C46/C44 -> 0.001226447361
A60: Year | B60: 2023
A62: Class A
A63: Source | B63: kWh
A64: 202310 | B64: 3882685
A67: ga_actual | B67: year
A68: month | B68: 2023
A69: 202310 | B69: 8.498000145
A72: chargetype | B72: 148
A74: Sum of chargeamount | B74: year
A75: month | B75: 2023
A76: 202310 | B76: 1210447.91

Sheet I21 Input Rev 10 Init
A1: Reverse IESO Posted
A5: =Admin!B35 -> 202310
A6: RPP Revenue Prices | B6: kWh Volumes | C6: $ RPP Settlement
A7: RPPTiered_1 | B7: 703730.44 | C7: 4781.1
A8: RPPTiered_2 | B8: 183973.45 | C8: -1693.9
A9: RPPTOU_MID | B9: 1476119.17 | C9: -9772.52
A10: RPPTOU_OFF | B10: 4931190.21 | C10: 105432.22
A11: RPPTOU_ON | B11: 1577384.03 | C11: -87735.01
A12: Grand Total | B12: 8872397.3 | C12: 11011.89

Sheet I22 Input 11 Trueup Sett
A1: Date: | B1: =Admin!B8+10 -> 202311 | C1: Trueup | K1: ="Data for 1st True up of RPP Settlement based on Actual IESO Invoice" -> Data for 1st True up of RPP Settlement based on Actual IESO Invoice | P1: For Reconciliation
A3: Wholesale Electricty | B3: Year | C3: 2023 | E3: Rate | P3: Actual RPP Revenue and GA
B4: dateref | C4: 202311 | K4: Wholesale Volume data per IESO Power Bill: | L4: GA RPP/non-RPP Ratios | M4: GA Volumes | N4: Energy Volumes | P4: =B1 -> 202311
K5: AQEW | M5: =C10 -> 19495196.68 | N5: =+M5 -> 19495196.68 | P5: RPP Revenue Prices | Q5: RPP Rate | R5: Estimated RPP Energy Price | S5: GA actual IESO billed | T5: Total Commodity | U5: Difference | V5: kWh Volumes | W5: $ Estimated RPP Revenue | X5: $ Estimated RPP Energy | Y5: $ Estimated GA | Z5: $ Estimated RPP Settlement
B6: Wholesale | K6: Embedded Generation | M6: =SUM(C8:C9) -> 294078.53 | N6: =+M6 -> 294078.53 | P6: RPPT1 | Q6: =E21 -> 0.1029971029 | R6: =E43 -> 0.03061927656 | S6: =L32 -> 0.07090000153 | T6: =R6+S6 -> 0.1015192781 | U6: =+Q6-T6 -> 0.001477824787 | V6: =M18 -> 906298.7394 | W6: =Q6*V6 -> 93346.1445 | X6: =R6*V6 -> 27750.21174 | Y6: =+V6*S6 -> 64256.58201 | Z6: =W6-X6-Y6 -> 1339.350742
A7: FIT/mFIT | B7: Source | C7: kWh | D7: Total Cost | K7: Class A customer Volumes for GA (TLF included) | M7: =-B64 -> -3755295.76 | P7: RPPT2 | Q7: =E22 -> 0.1250004963 | R7: =R6 -> 0.03061927656 | S7: =S6 -> 0.07090000153 | T7: =R7+S7 -> 0.1015192781 | U7: =+Q7-T7 -> 0.02348121823 | V7: =M19 -> 232997.2196 | W7: =Q7*V7 -> 29124.76809 | X7: =R7*V7 -> 7134.206305 | Y7: =+V7*S7 -> 16519.50323 | Z7: =W7-X7-Y7 -> 5471.058561
B8: FIT | C8: 277184.39 | D8: 8603.02 | E8: =D8/C8 -> 0.03103717349 | M8: =+M5+M6+M7 -> 16033979.45 | N8: =+N5+N6+N7 -> 19789275.21 | P8: RPPTOUMID | Q8: =E24 -> 0.1219873361 | R8: =E44 -> 0.03067993386 | S8: =S7 -> 0.07090000153 | T8: 0.1015799354 | U8: 0.02040740076 | V8: 1693134.384 | W8: 206540.9532 | X8: 51945.2509 | Y8: 120043.2304 | Z8: 34552.47191
B9: microFIT | C9: 16894.14 | D9: 523.13 | E9: =D9/C9 -> 0.03096517491 | P9: RPPTOUOFF | Q9: =E25 -> 0.08699072482 | R9: =R8 -> 0.03067993386 | S9: 0.07090000153 | T9: 0.1015799354 | U9: -0.01458921056 | V9: 5146306.376 | W9: 447680.9218 | X9: 157888.3392 | Y9: 364873.1299 | Z9: -75080.54731
B10: WHOLESALE | C10: 19495196.68 | D10: 593503.34 | E10: =D10/C10 -> 0.0304435677 | K10: Estimated Retail Volume Revenue Data (TLF Included) | L10: RPP/non-RPP Ratios | M10: GA Volumes | N10: Energy Volumes | P10: RPPTOUON | Q10: 0.1819776205 | R10: =R9 -> 0.03067993386 | S10: 0.07090000153 | T10: 0.1015799354 | U10: 0.08039768507 | V10: 1753365.777 | W10: 319073.3319 | X10: 53793.14607 | Y10: 124313.6363 | Z10: 140966.5496
A11: Total Wholesale Electricity | B11: Grand Total | C11: 19789275.21 | D11: 602629.49 | K11: Estimated Retail Revenue Data (Net of Retail Billed/Unbilled) | M11: =+M15 -> 16033979.45 | N11: =+N15 -> 19789275.21 | P11: RPPULOMID | Q11: =E28 -> 0.1220040582 | R11: =E45 -> 0.03067237149 | S11: 0.07090000153 | T11: 0.101572373 | U11: 0.02043168522 | V11: 514.2577712 | W11: 62.74153507 | X11: 15.7735054 | Y11: 36.46087676 | Z11: 10.5071529
P12: RPPULOOFF | Q12: =E29 -> 0.08701100515 | R12: =R11 -> 0.03067237149 | S12: 0.07090000153 | T12: 0.101572373 | U12: -0.01456136787 | V12: 331.3806242 | W12: 28.8337612 | X12: 10.16422961 | Y12: 23.49488676 | Z12: -4.825355175
K13: Estimated RPP Sales Quantities | L13: =SUM(C21:C31)/(C36-B64) -> 0.607076377 | M13: =M8*L13 -> 9733850.154 | N13: =M13 -> 9733850.154 | P13: RPPULOON | Q13: 0.2860148392 | R13: =R12 -> 0.03067237149 | S13: 0.07090000153 | T13: 0.101572373 | U13: 0.1844424662 | V13: 284.023168 | W13: 81.23484074 | X13: 8.711664123 | Y13: 20.13724305 | Z13: 52.38593357
A14: RPP Revenue Volume and Price Data | K14: Estimated non-RPP Sales Quantities | L14: =1-L13 -> 0.392923623 | M14: =M8*L14 -> 6300129.296 | N14: =N8-N13 -> 10055425.06 | P14: RPPULOOVN | Q14: 0.02800721317 | R14: 0.03067237149 | S14: 0.07090000153 | T14: 0.101572373 | U14: -0.07356515985 | V14: 617.9964877 | W14: 17.30835937 | X14: 18.95541785 | Y14: 43.81595192 | Z14: -45.4630104
K15: Estimated Retail Revenue kWh Volumes | L15: =+L13+L14 -> 1 | M15: =+M13+M14 -> 16033979.45 | N15: =+N13+N14 -> 19789275.21 | V15: =SUM(V6:V14) -> 9733850.154 | W15: =SUM(W6:W14) -> 1095956.238 | X15: =SUM(X6:X14) -> 298564.759 | Y15: =SUM(Y6:Y14) -> 690129.9907 | Z15: =SUM(Z6:Z14) -> 107261.4882
B16: bill_year | C16: 2023
B17: bill_month | C17: 11 | K17: Estimated RPP Revenue Volume and Price Data | L17: Actual % | M17: kWh Volumes
K18: RPPT1 | L18: =C21/SUM($C$21:$C$31) -> 0.09310794035 | M18: =$M$13*L18 -> 906298.7394
B19: Row Labels | C19: usagebilled | D19: amountbilled | E19: Rate | K19: RPPT2 | L19: =C22/SUM($C$21:$C$31) -> 0.02393679952 | M19: =$M$13*L19 -> 232997.2196
B20: RPPTIER | K20: RPPTOUMID | L20: =C24/SUM($C$21:$C$31) -> 0.1739429267 | M20: 1693134.384
B21: RPPT1 | C21: 894865.0652 | D21: 92168.50918 | E21: =D21/C21 -> 0.1029971029 | K21: RPPTOUOFF | L21: =C25/SUM($C$21:$C$31) -> 0.5287020341 | M21: 5146306.376
B22: RPPT2 | C22: 230057.7757 | D22: 28757.33615 | E22: =D22/C22 -> 0.1250004963 | K22: RPPTOUON | L22: 0.180130755 | M22: 1753365.777
B23: RPPTOU | K23: RPPULOMID | L23: =C28/SUM($C$21:$C$31) -> 5.283189725e-05 | M23: 514.2577712
B24: RPPTOUMID | C24: 1671774.156 | D24: 203935.276 | E24: =D24/C24 -> 0.1219873361 | K24: RPPULOOFF | L24: =C29/SUM($C$21:$C$31) -> 3.404414687e-05 | M24: 331.3806242
B25: RPPTOUOFF | C25: 5081381.657 | D25: 442033.0735 | E25: 0.08699072482 | K25: RPPULOON | L25: 2.917891313e-05 | M25: 284.023168
B26: RPPTOUON | C26: 1731245.683 | D26: 315047.9699 | E26: 0.1819776205 | K26: RPPULOOVN | L26: 6.348941867e-05 | M26: 617.9964877
B27: RPPULO | L27: =SUM(L18:L26) -> 1 | M27: =SUM(M18:M26) -> 9733850.154
B28: RPPULOMID | C28: 507.7700034 | D28: 61.95000106 | E28: =D28/C28 -> 0.1220040582
B29: RPPULOOFF | C29: 327.199996 | D29: 28.47000053 | E29: 0.08701100515
B30: RPPULOON | C30: 280.4399915 | D30: 80.20999908 | E30: 0.2860148392
B31: RPPULOOVN | C31: 610.199974 | D31: 17.09000075 | E31: 0.02800721317 | K31: Global Adjustment | L31: per kWh
B32: RETAIL | K32: Class B - GA actual8 | L32: =B69/100 -> 0.07090000153 | N32: GA Posted Price
B33: NSLS | C33: 3138326.605 | D33: 95222.52736 | E33: 0.03034181567 | K33: Class B - GA actual IESO billed | L33: =+M33/M8 -> 0.07083014629 | M33: =B76 -> 1135689.11 | N33: GA Billed by IESO CT 148
B34: INTERVAL
B35: HOEP | C35: 6837617.346 | D35: 205709.0723 | E35: 0.03008490559
B36: Grand Total | C36: 19586993.9 | D36: 1383061.484
C37: =C36/C11-1 -> -0.0102217645
A38: RPP COP Volume and Price Data
B39: bill_year | C39: 2023
B40: bill_month | C40: 11
B42: Row Labels | C42: usagebilled | D42: amountbilled | E42: Rate
B43: RPPTIERED | C43: 1131897.384 | D43: 34657.87904 | E43: =D43/C43 -> 0.03061927656
B44: RPPTOU | C44: 8485823.832 | D44: 260344.5139 | E44: 0.03067993386
B45: RPPULO | C45: 1956.809978 | D45: 60.0200026 | E45: 0.03067237149
B46: Grand Total | C46: 9619678.027 | D46: 295062.4129
C47: =SUM(C21:C31)-C46 -> -8628.078351
C48: =C47/C46 -> -0.0008969196606
A60: Year | B60: 2023
A62: Class A
A63: Source | B63: kWh
A64: 202311 | B64: 3755295.76
A67: ga_actual | B67: year
A68: month | B68: 2023
A69: 202311 | B69: 7.090000153
A72: chargetype | B72: 148
A74: Sum of chargeamount | B74: year
A75: month | B75: 2023
A76: 202311 | B76: 1135689.11

Sheet I23 Input Rev 11 Init
A1: Reverse IESO Posted
A5: =Admin!B38 -> 202311
A6: RPP Revenue Prices | B6: kWh Volumes | C6: $ RPP Settlement
A7: RPPTiered_1 | B7: 722860.55 | C7: 19696.92
A8: RPPTiered_2 | B8: 233965.32 | C8: 2631.83
A9: RPPTOU_MID | B9: 1413513.21 | C9: 14773.93
A10: RPPTOU_OFF | B10: 4700841.07 | C10: 180756.95
A11: RPPTOU_ON | B11: 1425579.8 | C11: -54953.65
A12: Grand Total | B12: =SUM(B7:B11) -> 8496759.95 | C12: =SUM(C7:C11) -> 162905.98

Sheet I24 Input 12 Trueup Sett
A1: Date: | B1: =Admin!B8+11 -> 202312 | C1: Trueup | K1: ="Data for 1st True up of RPP Settlement based on Actual IESO Invoice" -> Data for 1st True up of RPP Settlement based on Actual IESO Invoice | P1: For Reconciliation
A3: Wholesale Electricty | B3: Year | C3: 2023 | E3: Rate | P3: Actual RPP Revenue and GA
B4: dateref | C4: 202312 | K4: Wholesale Volume data per IESO Power Bill: | L4: GA RPP/non-RPP Ratios | M4: GA Volumes | N4: Energy Volumes | P4: =B1 -> 202312
K5: AQEW | M5: =C10 -> 19766502.12 | N5: =+M5 -> 19766502.12 | P5: RPP Revenue Prices | Q5: RPP Rate | R5: Estimated RPP Energy Price | S5: GA actual IESO billed | T5: Total Commodity | U5: Difference | V5: kWh Volumes | W5: $ Estimated RPP Revenue | X5: $ Estimated RPP Energy | Y5: $ Estimated GA | Z5: $ Estimated RPP Settlement
B6: Wholesale | K6: Embedded Generation | M6: =SUM(C8:C9) -> 145030.07 | N6: =+M6 -> 145030.07 | P6: RPPT1 | Q6: =E21 -> 0.1030001606 | R6: =E43 -> 0.03105703045 | S6: =L32 -> 0.06622000217 | T6: =R6+S6 -> 0.09727703263 | U6: =+Q6-T6 -> 0.005723127967 | V6: =M18 -> 977717.2632 | W6: =Q6*V6 -> 100705.0351 | X6: =R6*V6 -> 30364.99482 | Y6: =+V6*S6 -> 64744.4393 | Z6: =W6-X6-Y6 -> 5595.601013
A7: FIT/mFIT | B7: Source | C7: kWh | D7: Total Cost | K7: Class A customer Volumes for GA (TLF included) | M7: =-B64 -> -2850485.17 | P7: RPPT2 | Q7: =E22 -> 0.124999833 | R7: =R6 -> 0.03105703045 | S7: =S6 -> 0.06622000217 | T7: =R7+S7 -> 0.09727703263 | U7: =+Q7-T7 -> 0.02772280036 | V7: =M19 -> 282063.6496 | W7: =Q7*V7 -> 35257.9091 | X7: =R7*V7 -> 8760.059356 | Y7: =+V7*S7 -> 18678.25549 | Z7: =W7-X7-Y7 -> 7819.594248
B8: FIT | C8: 136716.92 | D8: 4354.31 | E8: =D8/C8 -> 0.03184909373 | M8: =+M5+M6+M7 -> 17061047.02 | N8: =+N5+N6+N7 -> 19911532.19 | P8: RPPTOUMID | Q8: =E24 -> 0.121998452 | R8: =E44 -> 0.03115258942 | S8: =S7 -> 0.06622000217 | T8: 0.09737259159 | U8: 0.02462586039 | V8: 1622984.428 | W8: 198001.5878 | X8: 50560.16753 | Y8: 107474.0324 | Z8: 39967.38795
B9: microFIT | C9: 8313.15 | D9: 262.58 | E9: =D9/C9 -> 0.03158610154 | P9: RPPTOUOFF | Q9: =E25 -> 0.08699906739 | R9: =R8 -> 0.03115258942 | S9: 0.06622000217 | T9: 0.09737259159 | U9: -0.0103735242 | V9: 6402008.347 | W9: 556968.7556 | X9: 199439.1375 | Y9: 423941.0067 | Z9: -66411.38854
B10: WHOLESALE | C10: 19766502.12 | D10: 617049.42 | E10: =D10/C10 -> 0.03121692529 | K10: Estimated Retail Volume Revenue Data (TLF Included) | L10: RPP/non-RPP Ratios | M10: GA Volumes | N10: Energy Volumes | P10: RPPTOUON | Q10: 0.1819975505 | R10: =R9 -> 0.03115258942 | S10: 0.06622000217 | T10: 0.09737259159 | U10: 0.08462495887 | V10: 1646209.036 | W10: 299606.0121 | X10: 51283.67419 | Y10: 109011.9659 | Z10: 139310.3719
A11: Total Wholesale Electricity | B11: Grand Total | C11: 19911532.19 | D11: 621666.31 | K11: Estimated Retail Revenue Data (Net of Retail Billed/Unbilled) | M11: =+M15 -> 17061047.02 | N11: =+N15 -> 19911532.19 | P11: RPPULOMID | Q11: =E28 -> 0.1220016532 | R11: =E45 -> 0.03114012418 | S11: 0.06622000217 | T11: 0.09736012636 | U11: 0.02464152686 | V11: 1717.96935 | W11: 209.5951008 | X11: 53.49777889 | Y11: 113.7639341 | Z11: 42.33338787
P12: RPPULOOFF | Q12: =E29 -> 0.08699616815 | R12: =R11 -> 0.03114012418 | S12: 0.06622000217 | T12: 0.09736012636 | U12: -0.0103639582 | V12: 3662.169397 | W12: 318.5947047 | X12: 114.0404098 | Y12: 242.5088654 | Z12: -37.95457057
K13: Estimated RPP Sales Quantities | L13: =SUM(C21:C31)/(C36-B64) -> 0.6411421361 | M13: =M8*L13 -> 10938556.13 | N13: =M13 -> 10938556.13 | P13: RPPULOON | Q13: 0.2859891877 | R13: =R12 -> 0.03114012418 | S13: 0.06622000217 | T13: 0.09736012636 | U13: 0.1886290613 | V13: 1381.926988 | W13: 395.2161766 | X13: 43.033378 | Y13: 91.51120812 | Z13: 260.6715905
A14: RPP Revenue Volume and Price Data | K14: Estimated non-RPP Sales Quantities | L14: =1-L13 -> 0.3588578639 | M14: =M8*L14 -> 6122490.889 | N14: =N8-N13 -> 8972976.059 | P14: RPPULOOVN | Q14: 0.02799739792 | R14: 0.03114012418 | S14: 0.06622000217 | T14: 0.09736012636 | U14: -0.06936272844 | V14: 811.3411344 | W14: 22.71544059 | X14: 25.26526368 | Y14: 53.72701169 | Z14: -56.27683478
K15: Estimated Retail Revenue kWh Volumes | L15: =+L13+L14 -> 1 | M15: =+M13+M14 -> 17061047.02 | N15: =+N13+N14 -> 19911532.19 | V15: =SUM(V6:V14) -> 10938556.13 | W15: =SUM(W6:W14) -> 1191485.421 | X15: =SUM(X6:X14) -> 340643.8702 | Y15: =SUM(Y6:Y14) -> 724351.2108 | Z15: =SUM(Z6:Z14) -> 126490.3402
B16: bill_year | C16: 2023
B17: bill_month | C17: 12 | K17: Estimated RPP Revenue Volume and Price Data | L17: Actual % | M17: kWh Volumes
K18: RPPT1 | L18: =C21/SUM($C$21:$C$31) -> 0.0893826618 | M18: =$M$13*L18 -> 977717.2632
B19: Row Labels | C19: usagebilled | D19: amountbilled | E19: Rate | K19: RPPT2 | L19: =C22/SUM($C$21:$C$31) -> 0.02578618661 | M19: =$M$13*L19 -> 282063.6496
B20: RPPTIER | K20: RPPTOUMID | L20: =C24/SUM($C$21:$C$31) -> 0.1483728208 | M20: 1622984.428
B21: RPPT1 | C21: 963279.2697 | D21: 99217.91947 | E21: =D21/C21 -> 0.1030001606 | K21: RPPTOUOFF | L21: =C25/SUM($C$21:$C$31) -> 0.5852699635 | M21: 6402008.347
B22: RPPT2 | C22: 277898.4034 | D22: 34737.25401 | E22: 0.124999833 | K22: RPPTOUON | L22: 0.1504960084 | M22: 1646209.036
B23: RPPTOU | K23: RPPULOMID | L23: =C28/SUM($C$21:$C$31) -> 0.000157056318 | M23: 1717.96935
B24: RPPTOUMID | C24: 1599017.746 | D24: 195077.6897 | E24: 0.121998452 | K24: RPPULOOFF | L24: =C29/SUM($C$21:$C$31) -> 0.0003347945884 | M24: 3662.169397
B25: RPPTOUOFF | C25: 6307469.61 | D25: 548743.9737 | E25: 0.08699906739 | K25: RPPULOON | L25: 0.0001263354113 | M25: 1381.926988
B26: RPPTOUON | C26: 1621899.395 | D26: 295181.717 | E26: 0.1819975505 | K26: RPPULOOVN | L26: 7.417259871e-05 | M26: 811.3411344
B27: RPPULO | L27: =SUM(L18:L26) -> 1 | M27: =SUM(M18:M26) -> 10938556.13
B28: RPPULOMID | C28: 1692.600021 | D28: 206.5000008 | E28: 0.1220016532
B29: RPPULOOFF | C29: 3608.089982 | D29: 313.8900028 | E29: 0.08699616815
B30: RPPULOON | C30: 1361.520011 | D30: 389.380002 | E30: 0.2859891877
B31: RPPULOOVN | C31: 799.3600244 | D31: 22.38000068 | E31: 0.02799739792 | K31: Global Adjustment | L31: per kWh
B32: RETAIL | K32: Class B - GA actual8 | L32: =B69/100 -> 0.06622000217 | N32: GA Posted Price
B33: NSLS | C33: 3000842.483 | D33: 93477.62268 | E33: 0.03115045965 | K33: Class B - GA actual IESO billed | L33: =+M33/M8 -> 0.06624711711 | M33: =B76 -> 1130245.18 | N33: GA Billed by IESO CT 148
B34: INTERVAL
B35: HOEP | C35: 5881722.486 | D35: 184686.8107 | E35: 0.03140012321
B36: Grand Total | C36: 19659590.96 | D36: 1452055.137
C37: =C36/C11-1 -> -0.01265303064
A38: RPP COP Volume and Price Data
B39: bill_year | C39: 2023
B40: bill_month | C40: 12
B42: Row Labels | C42: usagebilled | D42: amountbilled | E42: Rate
B43: RPPTIERED | C43: 1243626.078 | D43: 38623.33298 | E43: =D43/C43 -> 0.03105703045
B44: RPPTOU | C44: 9542616.449 | D44: 297277.2122 | E44: 0.03115258942
B45: RPPULO | C45: 12084.73005 | D45: 376.3199945 | E45: 0.03114012418
B46: Grand Total | C46: 10798327.26 | D46: 336276.8652
C47: =SUM(C21:C31)-C46 -> -21301.26218
C48: =C47/C46 -> -0.001972644621
A60: Year | B60: 2023
A62: Class A
A63: Source | B63: kWh
A64: 202312 | B64: 2850485.17
A67: ga_actual | B67: year
A68: month | B68: 2023
A69: 202312 | B69: 6.622000217
A72: chargetype | B72: 148
A74: Sum of chargeamount | B74: year
A75: month | B75: 2023
A76: 202312 | B76: 1130245.18

Sheet I25 Input Rev 12 Init
A1: Reverse IESO Posted
A5: =Admin!B41 -> 202312
A6: RPP Revenue Prices | B6: kWh Volumes | C6: $ RPP Settlement
A7: RPPTiered_1 | B7: 885891.74 | C7: 934.46
A8: RPPTiered_2 | B8: 238515.77 | C8: -4856.82
A9: RPPTOU_MID | B9: 1639045.04 | C9: -24692.4
A10: RPPTOU_OFF | B10: 4992811.11 | C10: 95806.27
A11: RPPTOU_ON | B11: 1656873.6 | C11: -122133.21
A12: Grand Total | B12: 9413137.26 | C12: -54941.7

Sheet Rec1 1588 Commodity
A1: Lakefront Utilities Inc.
A2: =ProcessYear[Process Year]& " 1588 Commodity RSVA" -> 2023 1588 Commodity RSVA
A3: Commodity
B5: 4006-4055 | E5: 4705 | L5: 1588
B6: GL Revenue | C6: Unbilled | D6: Total Revenue | E6: Energy Cost (code 101) | F6: RPP GA (code 148) | G6: IESO RPP Settlement | H6: FIT/mFIT | I6: Misc | J6: IESO Code 118 - Energy Rebate | K6: Total Cost | L6: Variance | M6: Y.T.D. | N6: G.L. Balance
A7: Opening Balance
A8: January | B8: -1552235.57 | C8: =D8-B8 -> 97102.22037 | D8: =-'I1a ER Summary'!AF5 -> -1455133.35 | E8: ='I1a ER Summary'!K5 -> 801678.9 | F8: ='I1a ER Summary'!E5 -> 626315.0241 | G8: ='I1a ER Summary'!F5 -> 40918.67447 | H8: ='I1a ER Summary'!M5 -> 4162.03 | K8: =SUM(E8:J8) -> 1473074.629 | L8: =D8+K8 -> 17941.27897 | M8: =L8 -> 17941.27897 | N8: =N7+L8 -> 17941.27897
A9: February | B9: -1479018.08 | C9: =D9-B9 -> 244707.6422 | D9: =-'I1a ER Summary'!AF6 -> -1234310.438 | E9: ='I1a ER Summary'!K6 -> 504134.75 | F9: ='I1a ER Summary'!E6 -> 873086.0161 | G9: ='I1a ER Summary'!F6 -> -147258.8424 | H9: ='I1a ER Summary'!M6 -> 5033.81 | K9: 1234995.734 | L9: 685.2958834 | M9: =M8+L9 -> 18626.57485 | N9: =N8+L9 -> 18626.57485
A10: March | B10: -1313614.11 | C10: -3059.836275 | D10: =-'I1a ER Summary'!AF7 -> -1316673.946 | E10: ='I1a ER Summary'!K7 -> 569802.92 | F10: ='I1a ER Summary'!E7 -> 868184.0176 | G10: ='I1a ER Summary'!F7 -> -120025.2618 | H10: ='I1a ER Summary'!M7 -> 9659.7 | K10: 1327621.376 | L10: 10947.42945 | M10: =M9+L10 -> 29574.0043 | N10: 29574.0043
A11: April | B11: -1309464 | C11: 282813.0245 | D11: =-'I1a ER Summary'!AF8 -> -1026650.975 | E11: ='I1a ER Summary'!K8 -> 396944.77 | F11: ='I1a ER Summary'!E8 -> 865717.4928 | G11: ='I1a ER Summary'!F8 -> -246131.8217 | H11: ='I1a ER Summary'!M8 -> 15965.66 | K11: 1032496.101 | L11: 5845.125577 | M11: 35419.12988 | N11: 35419.12988
A12: May | B12: -1044966.06 | C12: 78741.95008 | D12: =-'I1a ER Summary'!AF9 -> -966224.1099 | E12: ='I1a ER Summary'!K9 -> 322522.32 | F12: ='I1a ER Summary'!E9 -> 819243.7923 | G12: ='I1a ER Summary'!F9 -> -195141.3033 | H12: ='I1a ER Summary'!M9 -> 18286.43 | K12: 964911.2389 | L12: -1312.87097 | M12: 34106.25891 | N12: 34106.25891
A13: June | B13: -950252.3 | C13: -217992.9038 | D13: =-'I1a ER Summary'!AF10 -> -1168245.204 | E13: ='I1a ER Summary'!K10 -> 580068.36 | F13: ='I1a ER Summary'!E10 -> 741753.5304 | G13: ='I1a ER Summary'!F10 -> -168938.8412 | H13: ='I1a ER Summary'!M10 -> 26149.32 | K13: 1179032.369 | L13: 10787.16543 | M13: 44893.42434 | N13: 44893.42434
A14: July | B14: -1130689.3 | C14: -317155.8243 | D14: =-'I1a ER Summary'!AF11 -> -1447845.124 | E14: ='I1a ER Summary'!K11 -> 850093.66 | F14: ='I1a ER Summary'!E11 -> 545109.0352 | G14: ='I1a ER Summary'!F11 -> 41641.46764 | H14: ='I1a ER Summary'!M11 -> 37464.83 | K14: 1474308.993 | L14: 26463.86854 | M14: 71357.29288 | N14: 71357.29288
A15: August | B15: -1419460.77 | C15: 158700.6587 | D15: =-'I1a ER Summary'!AF12 -> -1260760.111 | E15: ='I1a ER Summary'!K12 -> 625707.61 | F15: ='I1a ER Summary'!E12 -> 751609.603 | G15: ='I1a ER Summary'!F12 -> -125601.6252 | H15: ='I1a ER Summary'!M12 -> 26177.97 | K15: 1277893.558 | L15: 17133.44646 | M15: 88490.73935 | N15: 88490.73935
A16: September | B16: -1257731.84 | C16: 50787.68527 | D16: =-'I1a ER Summary'!AF13 -> -1206944.155 | E16: ='I1a ER Summary'!K13 -> 733006.83 | F16: ='I1a ER Summary'!E13 -> 449483.9514 | G16: ='I1a ER Summary'!F13 -> 11121.91833 | H16: ='I1a ER Summary'!M13 -> 31189.95 | K16: 1224802.65 | L16: 17858.495 | M16: 106349.2343 | N16: 106349.2343
A17: October | B17: -1224091.78 | C17: 111795.504 | D17: =-'I1a ER Summary'!AF14 -> -1112296.276 | E17: ='I1a ER Summary'!K14 -> 576644.25 | F17: ='I1a ER Summary'!E14 -> 731319.4957 | G17: ='I1a ER Summary'!F14 -> -199818.678 | H17: ='I1a ER Summary'!M14 -> 15146.22 | K17: 1123291.288 | L17: 10995.01181 | M17: 117344.2462 | N17: 117344.2462
A18: November | B18: -1111126.22 | C18: -271935.2644 | D18: =-'I1a ER Summary'!AF15 -> -1383061.484 | E18: ='I1a ER Summary'!K15 -> 593503.34 | F18: ='I1a ER Summary'!E15 -> 690129.9907 | G18: ='I1a ER Summary'!F15 -> 107261.4882 | H18: ='I1a ER Summary'!M15 -> 9126.15 | K18: 1400020.969 | L18: 16959.48455 | M18: 134303.7307 | N18: 134303.7307
A19: December | B19: -1318032.17 | C19: -134022.9673 | D19: =-'I1a ER Summary'!AF16 -> -1452055.137 | E19: ='I1a ER Summary'!K16 -> 617049.42 | F19: ='I1a ER Summary'!E16 -> 724351.2108 | G19: ='I1a ER Summary'!F16 -> 126490.3402 | H19: ='I1a ER Summary'!M16 -> 4616.89 | K19: 1472507.861 | L19: 20452.72366 | M19: 154756.4544 | N19: 154756.4544
B20: =SUM(B8:B19) -> -15110682.2 | C20: =SUM(C8:C19) -> 80481.88905 | D20: -15030200.31 | E20: 7171157.13 | F20: 8686303.16 | G20: -875482.4847 | H20: 202978.96 | I20: 0 | J20: 0 | K20: 15184956.77 | L20: 154756.4544
A22: Per GL | F22: 8585891.22 | G22: -1045563.18
A23: Dec Accrual | F23: 678147.1 | G23: 54941.7
A24: Adjustments | F24: =F20-F22-F23 -> -577735.1599 | G24: =G20-G22-G23 -> 115138.9953
F26: 4705-0002 | G26: 4705-0001

Sheet Rec2 1589 Class B
A1: Lakefront Utilities Inc.
A2: =ProcessYear[Process Year]& " 1589 ClassB RSVA" -> 2023 1589 ClassB RSVA
A3: Global Adjustment Class B Only
B5: 4006-4055 | E5: 4707 | K5: 1589
B6: Revenue - Class B only | C6: Unbilled | D6: Total Revenue | E6: IESO Code 148 | F6: RPP GA (code 148) | G6: Class B GA (Code 148) | H6: Class B Deferral | I6: Misc | J6: Class B GA | K6: Variance | L6: Y.T.D. | M6: G.L. Balance
A7: Opening Balance
A8: January | B8: -385378.42 | C8: =D8-B8 -> 167594.7587 | D8: -217783.6613 | E8: ='I1a ER Summary'!Q5 -> 985623.84 | F8: =-'Rec1 1588 Commodity'!F8 -> -626315.0241 | G8: =E8+F8 -> 359308.8159 | J8: =SUM(G8:I8) -> 359308.8159 | K8: =D8+J8 -> 141525.1546 | L8: =K8 -> 141525.1546 | M8: =M7+K8 -> 141525.1546
A9: February | B9: -217468.28 | C9: =D9-B9 -> -168986.9479 | D9: -386455.2279 | E9: ='I1a ER Summary'!Q6 -> 1387229.02 | F9: =-'Rec1 1588 Commodity'!F9 -> -873086.0161 | G9: =E9+F9 -> 514143.0039 | J9: =SUM(G9:I9) -> 514143.0039 | K9: =D9+J9 -> 127687.776 | L9: =L8+K9 -> 269212.9306 | M9: =M8+K9 -> 269212.9306
A10: March | B10: -390582 | C10: -84614.514 | D10: -475196.514 | E10: ='I1a ER Summary'!Q7 -> 1418540.9 | F10: =-'Rec1 1588 Commodity'!F10 -> -868184.0176 | G10: 550356.8824 | J10: 550356.8824 | K10: 75160.36844 | L10: =L9+K10 -> 344373.299 | M10: 344373.299
A11: April | B11: -476029.43 | C11: -7010.779639 | D11: -483040.2096 | E11: ='I1a ER Summary'!Q8 -> 1447252.99 | F11: =-'Rec1 1588 Commodity'!F11 -> -865717.4928 | G11: 581535.4972 | J11: 581535.4972 | K11: 98495.28761 | L11: 442868.5866 | M11: 442868.5866
A12: May | B12: -482854.52 | C12: -13053.6596 | D12: -495908.1796 | E12: ='I1a ER Summary'!Q9 -> 1424300.1 | F12: =-'Rec1 1588 Commodity'!F12 -> -819243.7923 | G12: 605056.3077 | J12: 605056.3077 | K12: 109148.1281 | L12: 552016.7147 | M12: 552016.7147
A13: June | B13: -496783.3 | C13: -108450.4012 | D13: -605233.7012 | E13: ='I1a ER Summary'!Q10 -> 1252078.52 | F13: =-'Rec1 1588 Commodity'!F13 -> -741753.5304 | G13: 510324.9896 | J13: 510324.9896 | K13: -94908.71161 | L13: 457108.0031 | M13: 457108.0031
A14: July | B14: -604708.29 | C14: -55338.276 | D14: -660046.566 | E14: ='I1a ER Summary'!Q11 -> 889244.76 | F14: =-'Rec1 1588 Commodity'!F14 -> -545109.0352 | G14: 344135.7248 | J14: 344135.7248 | K14: -315910.8412 | L14: 141197.1619 | M14: 141197.1619
A15: August | B15: -659628.32 | C15: 311457.23 | D15: -348171.09 | E15: ='I1a ER Summary'!Q12 -> 1212483.09 | F15: =-'Rec1 1588 Commodity'!F15 -> -751609.603 | G15: 460873.487 | J15: 460873.487 | K15: 112702.397 | L15: 253899.5589 | M15: 253899.5589
A16: September | B16: -349134 | C16: -12882.76 | D16: -362016.76 | E16: ='I1a ER Summary'!Q13 -> 846173.17 | F16: =-'Rec1 1588 Commodity'!F16 -> -449483.9514 | G16: 396689.2186 | J16: 396689.2186 | K16: 34672.4586 | L16: 288572.0175 | M16: 288572.0175
A17: October | B17: -362383.25 | C17: -88180.25 | D17: -450563.5 | E17: ='I1a ER Summary'!Q14 -> 1210447.91 | F17: =-'Rec1 1588 Commodity'!F17 -> -731319.4957 | G17: 479128.4143 | J17: 479128.4143 | K17: 28564.91428 | L17: 317136.9318 | M17: 317136.9318
A18: November | B18: -450415.32 | C18: 13272.19 | D18: -437143.13 | E18: ='I1a ER Summary'!Q15 -> 1135689.11 | F18: =-'Rec1 1588 Commodity'!F18 -> -690129.9907 | G18: 445559.1193 | J18: 445559.1193 | K18: 8415.989253 | L18: 325552.921 | M18: 325552.921
A19: December | B19: -437096.92 | C19: -63648.16 | D19: -500745.08 | E19: ='I1a ER Summary'!Q16 -> 1130245.18 | F19: =-'Rec1 1588 Commodity'!F19 -> -724351.2108 | G19: 405893.9692 | J19: 405893.9692 | K19: -94851.11079 | L19: 230701.8102 | M19: 230701.8102
B20: =SUM(B8:B19) -> -5312462.05 | C20: -109841.5697 | D20: -5422303.62 | E20: 14339308.59 | F20: -8686303.16 | G20: 5653005.43 | H20: 0 | I20: 0 | J20: 5653005.43 | K20: 230701.8102
A22: Per GL | J22: 4623172.19
A23: Dec Accrual | J23: 452098.08
A24: Adjustments | J24: =J20-J22-J23 -> 577735.1599

Sheet Rev1UFE
A1: Lakefront Utilities Inc.
A2: 2023 RSVA
A3: Unaccounted for Energy Summary For USoA 1588
C5: Total Energy Purchases | D5: Total Retail Sales | E5: Uaccounted for Energy | F5: UFE | G5: Total Energy Purchases | H5: Total Retail Sales | I5: UFE | J5: UFE | N5: Energy Purchases RPP and non-RPP | P5: RPP Settlement Amounts | T5: Energy Sales Revenue | V5: Energy Sales Volumes | X5: Energy Sales/kWh
B6: Version | C6: kWH | D6: kWh | E6: kWh | F6: % | G6: $ Amount | H6: $ Amount | I6: $ Amount | J6: % | K6: Revenue Per kWh | L6: UFE $ Cost per kWh | N6: Energy for RPP and non-RPP | O6: Final GA for RPP | P6: Initial Settlement | Q6: First True-Up | R6: Final True-Up | S6: RPP Settlement Amount | T6: RPP Sales | U6: Non-RPP Sales | V6: RPP kWh | W6: Non-RPP kWH | X6: RPP | Y6: Non-RPP
A7: January | B7: Final | C7: ='I1a ER Summary'!S5 -> 23575430.61 | D7: ='I1a ER Summary'!T5 -> 23120131.35 | E7: =+C7-D7 -> 455299.2605 | F7: =+E7/C7 -> 0.01931244727 | G7: =+N7+O7+S7 -> 1473074.629 | H7: =+T7+U7 -> 1455133.35 | I7: =+G7-H7 -> 17941.27897 | J7: =+I7/G7 -> 0.01217947728 | K7: =+H7/D7 -> 0.06293793611 | L7: =+I7/E7 -> 0.03940546478 | N7: ='I1a ER Summary'!O5 -> 805840.93 | O7: ='I1a ER Summary'!E5 -> 626315.0241 | P7: 0 | Q7: 0 | R7: ='I1a ER Summary'!F5 -> 40918.67447 | S7: =SUM(P7:R7) -> 40918.67447 | T7: ='I1a ER Summary'!C5 -> 1080805.525 | U7: ='I1a ER Summary'!AH5 -> 374327.8248 | V7: ='I1a ER Summary'!AJ5 -> 11352389.22 | W7: ='I1a ER Summary'!AK5 -> 11767742.13 | X7: =+T7/V7 -> 0.09520511531 | Y7: 0.03180965564
A8: February | B8: Final | C8: ='I1a ER Summary'!S6 -> 21689783.61 | D8: ='I1a ER Summary'!T6 -> 21580528.81 | E8: =+C8-D8 -> 109254.8043 | F8: =+E8/C8 -> 0.00503715511 | G8: =+N8+O8+S8 -> 1234995.734 | H8: =+T8+U8 -> 1234310.438 | I8: =+G8-H8 -> 685.2958834 | J8: =+I8/G8 -> 0.000554897369 | K8: =+H8/D8 -> 0.05719556036 | L8: 0.006272455362 | N8: ='I1a ER Summary'!O6 -> 509168.56 | O8: ='I1a ER Summary'!E6 -> 873086.0161 | P8: 0 | Q8: 0 | R8: ='I1a ER Summary'!F6 -> -147258.8424 | S8: -147258.8424 | T8: ='I1a ER Summary'!C6 -> 985386.3651 | U8: ='I1a ER Summary'!AH6 -> 248924.0727 | V8: ='I1a ER Summary'!AJ6 -> 10514108.48 | W8: ='I1a ER Summary'!AK6 -> 11066420.32 | X8: 0.09372039166 | Y8: 0.02249363981
A9: March | B9: Final | C9: ='I1a ER Summary'!S7 -> 23071999.5 | D9: ='I1a ER Summary'!T7 -> 22944336.3 | E9: 127663.2013 | F9: 0.005533252604 | G9: 1327621.376 | H9: 1316673.946 | I9: 10947.42945 | J9: 0.008245897248 | K9: 0.05738557564 | L9: 0.08575242776 | N9: ='I1a ER Summary'!O7 -> 579462.62 | O9: ='I1a ER Summary'!E7 -> 868184.0176 | P9: 0 | Q9: 0 | R9: ='I1a ER Summary'!F7 -> -120025.2618 | S9: -120025.2618 | T9: ='I1a ER Summary'!C7 -> 1018732.861 | U9: ='I1a ER Summary'!AH7 -> 297941.0854 | V9: ='I1a ER Summary'!AJ7 -> 10733622.95 | W9: ='I1a ER Summary'!AK7 -> 12210713.35 | X9: 0.09491043849 | Y9: 0.02439997377
A10: April | B10: Final | C10: ='I1a ER Summary'!S8 -> 19612596.97 | D10: ='I1a ER Summary'!T8 -> 19509770.53 | E10: 102826.4404 | F10: 0.005242877351 | G10: 1032496.101 | H10: 1026650.975 | I10: 5845.125577 | J10: 0.005661159951 | K10: 0.05262240137 | L10: 0.05684457764 | N10: ='I1a ER Summary'!O8 -> 412910.43 | O10: ='I1a ER Summary'!E8 -> 865717.4928 | P10: 0 | Q10: 0 | R10: ='I1a ER Summary'!F8 -> -246131.8217 | S10: -246131.8217 | T10: ='I1a ER Summary'!C8 -> 808106.2253 | U10: ='I1a ER Summary'!AH8 -> 218544.7502 | V10: ='I1a ER Summary'!AJ8 -> 8727502.899 | W10: ='I1a ER Summary'!AK8 -> 10782267.63 | X10: 0.09259306294 | Y10: 0.02026890425
A11: May | B11: Final | C11: ='I1a ER Summary'!S9 -> 19430008.77 | D11: ='I1a ER Summary'!T9 -> 19400359.12 | E11: 29649.64566 | F11: 0.00152597181 | G11: 964911.2389 | H11: 966224.1099 | I11: -1312.87097 | J11: -0.001360613202 | K11: 0.04980444453 | L11: -0.04427948264 | N11: ='I1a ER Summary'!O9 -> 340808.75 | O11: ='I1a ER Summary'!E9 -> 819243.7923 | P11: 0 | Q11: 0 | R11: ='I1a ER Summary'!F9 -> -195141.3033 | S11: -195141.3033 | T11: ='I1a ER Summary'!C9 -> 771734.0744 | U11: ='I1a ER Summary'!AH9 -> 194490.0355 | V11: ='I1a ER Summary'!AJ9 -> 8208225.459 | W11: ='I1a ER Summary'!AK9 -> 11192133.67 | X11: 0.0940196 | Y11: 0.01737738677
A12: June | B12: Final | C12: ='I1a ER Summary'!S10 -> 19878459.19 | D12: ='I1a ER Summary'!T10 -> 19723055.69 | E12: 155403.4958 | F12: 0.007817683166 | G12: 1179032.369 | H12: 1168245.204 | I12: 10787.16543 | J12: 0.009149168174 | K12: 0.05923246488 | L12: 0.06941391747 | N12: ='I1a ER Summary'!O10 -> 606217.68 | O12: ='I1a ER Summary'!E10 -> 741753.5304 | P12: 0 | Q12: 0 | R12: ='I1a ER Summary'!F10 -> -168938.8412 | S12: -168938.8412 | T12: ='I1a ER Summary'!C10 -> 850880.0626 | U12: ='I1a ER Summary'!AH10 -> 317365.1413 | V12: ='I1a ER Summary'!AJ10 -> 8855819.796 | W12: ='I1a ER Summary'!AK10 -> 10867235.9 | X12: 0.09608145628 | Y12: 0.02920385131
A13: July | B13: Final | C13: ='I1a ER Summary'!S11 -> 21738229.68 | D13: ='I1a ER Summary'!T11 -> 21440210.96 | E13: 298018.7249 | F13: 0.01370942939 | G13: 1474308.993 | H13: 1447845.124 | I13: 26463.86854 | J13: 0.017950015 | K13: 0.06752942531 | L13: 0.08879934826 | N13: ='I1a ER Summary'!O11 -> 887558.49 | O13: ='I1a ER Summary'!E11 -> 545109.0352 | P13: 0 | Q13: 0 | R13: ='I1a ER Summary'!F11 -> 41641.46764 | S13: 41641.46764 | T13: ='I1a ER Summary'!C11 -> 1039187.073 | U13: ='I1a ER Summary'!AH11 -> 408658.051 | V13: ='I1a ER Summary'!AJ11 -> 10827432.12 | W13: ='I1a ER Summary'!AK11 -> 10612778.83 | X13: 0.09597724204 | Y13: 0.03850622513
A14: August | B14: Final | C14: ='I1a ER Summary'!S12 -> 20715003.33 | D14: ='I1a ER Summary'!T12 -> 20481405.14 | E14: 233598.1852 | F14: 0.0112767631 | G14: 1277893.558 | H14: 1260760.111 | I14: 17133.44646 | J14: 0.01340756932 | K14: 0.06155632889 | L14: 0.07334580296 | N14: ='I1a ER Summary'!O12 -> 651885.58 | O14: ='I1a ER Summary'!E12 -> 751609.603 | P14: 0 | Q14: 0 | R14: ='I1a ER Summary'!F12 -> -125601.6252 | S14: -125601.6252 | T14: ='I1a ER Summary'!C12 -> 940197.731 | U14: ='I1a ER Summary'!AH12 -> 320562.3803 | V14: ='I1a ER Summary'!AJ12 -> 9736318.599 | W14: ='I1a ER Summary'!AK12 -> 10745086.55 | X14: 0.09656603997 | Y14: 0.02983339212
A15: September | B15: Final | C15: ='I1a ER Summary'!S13 -> 19039513.41 | D15: ='I1a ER Summary'!T13 -> 18845241.58 | E15: 194271.8323 | F15: 0.0102036133 | G15: 1224802.65 | H15: 1206944.155 | I15: 17858.495 | J15: 0.01458071225 | K15: 0.06404503491 | L15: 0.09192529246 | N15: ='I1a ER Summary'!O13 -> 764196.78 | O15: ='I1a ER Summary'!E13 -> 449483.9514 | P15: 0 | Q15: 0 | R15: ='I1a ER Summary'!F13 -> 11121.91833 | S15: 11121.91833 | T15: ='I1a ER Summary'!C13 -> 827366.793 | U15: ='I1a ER Summary'!AH13 -> 379577.3618 | V15: ='I1a ER Summary'!AJ13 -> 8717222.629 | W15: ='I1a ER Summary'!AK13 -> 10128018.95 | X15: 0.09491174289 | Y15: 0.03747794744
A16: October | B16: Final | C16: ='I1a ER Summary'!S14 -> 18708158.73 | D16: ='I1a ER Summary'!T14 -> 18538793.62 | E16: 169365.1053 | F16: 0.009053007715 | G16: 1123291.288 | H16: 1112296.276 | I16: 10995.01181 | J16: 0.009788210707 | K16: 0.05999830941 | L16: 0.06491899137 | N16: ='I1a ER Summary'!O14 -> 591790.47 | O16: ='I1a ER Summary'!E14 -> 731319.4957 | P16: 0 | Q16: 0 | R16: ='I1a ER Summary'!F14 -> -199818.678 | S16: -199818.678 | T16: ='I1a ER Summary'!C14 -> 804711.1978 | U16: ='I1a ER Summary'!AH14 -> 307585.0782 | V16: ='I1a ER Summary'!AJ14 -> 8507471.688 | W16: ='I1a ER Summary'!AK14 -> 10031321.94 | X16: 0.09458876001 | Y16: 0.03066246704
A17: November | B17: Final | C17: ='I1a ER Summary'!S15 -> 19789275.21 | D17: ='I1a ER Summary'!T15 -> 19586993.9 | E17: 202281.3109 | F17: 0.0102217645 | G17: 1400020.969 | H17: 1383061.484 | I17: 16959.48455 | J17: 0.0121137361 | K17: 0.0706112174 | L17: 0.08384108485 | N17: ='I1a ER Summary'!O15 -> 602629.49 | O17: ='I1a ER Summary'!E15 -> 690129.9907 | P17: 0 | Q17: 0 | R17: ='I1a ER Summary'!F15 -> 107261.4882 | S17: 107261.4882 | T17: ='I1a ER Summary'!C15 -> 1095956.238 | U17: ='I1a ER Summary'!AH15 -> 287105.2464 | V17: ='I1a ER Summary'!AJ15 -> 9611049.948 | W17: ='I1a ER Summary'!AK15 -> 9975943.951 | X17: 0.1140308545 | Y17: 0.02877975737
A18: December | B18: Final | C18: ='I1a ER Summary'!S16 -> 19911532.19 | D18: ='I1a ER Summary'!T16 -> 19659590.96 | E18: 251941.2269 | F18: 0.01265303064 | G18: 1472507.861 | H18: 1452055.137 | I18: 20452.72366 | J18: 0.0138897212 | K18: 0.07385988549 | L18: 0.08118053527 | N18: ='I1a ER Summary'!O16 -> 621666.31 | O18: ='I1a ER Summary'!E16 -> 724351.2108 | P18: 0 | Q18: 0 | R18: ='I1a ER Summary'!F16 -> 126490.3402 | S18: 126490.3402 | T18: ='I1a ER Summary'!C16 -> 1191485.421 | U18: ='I1a ER Summary'!AH16 -> 260569.7161 | V18: ='I1a ER Summary'!AJ16 -> 10777025.99 | W18: ='I1a ER Summary'!AK16 -> 8882564.968 | X18: 0.1105579055 | Y18: 0.02933496316
A19: Total | C19: =SUM(C7:C18) -> 247159991.2 | D19: =SUM(D7:D18) -> 244830418 | E19: =SUM(E7:E18) -> 2329573.234 | F19: 0.009425365417 | G19: =SUM(G7:G18) -> 15184956.77 | H19: =SUM(H7:H18) -> 15030200.31 | I19: =SUM(I7:I18) -> 154756.4544 | J19: 0.010191432 | K19: 0.06139024896 | L19: 0.06643124678 | N19: =SUM(N7:N18) -> 7374136.09 | O19: 8686303.16 | P19: 0 | Q19: 0 | R19: -875482.4847 | S19: -875482.4847 | T19: 11382095.66 | U19: 3626059.63 | V19: 116568189.8 | W19: 128262228.2 | X19: 0.09764323942 | Y19: 0.02827067393

Sheet Rev2 GA Purchases
A1: Lakefront Utilities Inc.
A2: 2023 RSVA
A3: Non-RPP Global Adjustment
B5: Non-RPP Class B GA | E5: RPP Class B GA | H5: Total Class B GA | M5: GA non-RPP Cost Amounts Booked
B6: Cost Amount | C6: kWh | D6: Avg Cost | E6: Cost Amount | F6: kWh | G6: Avg Cost | H6: Cost Amount | I6: kWh | J6: Avg Cost | M6: G/L 4707 | N6: True-Ups | O6: Total | P6: Difference
A7: January | B7: ='Rec2 1589 Class B'!J8 -> 359308.8159 | C7: ='I1a ER Summary'!AK5 -> 11767742.13 | D7: =+B7/C7 -> 0.03053336927 | E7: ='Rec1 1588 Commodity'!F8 -> 626315.0241 | F7: ='I1a ER Summary'!AJ5 -> 11352389.22 | G7: =+E7/F7 -> 0.05517032688 | H7: =+B7+E7 -> 985623.84 | I7: 23120131.35 | J7: =+H7/I7 -> 0.04263054673 | M7: 368354.797 | O7: =+M7+N7 -> 368354.797 | P7: =+O7-B7 -> 9045.981096
A8: February | B8: ='Rec2 1589 Class B'!J9 -> 514143.0039 | C8: ='I1a ER Summary'!AK6 -> 11066420.32 | D8: 0.04645973938 | E8: ='Rec1 1588 Commodity'!F9 -> 873086.0161 | F8: ='I1a ER Summary'!AJ6 -> 10514108.48 | G8: 0.0830394719 | H8: 1387229.02 | I8: 21580528.81 | J8: 0.06428151194 | M8: 517400.4514 | O8: =+M8+N8 -> 517400.4514 | P8: 3257.447432
A9: March | B9: ='Rec2 1589 Class B'!J10 -> 550356.8824 | C9: ='I1a ER Summary'!AK7 -> 12210713.35 | D9: 0.04507164051 | E9: ='Rec1 1588 Commodity'!F10 -> 868184.0176 | F9: ='I1a ER Summary'!AJ7 -> 10733622.95 | G9: 0.08088452721 | H9: 1418540.9 | I9: 22944336.3 | J9: 0.06182531852 | M9: 550805.5586 | O9: =+N9+M9 -> 550805.5586 | P9: 448.6761615
A10: April | B10: ='Rec2 1589 Class B'!J11 -> 581535.4972 | C10: ='I1a ER Summary'!AK8 -> 10782267.63 | D10: 0.05393443357 | E10: ='Rec1 1588 Commodity'!F11 -> 865717.4928 | F10: ='I1a ER Summary'!AJ8 -> 8727502.899 | G10: 0.09919417991 | H10: 1447252.99 | I10: 19509770.53 | J10: 0.07418093349 | M10: 582775.4046 | O10: 582775.4046 | P10: 1239.907341
A11: May | B11: ='Rec2 1589 Class B'!J12 -> 605056.3077 | C11: ='I1a ER Summary'!AK9 -> 11192133.67 | D11: 0.05406085433 | E11: ='Rec1 1588 Commodity'!F12 -> 819243.7923 | F11: ='I1a ER Summary'!AJ9 -> 8208225.459 | G11: 0.09980766201 | H11: 1424300.1 | I11: 19400359.12 | J11: 0.07341617188 | M11: 606116.3272 | O11: 606116.3272 | P11: 1060.019465
A12: June | B12: ='Rec2 1589 Class B'!J13 -> 510324.9896 | C12: ='I1a ER Summary'!AK10 -> 10867235.9 | D12: 0.04695996244 | E12: ='Rec1 1588 Commodity'!F13 -> 741753.5304 | F12: ='I1a ER Summary'!AJ10 -> 8855819.796 | G12: 0.08375887806 | H12: 1252078.52 | I12: 19723055.69 | J12: 0.06348298861 | M12: 513680.4991 | O12: 513680.4991 | P12: 3355.509511
A13: July | B13: ='Rec2 1589 Class B'!J14 -> 344135.7248 | C13: ='I1a ER Summary'!AK11 -> 10612778.83 | D13: 0.03242654258 | E13: ='Rec1 1588 Commodity'!F14 -> 545109.0352 | F13: ='I1a ER Summary'!AJ11 -> 10827432.12 | G13: 0.05034518149 | H13: 889244.76 | I13: 21440210.96 | J13: 0.04147556019 | M13: 337855.3545 | O13: 337855.3545 | P13: -6280.370258
A14: August | B14: ='Rec2 1589 Class B'!J15 -> 460873.487 | C14: ='I1a ER Summary'!AK12 -> 10745086.55 | D14: 0.04289155653 | E14: ='Rec1 1588 Commodity'!F15 -> 751609.603 | F14: ='I1a ER Summary'!AJ12 -> 9736318.599 | G14: 0.07719648811 | H14: 1212483.09 | I14: 20481405.14 | J14: 0.05919921419 | M14: 484646.4102 | O14: 484646.4102 | P14: 23772.92317
A15: September | B15: ='Rec2 1589 Class B'!J16 -> 396689.2186 | C15: ='I1a ER Summary'!AK13 -> 10128018.95 | D15: 0.0391675036 | E15: ='Rec1 1588 Commodity'!F16 -> 449483.9514 | F15: ='I1a ER Summary'!AJ13 -> 8717222.629 | G15: 0.05156274774 | H15: 846173.17 | I15: 18845241.58 | J15: 0.04490115802 | M15: 351972.6143 | O15: 351972.6143 | P15: -44716.6043
A16: October | B16: ='Rec2 1589 Class B'!J17 -> 479128.4143 | C16: ='I1a ER Summary'!AK14 -> 10031321.94 | D16: 0.04776323772 | E16: ='Rec1 1588 Commodity'!F17 -> 731319.4957 | F16: ='I1a ER Summary'!AJ14 -> 8507471.688 | G16: 0.08596202521 | H16: 1210447.91 | I16: 18538793.62 | J16: 0.06529270105 | M16: 508645.545 | O16: 508645.545 | P16: 29517.13072
A17: November | B17: ='Rec2 1589 Class B'!J18 -> 445559.1193 | C17: ='I1a ER Summary'!AK15 -> 9975943.951 | D17: 0.04466335431 | E17: ='Rec1 1588 Commodity'!F18 -> 690129.9907 | F17: ='I1a ER Summary'!AJ15 -> 9611049.948 | G17: 0.07180588952 | H17: 1135689.11 | I17: 19586993.9 | J17: 0.0579817973 | M17: 446213.3479 | O17: 446213.3479 | P17: 654.2286773
A18: December | B18: ='Rec2 1589 Class B'!J19 -> 405893.9692 | C18: ='I1a ER Summary'!AK16 -> 8882564.968 | D18: 0.04569558125 | E18: ='Rec1 1588 Commodity'!F19 -> 724351.2108 | F18: ='I1a ER Summary'!AJ16 -> 10777025.99 | G18: 0.06721253258 | H18: 1130245.18 | I18: 19659590.96 | J18: 0.05749077802 | M18: 408485.058 | O18: 408485.058 | P18: 2591.088812
B19: =SUM(B7:B18) -> 5653005.43 | C19: =SUM(C7:C18) -> 128262228.2 | D19: 0.04407381277 | E19: =SUM(E7:E18) -> 8686303.16 | F19: =SUM(F7:F18) -> 116568189.8 | G19: 0.07451692589 | H19: =SUM(H7:H18) -> 14339308.59 | I19: =SUM(I7:I18) -> 244830418 | J19: 0.0585683295 | M19: =SUM(M7:M18) -> 5676951.368 | N19: =SUM(N7:N18) -> 0 | O19: =SUM(O7:O18) -> 5676951.368 | P19: =SUM(P7:P18) -> 23945.93782

Sheet Rev3 GA Analysis
F2: Consumption Data Excluding for Loss Factor (Data to agree with RRR as applicable)
F3: Year | H3: 2023
F4: Total Metered excluding WMP | G4: C = A+B | H4: =H5+H6 -> 244830418 | I4: kWh | J4: 1
F5: RPP | G5: A | H5: ='Rev2 GA Purchases'!F19 -> 116568189.8 | I5: kWh | J5: 0.5303752085
F6: Non RPP | G6: B = D+E | H6: =H7+H8 -> 128262228.2 | I6: kWh | J6: 0.4696247915
F7: Non-RPP Class A | G7: D | H7: ='I1a ER Summary'!AN17 -> 53014229.29 | I7: kWh | J7: 0.1815554551
F8: Non-RPP Class B* | G8: E | H8: ='Rev2 GA Purchases'!C19-H7 -> 75247998.89 | I8: kWh | J8: 0.2880693364
F9: *Non-RPP Class B consumption reported in this table is not expected to directly agree with the Non-RPP Class B Including Loss Adjusted Billed Consumption in the GA Analysis of Expected Balance table below. The difference should be equal to the loss factor.
A12: Note 4 | B12: Analysis of Expected GA Amount
B13: Year | C13: 2023
B14: Calendar Month | C14: Non-RPP Class B Including Loss Factor Billed Consumption (kWh) | D14: Deduct Previous Month Unbilled Loss Adjusted Consumption (kWh) | E14: Add Current Month Unbilled Loss Adjusted Consumption (kWh) | F14: Non-RPP Class B Including Loss Adjusted Consumption, Adjusted for Unbilled (kWh) | G14: GA Rate Billed ($/kWh) | H14: $ Consumption at GA Rate Billed | I14: GA Actual Rate Paid ($/kWh) | J14: $ Consumption at Actual Rate Paid | K14: Expected GA Variance ($) | M14: Revenue per Continuity Schedule | N14: Difference | P14: Expense per Continuity Schedule | Q14: Difference | T14: 2023
C15: F | D15: G | E15: H | F15: I = F-G+H | G15: J | H15: K = I*J | I15: L | J15: M = I*L | K15: =M-K | N15: =H-M | Q15: =J-P | S15: ($/kWh) | T15: First Estimate | U15: Second Estimate | V15: Actual
B16: January | C16: ='I1a ER Summary'!AP5 -> 6522996.259 | F16: =C16-D16+E16 -> 6522996.259 | G16: 0.0314 | H16: =F16*G16 -> 204822.0825 | I16: 0.0538 | J16: =F16*I16 -> 350937.1988 | K16: =J16-H16 -> 146115.1162 | M16: ='Rec2 1589 Class B'!D8 -> -217783.6613 | N16: =H16+M16 -> -12961.57876 | P16: ='Rec2 1589 Class B'!J8 -> 359308.8159 | Q16: =J16-P16 -> -8371.617115 | S16: January | T16: 0.0314 | U16: 0.0515 | V16: 0.0538
B17: February | C17: ='I1a ER Summary'!AP6 -> 6193937.561 | F17: =C17-D17+E17 -> 6193937.561 | G17: 0.0629 | H17: =F17*G17 -> 389598.6726 | I17: 0.0825 | J17: =F17*I17 -> 510999.8488 | K17: =J17-H17 -> 121401.1762 | M17: ='Rec2 1589 Class B'!D9 -> -386455.2279 | N17: =H17+M17 -> 3143.444648 | P17: ='Rec2 1589 Class B'!J9 -> 514143.0039 | Q17: =J17-P17 -> -3143.155144 | S17: February | T17: 0.0629 | U17: 0.0837 | V17: 0.0825
B18: March | C18: ='I1a ER Summary'!AP7 -> 6804154.248 | F18: =C18-D18+E18 -> 6804154.248 | G18: 0.0699 | H18: =F18*G18 -> 475610.3819 | I18: 0.0803 | J18: =F18*I18 -> 546373.5861 | K18: 70763.20418 | M18: ='Rec2 1589 Class B'!D10 -> -475196.514 | N18: 413.8679403 | P18: ='Rec2 1589 Class B'!J10 -> 550356.8824 | Q18: -3983.296319 | S18: March | T18: 0.0699 | U18: 0.0686 | V18: 0.0803
B19: April | C19: ='I1a ER Summary'!AP8 -> 5863038.051 | F19: =C19-D19+E19 -> 5863038.051 | G19: 0.0825 | H19: =F19*G19 -> 483700.6392 | I19: 0.0985 | J19: =F19*I19 -> 577509.248 | K19: 93808.60881 | M19: ='Rec2 1589 Class B'!D11 -> -483040.2096 | N19: 660.4295276 | P19: ='Rec2 1589 Class B'!J11 -> 581535.4972 | Q19: =J19-P19 -> -4026.249273 | S19: April | T19: 0.0825 | U19: 0.1162 | V19: 0.0985
B20: May | C20: ='I1a ER Summary'!AP9 -> 6012527.685 | F20: 6012527.685 | G20: 0.0825 | H20: 496033.534 | I20: 0.0996 | J20: =F20*I20 -> 598847.7575 | K20: =J20-H20 -> 102814.2234 | M20: ='Rec2 1589 Class B'!D12 -> -495908.1796 | N20: 125.3544439 | P20: ='Rec2 1589 Class B'!J12 -> 605056.3077 | Q20: =J20-P20 -> -6208.550248 | S20: May | T20: 0.0825 | U20: 0.0938 | V20: 0.0996
B21: June | C21: ='I1a ER Summary'!AP10 -> 6143916.128 | F21: 6143916.128 | G21: 0.0985 | H21: 605175.7386 | I21: 0.0829 | J21: 509330.647 | K21: -95845.09159 | M21: ='Rec2 1589 Class B'!D13 -> -605233.7012 | N21: -57.96260926 | P21: ='Rec2 1589 Class B'!J13 -> 510324.9896 | Q21: -994.342598 | S21: June | T21: 0.0985 | U21: 0.0897 | V21: 0.0829
B22: July | C22: ='I1a ER Summary'!AP11 -> 6626680.613 | F22: 6626680.613 | G22: 0.0996 | H22: 660017.3891 | I22: 0.0495 | J22: 328020.6904 | K22: -331996.6987 | M22: ='Rec2 1589 Class B'!D14 -> -660046.566 | N22: -29.17689889 | P22: ='Rec2 1589 Class B'!J14 -> 344135.7248 | Q22: -16115.03439 | S22: July | T22: 0.0996 | U22: 0.0511 | V22: 0.0495
B23: August | C23: ='I1a ER Summary'!AP12 -> 6476209.056 | F23: 6476209.056 | G23: 0.0538 | H23: 348420.0472 | I23: 0.0761 | J23: 492839.5092 | K23: 144419.462 | M23: ='Rec2 1589 Class B'!D15 -> -348171.09 | N23: 248.9572234 | P23: ='Rec2 1589 Class B'!J15 -> 460873.487 | Q23: 31966.02214 | S23: August | T23: 0.0538 | U23: 0.0515 | V23: 0.0761
B24: September | C24: ='I1a ER Summary'!AP13 -> 6203174.358 | F24: 6203174.358 | G24: 0.0584 | H24: 362265.3825 | I24: 0.0509 | J24: 315741.5748 | K24: -46523.80769 | M24: ='Rec2 1589 Class B'!D16 -> -362016.76 | N24: 248.6225207 | P24: ='Rec2 1589 Class B'!J16 -> 396689.2186 | Q24: -80947.64376 | S24: September | T24: 0.0584 | U24: 0.0745 | V24: 0.0509
B25: October | C25: ='I1a ER Summary'!AP14 -> 6148636.937 | F25: 6148636.937 | G25: 0.0733 | H25: 450695.0875 | I25: 0.085 | J25: 522634.1396 | K25: 71939.05216 | M25: ='Rec2 1589 Class B'!D17 -> -450563.5 | N25: 131.587451 | P25: ='Rec2 1589 Class B'!J17 -> 479128.4143 | Q25: 43505.72533 | S25: October | T25: 0.0733 | U25: 0.0843 | V25: 0.085
B26: November | C26: ='I1a ER Summary'!AP15 -> 6220648.191 | F26: 6220648.191 | G26: 0.0704 | H26: 437933.6326 | I26: 0.0709 | J26: 441043.9567 | K26: 3110.324095 | M26: ='Rec2 1589 Class B'!D18 -> -437143.13 | N26: 790.5026323 | P26: ='Rec2 1589 Class B'!J18 -> 445559.1193 | Q26: -4515.162525 | S26: November | T26: 0.0704 | U26: 0.0829 | V26: 0.0709
B27: December | C27: ='I1a ER Summary'!AP16 -> 6032079.798 | F27: 6032079.798 | G27: 0.0834 | H27: 503075.4552 | I27: 0.0662 | J27: 399323.6827 | K27: -103751.7725 | M27: ='Rec2 1589 Class B'!D19 -> -500745.08 | N27: 2330.375182 | P27: ='Rec2 1589 Class B'!J19 -> 405893.9692 | Q27: -6570.28656 | S27: December | T27: 0.0834 | U27: 0.0676 | V27: 0.0662
B29: Net Change in Expected GA Balance in the Year (i.e. Transactions in the Year) | C29: =SUM(C16:C27) -> 75247998.89 | D29: 0 | E29: 0 | F29: =SUM(F16:F27) -> 75247998.89 | H29: =SUM(H16:H27) -> 5417348.043 | J29: =SUM(J16:J27) -> 5593601.839 | K29: =SUM(K16:K27) -> 176253.7965 | M29: =SUM(M16:M28) -> -5422303.62 | N29: =SUM(N16:N28) -> -4955.576698 | P29: =SUM(P16:P28) -> 5653005.43 | Q29: =SUM(Q16:Q28) -> -59403.59047
C36: Annual Non-RPP Class B Wholesale kWh * | D36: Annual Non-RPP Class B Retail billed kWh | E36: Annual Unaccounted for Energy Loss kWh | F36: Weighted Average GA Actual Rate Paid ($/kWh)** | G36: Expected GA Volume Variance ($)
C37: O | D37: P | E37: Q=O-P | F37: R | G37: P= Q*R
C38: =(Rev1UFE!C19-H7)*'Rev3 GA Analysis '!H8/(H5+H8) -> 76161872.35 | D38: =F29 -> 75247998.89 | E38: =C38-D38 -> 913873.4603 | F38: =H29/F29 -> 0.07199325063 | G38: =E38*F38 -> 65792.72107 | I38: =D38/C38 -> 0.9880009061
C39: *Equal to (AQEW - Class A + embedded generation kWh)*(Non-RPP Class B retail kwh/Total retail Class B kWh)
C40: **Equal to annual Non-RPP Class B $ GA paid (i.e. non-RPP portion of CT 148 on IESO invoice) divided by Non-RPP Class B Wholesale kWh (as quantified in column O in the table above)
F41: Total Expected GA Variance | G41: =K29+G38 -> 242046.5175
A48: Note 5 | B48: Reconciling Items
B50: Item | C50: Applicability of Reconciling Item (Y/N) | D50: Amount (Quantify if it is a significant reconciling item) | E50: Explanation
A51: Net Change in Principal Balance in the GL (i.e. Transactions in the Year) | D51: =M29+P29 -> 230701.8102
A52: 1a | B52: Remove impacts to GA from prior year RPP Settlement true up process that are booked in current year | C52: N
A53: 1b | B53: Add impacts to GA from current year RPP Settlement true up process that are booked in subsequent year | C53: N
A54: 2a | B54: Remove prior year end unbilled to actual revenue differences | C54: N
A55: 2b | B55: Add current year end unbilled to actual revenue differences | C55: N
A56: 3a | B56: Remove difference between prior year accrual to forecast from long term load transfers | C56: N
A57: 3b | B57: Add difference between current year accrual to forecast from long term load transfers | C57: N
A58: 4 | B58: Remove GA balances pertaining to Class A customers | C58: N
A59: 5 | B59: Significant prior period billing adjustments included in current year GL balance but would not be included in the billing consumption used in the GA Analysis | C59: N
A60: 6 | B60: Differences in GA IESO posted rate and rate charged on IESO invoice | C60: N
A61: 7 | D61: 0
A62: 9
A63: 10
A64: Note 6 | B64: Adjusted Net Change in Principal Balance in the GL | D64: =SUM(D51:D63) -> 230701.8102
B65: Net Change in Expected GA Balance in the Year Per Analysis | D65: =G41 -> 242046.5175
B66: Unresolved Difference | D66: =D64-D65 -> -11344.7073
B67: Unresolved Difference as % of Expected GA Payments to IESO | D67: =IF(ISERROR(D66/J29),0,D66/J29) -> -0.002028157817 | E67: =IF(AND(D67<0.01,D67>-0.01),"","Unresolved differences of greater than + or - 1% should be explained") -> 
A70: Note 7 | B70: Summary of GA (if multiple years requested for disposition)
B72: Year | C72: Annual Net Change in Expected GA Balance from GA Analysis (cell K59) | D72: Net Change in Principal Balance in the GL (cell D65) | E72: Reconciling Items (sum of cells D66 to D78) | F72: Adjusted Net Change in Principal Balance in the GL | G72: Unresolved Difference | H72: Payments to IESO (cell J59) | I72: Unresolved Difference as % of Expected GA Payments to IESO
B73: 2023 | C73: =G41 -> 242046.5175 | D73: =D51 -> 230701.8102 | E73: =SUM(D52:D63) -> 0 | F73: =SUM(D73:E73) -> 230701.8102 | G73: =F73-C73 -> -11344.7073 | H73: =J29 -> 5593601.839 | I73: =IF(ISERROR(G73/H73),0,G73/H73) -> -0.002028157817
F74: =SUM(D74:E74) -> 0 | G74: =F74-C74 -> 0 | I74: =IF(ISERROR(G74/H74),0,G74/H74) -> 0
F75: =SUM(D75:E75) -> 0 | G75: =F75-C75 -> 0 | I75: =IF(ISERROR(G75/H75),0,G75/H75) -> 0
F76: =SUM(D76:E76) -> 0 | G76: =F76-C76 -> 0 | I76: =IF(ISERROR(G76/H76),0,G76/H76) -> 0
B77: Cumulative Balance | C77: =SUM(C73:C76) -> 242046.5175 | D77: 230701.8102 | E77: 0 | F77: 230701.8102 | G77: =SUM(G73:G76) -> -11344.7073 | H77: 5593601.839 | I77: N/A
B80: Additional Notes and Comments
B95: Account 1588 Reasonability Test
C97: Account 1588 - RSVA Power | F97: Account 4705 - Power Purchased | G97: Account 1588 as % of Account 4705
B98: Year | C98: Transactions1 | D98: Principal Adjustments1 | E98: Total Activity in Calendar Year
B99: 2023 | D99: ='Rec1 1588 Commodity'!L20 -> 154756.4544 | E99: =SUM(C99:D99) -> 154756.4544 | F99: ='Rec1 1588 Commodity'!K20 -> 15184956.77 | G99: =IFERROR(E99/F99,0) -> 0.010191432
B102: Notes
B103: 1) The transactions should equal the "Transaction" column in the DVA Continuity Schedule. This is also expected to equal the transactions in the general ledger (excluding transactions relating to the removal of approved disposition amounts as that is shown in a separate column in the DVA Continuity Schedule)
B104: 2) Principal adjustments should equal the "Principal Adjustments" column in the DVA Continuity Schedule. Principal adjustments adjust the transactions in the general ledger to the amount that should be requested for disposition.
